{"text_format":"1","workbook":"xlsx","n_sheets":3,"sheets":["CONTRAT","CUMULATIF","FORMULE"],"not_rendered":{"charts":0,"images":0,"macros":1,"external_links":1,"defined_names":13,"comments":0,"pivot_tables":0},"unopened":[],"bounds":{"document_bytes":16777216,"sheet_cells":100000,"rows_first":2000,"rows_last":500,"rows_between":2000,"halvings":0,"cell_chars":16384,"cell_head_chars":4096},"cells_cut":0,"cells_raw":0,"read":"whole","date_system":"1900"}

{"sheet":"CONTRAT","index":0,"n_rows":1496,"n_cols":41,"rows_kept":1496,"cut":false,"hidden":false,"merged":[[3,0,3,17],[3,19,3,24],[3,26,3,28],[3,30,3,39]]}
[]
["CONTRAT DE PRÉPARATION DE SOL 2018"]
[]
["REMPLIR PAR LE DÉPARTEMENT DES COMMANDES",null,null,null,null,null,null,null,null,null,null,null,null,null,null,null,null,null,null,"RÉSERVÉ CHARGÉ DE PROJET",null,null,null,null,null,null,"RÉSERVÉ A LA VALIDATION",null,null,null,"RÉSERVÉ A L'ADMINISTRATION"]
["QTE","#BC","#BCT","#CO-","NOM DE CLIENT","VILLE","FORME","DIMENSIONS","GRAVIER /\n BETON","PIEUX","DÉMOLITION","TUYAU\nELECTRIQUE","ISOLATION","CUVE","DÉTAILLANT","PRIX\nDE VENTE\n(LISTE DE PRIX)","PRIX\nDE VENTE","DATE\nREQUIS",null,"SOUS-TRAITANT\nASSIGNÉ","COÛT DU\nCONTRAT","DATE\nREQUIS","DIFF\nLISTE VS\nVENTE","$$$\nRENDEMENT","%%%\nRENDEMENT",null,"# FACTURE\nSOUS-TRAITANT","MONTANT\nA PAYER AU\nSOUS-TRAITANT","DATE\nLIBÉRÉ",null,"TRANSACTION \nCOMPLÉTÉ\nREVENU","#FA","MONTANT SUR\n# FA-","DATE\nCOMPTABLE",null,null,"TRANSACTION \nCOMPLÉTÉ\nDÉPENSE","# FACTURE\nSOUS-TRAITANT","MONTANT\nA PAYER AU\nSOUS-TRAITANT","DATE\nCOMPTABLE"]
[1,614001,"1080","180006","ANNE SÉGUIN POIRIER","MONTRÉAL","4-C","10X16","GRAVIER ",null,null,null,null,null,"VIRGINIE/ROBERT",875,875,"2017-11-26",null,"MAREX",680,null,{"$f":"P6-Q6","v":0},{"$f":"Q6-U6","v":195},{"$f":"X6/Q6","v":0.22285714285714286},null,680,680,"2017-11-08",null,null,22,875,"2017-11-08",{"$f":"TEXT(AH6,\"MMMM\")","v":"novembre"},null,null,22,680,"2017-11-08",{"$f":"TEXT(AN6,\"MMMM\")","v":"novembre"}]
[null,null,null,null,null,null,null,null,null,null,null,null,null,null,null,null,null,null,null,null,null,null,{"$f":"P7-Q7","v":0},{"$f":"Q7-U7","v":0},{"$f":"X7/Q7","v":{"$error":"#DIV/0!"}},null,null,null,null,null,null,null,null,null,{"$f":"TEXT(AH7,\"MMMM\")","v":"janvier"},null,null,null,null,null,{"$f":"TEXT(AN7,\"MMMM\")","v":"janvier"}]
[null,null,null,null,null,null,null,null,null,null,null,null,null,null,null,null,null,null,null,null,null,null,0,0,{"$error":"#DIV/0!"},null,null,null,null,null,null,null,null,null,"janvier",null,null,null,null,null,"janvier"]
[null,null,null,null,null,null,null,null,null,null,null,null,null,null,null,null,null,null,null,null,null,null,{"$f":"P9-Q9","v":0},0,{"$error":"#DIV/0!"},null,null,null,null,null,null,null,null,null,"janvier",null,null,null,null,null,"janvier"]
[null,null,null,null,null,null,null,null,null,null,null,null,null,null,null,null,null,null,null,null,null,null,0,0,{"$error":"#DIV/0!"},null,null,null,null,null,null,null,null,null,"janvier",null,null,null,null,null,"janvier"]
[null,null,null,null,null,null,null,null,null,null,null,null,null,null,null,null,null,null,null,null,null,null,0,0,{"$f":"X11/Q11","v":{"$error":"#DIV/0!"}},null,null,null,null,null,null,22,2000,"2017-11-08","novembre",null,null,null,null,null,"janvier"]
[null,null,null,null,null,null,null,null,null,null,null,null,null,null,null,null,null,null,null,null,null,null,0,0,{"$f":"X12/Q12","v":{"$error":"#DIV/0!"}},null,null,null,null,null,null,null,null,null,"janvier",null,null,null,null,null,"janvier"]
[null,null,null,null,null,null,null,null,null,null,null,null,null,null,null,null,null,null,null,null,null,null,0,0,{"$f":"X13/Q13","v":{"$error":"#DIV/0!"}},null,null,null,null,null,null,null,null,null,"janvier",null,null,null,null,null,"janvier"]
[null,null,null,null,null,null,null,null,null,null,null,null,null,null,null,null,null,null,null,null,null,null,0,0,{"$error":"#DIV/0!"},null,null,null,null,null,null,null,null,null,"janvier",null,null,null,null,null,"janvier"]
[null,null,null,null,null,null,null,null,null,null,null,null,null,null,null,null,null,null,null,null,null,null,0,0,{"$error":"#DIV/0!"},null,null,null,null,null,null,null,null,null,"janvier",null,null,null,null,null,"janvier"]
[null,null,null,null,null,null,null,null,null,null,null,null,null,null,null,null,null,null,null,null,null,null,0,0,{"$f":"X16/#REF!","v":{"$error":"#REF!"}},null,null,null,null,null,null,null,null,null,"janvier",null,null,null,null,null,"janvier"]
[null,null,null,null,null,null,null,null,null,null,null,null,null,null,null,null,null,null,null,null,null,null,0,0,{"$error":"#DIV/0!"},null,null,null,null,null,null,null,null,null,"janvier",null,null,null,null,null,"janvier"]
[null,null,null,null,null,null,null,null,null,null,null,null,null,null,null,null,null,null,null,null,null,null,0,0,{"$error":"#DIV/0!"},null,null,null,null,null,null,null,null,null,"janvier",null,null,null,null,null,"janvier"]
[null,null,null,null,null,null,null,null,null,null,null,null,null,null,null,null,null,null,null,null,null,null,0,0,{"$error":"#DIV/0!"},null,null,null,null,null,null,null,null,null,"janvier",null,null,null,null,null,"janvier"]
[null,null,null,null,null,null,null,null,null,null,null,null,null,null,null,null,null,null,null,null,null,null,0,0,{"$error":"#DIV/0!"},null,null,null,null,null,null,null,null,null,"janvier",null,null,null,null,null,"janvier"]
[null,null,null,null,null,null,null,null,null,null,null,null,null,null,null,null,null,null,null,null,null,null,0,0,{"$error":"#DIV/0!"},null,null,null,null,null,null,null,null,null,"janvier",null,null,null,null,null,"janvier"]
[null,null,null,null,null,null,null,null,null,null,null,null,null,null,null,null,null,null,null,null,null,null,0,0,{"$error":"#DIV/0!"},null,null,null,null,null,null,null,null,null,"janvier",null,null,null,null,null,"janvier"]
[null,null,null,null,null,null,null,null,null,null,null,null,null,null,null,null,null,null,null,null,null,null,0,0,{"$error":"#DIV/0!"},null,null,null,null,null,null,null,null,null,"janvier",null,null,null,null,null,"janvier"]
[null,null,null,null,null,null,null,null,null,null,null,null,null,null,null,null,null,null,null,null,null,null,0,0,{"$error":"#DIV/0!"},null,null,null,null,null,null,null,null,null,"janvier",null,null,null,null,null,"janvier"]
[null,null,null,null,null,null,null,null,null,null,null,null,null,null,null,null,null,null,null,null,null,null,0,0,{"$error":"#DIV/0!"},null,null,null,null,null,null,null,null,null,"janvier",null,null,null,null,null,"janvier"]
[null,null,null,null,null,null,null,null,null,null,null,null,null,null,null,null,null,null,null,null,null,null,0,0,{"$error":"#DIV/0!"},null,null,null,null,null,null,null,null,null,"janvier",null,null,null,null,null,"janvier"]
[null,null,null,null,null,null,null,null,null,null,null,null,null,null,null,null,null,null,null,null,null,null,0,0,{"$error":"#DIV/0!"},null,null,null,null,null,null,null,null,null,"janvier",null,null,null,null,null,"janvier"]
[null,null,null,null,null,null,null,null,null,null,null,null,null,null,null,null,null,null,null,null,null,null,0,0,{"$error":"#DIV/0!"},null,null,null,null,null,null,null,null,null,"janvier",null,null,null,null,null,"janvier"]
[null,null,null,null,null,null,null,null,null,null,null,null,null,null,null,null,null,null,null,null,null,null,0,0,{"$error":"#DIV/0!"},null,null,null,null,null,null,null,null,null,"janvier",null,null,null,null,null,"janvier"]
[null,null,null,null,null,null,null,null,null,null,null,null,null,null,null,null,null,null,null,null,null,null,0,0,{"$error":"#DIV/0!"},null,null,null,null,null,null,null,null,null,"janvier",null,null,null,null,null,"janvier"]
[null,null,null,null,null,null,null,null,null,null,null,null,null,null,null,null,null,null,null,null,null,null,0,0,{"$error":"#DIV/0!"},null,null,null,null,null,null,null,null,null,"janvier",null,null,null,null,null,"janvier"]
[null,null,null,null,null,null,null,null,null,null,null,null,null,null,null,null,null,null,null,null,null,null,0,0,{"$error":"#DIV/0!"},null,null,null,null,null,null,null,null,null,"janvier",null,null,null,null,null,"janvier"]
[null,null,null,null,null,null,null,null,null,null,null,null,null,null,null,null,null,null,null,null,null,null,0,0,{"$error":"#DIV/0!"},null,null,null,null,null,null,null,null,null,"janvier",null,null,null,null,null,"janvier"]
[null,null,null,null,null,null,null,null,null,null,null,null,null,null,null,null,null,null,null,null,null,null,0,0,{"$error":"#DIV/0!"},null,null,null,null,null,null,null,null,null,"janvier",null,null,null,null,null,"janvier"]
[null,null,null,null,null,null,null,null,null,null,null,null,null,null,null,null,null,null,null,null,null,null,0,0,{"$error":"#DIV/0!"},null,null,null,null,null,null,null,null,null,"janvier",null,null,null,null,null,"janvier"]
[null,null,null,null,null,null,null,null,null,null,null,null,null,null,null,null,null,null,null,null,null,null,0,0,{"$error":"#DIV/0!"},null,null,null,null,null,null,null,null,null,"janvier",null,null,null,null,null,"janvier"]
[null,null,null,null,null,null,null,null,null,null,null,null,null,null,null,null,null,null,null,null,null,null,0,0,{"$error":"#DIV/0!"},null,null,null,null,null,null,null,null,null,"janvier",null,null,null,null,null,"janvier"]
[null,null,null,null,null,null,null,null,null,null,null,null,null,null,null,null,null,null,null,null,null,null,0,0,{"$error":"#DIV/0!"},null,null,null,null,null,null,null,null,null,"janvier",null,null,null,null,null,"janvier"]
[null,null,null,null,null,null,null,null,null,null,null,null,null,null,null,null,null,null,null,null,null,null,0,0,{"$error":"#DIV/0!"},null,null,null,null,null,null,null,null,null,"janvier",null,null,null,null,null,"janvier"]
[null,null,null,null,null,null,null,null,null,null,null,null,null,null,null,null,null,null,null,null,null,null,0,0,{"$error":"#DIV/0!"},null,null,null,null,null,null,null,null,null,"janvier",null,null,null,null,null,"janvier"]
[null,null,null,null,null,null,null,null,null,null,null,null,null,null,null,null,null,null,null,null,null,null,0,0,{"$error":"#DIV/0!"},null,null,null,null,null,null,null,null,null,"janvier",null,null,null,null,null,"janvier"]
[null,null,null,null,null,null,null,null,null,null,null,null,null,null,null,null,null,null,null,null,null,null,0,0,{"$error":"#DIV/0!"},null,null,null,null,null,null,null,null,null,"janvier",null,null,null,null,null,"janvier"]
[null,null,null,null,null,null,null,null,null,null,null,null,null,null,null,null,null,null,null,null,null,null,0,0,{"$error":"#DIV/0!"},null,null,null,null,null,null,null,null,null,"janvier",null,null,null,null,null,"janvier"]
[null,null,null,null,null,null,null,null,null,null,null,null,null,null,null,null,null,null,null,null,null,null,0,0,{"$error":"#DIV/0!"},null,null,null,null,null,null,null,null,null,"janvier",null,null,null,null,null,"janvier"]
[null,null,null,null,null,null,null,null,null,null,null,null,null,null,null,null,null,null,null,null,null,null,0,0,{"$error":"#DIV/0!"},null,null,null,null,null,null,null,null,null,"janvier",null,null,null,null,null,"janvier"]
[null,null,null,null,null,null,null,null,null,null,null,null,null,null,null,null,null,null,null,null,null,null,0,0,{"$error":"#DIV/0!"},null,null,null,null,null,null,null,null,null,"janvier",null,null,null,null,null,"janvier"]
[null,null,null,null,null,null,null,null,null,null,null,null,null,null,null,null,null,null,null,null,null,null,0,0,{"$error":"#DIV/0!"},null,null,null,null,null,null,null,null,null,"janvier",null,null,null,null,null,"janvier"]
[null,null,null,null,null,null,null,null,null,null,null,null,null,null,null,null,null,null,null,null,null,null,0,0,{"$error":"#DIV/0!"},null,null,null,null,null,null,null,null,null,"janvier",null,null,null,null,null,"janvier"]
[null,null,null,null,null,null,null,null,null,null,null,null,null,null,null,null,null,null,null,null,null,null,0,0,{"$error":"#DIV/0!"},null,null,null,null,null,null,null,null,null,"janvier",null,null,null,null,null,"janvier"]
[null,null,null,null,null,null,null,null,null,null,null,null,null,null,null,null,null,null,null,null,null,null,0,0,{"$error":"#DIV/0!"},null,null,null,null,null,null,null,null,null,"janvier",null,null,null,null,null,"janvier"]
[null,null,null,null,null,null,null,null,null,null,null,null,null,null,null,null,null,null,null,null,null,null,0,0,{"$error":"#DIV/0!"},null,null,null,null,null,null,null,null,null,"janvier",null,null,null,null,null,"janvier"]
[null,null,null,null,null,null,null,null,null,null,null,null,null,null,null,null,null,null,null,null,null,null,0,0,{"$error":"#DIV/0!"},null,null,null,null,null,null,null,null,null,"janvier",null,null,null,null,null,"janvier"]
[null,null,null,null,null,null,null,null,null,null,null,null,null,null,null,null,null,null,null,null,null,null,0,0,{"$error":"#DIV/0!"},null,null,null,null,null,null,null,null,null,"janvier",null,null,null,null,null,"janvier"]
[null,null,null,null,null,null,null,null,null,null,null,null,null,null,null,null,null,null,null,null,null,null,0,0,{"$error":"#DIV/0!"},null,null,null,null,null,null,null,null,null,"janvier",null,null,null,null,null,"janvier"]
[null,null,null,null,null,null,null,null,null,null,null,null,null,null,null,null,null,null,null,null,null,null,0,0,{"$error":"#DIV/0!"},null,null,null,null,null,null,null,null,null,"janvier",null,null,null,null,null,"janvier"]
[null,null,null,null,null,null,null,null,null,null,null,null,null,null,null,null,null,null,null,null,null,null,0,0,{"$error":"#DIV/0!"},null,null,null,null,null,null,null,null,null,"janvier",null,null,null,null,null,"janvier"]
[null,null,null,null,null,null,null,null,null,null,null,null,null,null,null,null,null,null,null,null,null,null,0,0,{"$error":"#DIV/0!"},null,null,null,null,null,null,null,null,null,"janvier",null,null,null,null,null,"janvier"]
[null,null,null,null,null,null,null,null,null,null,null,null,null,null,null,null,null,null,null,null,null,null,0,0,{"$error":"#DIV/0!"},null,null,null,null,null,null,null,null,null,"janvier",null,null,null,null,null,"janvier"]
[null,null,null,null,null,null,null,null,null,null,null,null,null,null,null,null,null,null,null,null,null,null,0,0,{"$error":"#DIV/0!"},null,null,null,null,null,null,null,null,null,"janvier",null,null,null,null,null,"janvier"]
[null,null,null,null,null,null,null,null,null,null,null,null,null,null,null,null,null,null,null,null,null,null,0,0,{"$error":"#DIV/0!"},null,null,null,null,null,null,null,null,null,"janvier",null,null,null,null,null,"janvier"]
[null,null,null,null,null,null,null,null,null,null,null,null,null,null,null,null,null,null,null,null,null,null,{"$f":"P61-Q61","v":0},0,{"$error":"#DIV/0!"},null,null,null,null,null,null,null,null,null,"janvier",null,null,null,null,null,"janvier"]
[null,null,null,null,null,null,null,null,null,null,null,null,null,null,null,null,null,null,null,null,null,null,0,0,{"$error":"#DIV/0!"},null,null,null,null,null,null,null,null,null,"janvier",null,null,null,null,null,"janvier"]
[null,null,null,null,null,null,null,null,null,null,null,null,null,null,null,null,null,null,null,null,null,null,0,0,{"$error":"#DIV/0!"},null,null,null,null,null,null,null,null,null,"janvier",null,null,null,null,null,"janvier"]
[null,null,null,null,null,null,null,null,null,null,null,null,null,null,null,null,null,null,null,null,null,null,0,0,{"$error":"#DIV/0!"},null,null,null,null,null,null,null,null,null,"janvier",null,null,null,null,null,"janvier"]
[null,null,null,null,null,null,null,null,null,null,null,null,null,null,null,null,null,null,null,null,null,null,0,0,{"$error":"#DIV/0!"},null,null,null,null,null,null,null,null,null,"janvier",null,null,null,null,null,"janvier"]
[null,null,null,null,null,null,null,null,null,null,null,null,null,null,null,null,null,null,null,null,null,null,0,0,{"$error":"#DIV/0!"},null,null,null,null,null,null,null,null,null,"janvier",null,null,null,null,null,"janvier"]
[null,null,null,null,null,null,null,null,null,null,null,null,null,null,null,null,null,null,null,null,null,null,{"$f":"P67-Q67","v":0},{"$f":"Q67-U67","v":0},{"$f":"X67/Q67","v":{"$error":"#DIV/0!"}},null,null,null,null,null,null,null,null,null,{"$f":"TEXT(AH67,\"MMMM\")","v":"janvier"},null,null,null,null,null,{"$f":"TEXT(AN67,\"MMMM\")","v":"janvier"}]
[null,null,null,null,null,null,null,null,null,null,null,null,null,null,null,null,null,null,null,null,null,null,0,0,{"$error":"#DIV/0!"},null,null,null,null,null,null,null,null,null,"janvier",null,null,null,null,null,"janvier"]
[null,null,null,null,null,null,null,null,null,null,null,null,null,null,null,null,null,null,null,null,null,null,0,0,{"$error":"#DIV/0!"},null,null,null,null,null,null,null,null,null,"janvier",null,null,null,null,null,"janvier"]
[null,null,null,null,null,null,null,null,null,null,null,null,null,null,null,null,null,null,null,null,null,null,0,0,{"$error":"#DIV/0!"},null,null,null,null,null,null,null,null,null,"janvier",null,null,null,null,null,"janvier"]
[null,null,null,null,null,null,null,null,null,null,null,null,null,null,null,null,null,null,null,null,null,null,0,0,{"$error":"#DIV/0!"},null,null,null,null,null,null,null,null,null,"janvier",null,null,null,null,null,"janvier"]
[null,null,null,null,null,null,null,null,null,null,null,null,null,null,null,null,null,null,null,null,null,null,0,0,{"$error":"#DIV/0!"},null,null,null,null,null,null,null,null,null,"janvier",null,null,null,null,null,"janvier"]
[null,null,null,null,null,null,null,null,null,null,null,null,null,null,null,null,null,null,null,null,null,null,0,0,{"$error":"#DIV/0!"},null,null,null,null,null,null,null,null,null,"janvier",null,null,null,null,null,"janvier"]
[null,null,null,null,null,null,null,null,null,null,null,null,null,null,null,null,null,null,null,null,null,null,0,0,{"$error":"#DIV/0!"},null,null,null,null,null,null,null,null,null,"janvier",null,null,null,null,null,"janvier"]
[null,null,null,null,null,null,null,null,null,null,null,null,null,null,null,null,null,null,null,null,null,null,0,0,{"$error":"#DIV/0!"},null,null,null,null,null,null,null,null,null,"janvier",null,null,null,null,null,"janvier"]
[null,null,null,null,null,null,null,null,null,null,null,null,null,null,null,null,null,null,null,null,null,null,0,0,{"$error":"#DIV/0!"},null,null,null,null,null,null,null,null,null,"janvier",null,null,null,null,null,"janvier"]
[null,null,null,null,null,null,null,null,null,null,null,null,null,null,null,null,null,null,null,null,null,null,0,0,{"$error":"#DIV/0!"},null,null,null,null,null,null,null,null,null,"janvier",null,null,null,null,null,"janvier"]
[null,null,null,null,null,null,null,null,null,null,null,null,null,null,null,null,null,null,null,null,null,null,0,0,{"$error":"#DIV/0!"},null,null,null,null,null,null,null,null,null,"janvier",null,null,null,null,null,"janvier"]
[null,null,null,null,null,null,null,null,null,null,null,null,null,null,null,null,null,null,null,null,null,null,0,0,{"$error":"#DIV/0!"},null,null,null,null,null,null,null,null,null,"janvier",null,null,null,null,null,"janvier"]
[null,null,null,null,null,null,null,null,null,null,null,null,null,null,null,null,null,null,null,null,null,null,0,0,{"$error":"#DIV/0!"},null,null,null,null,null,null,null,null,null,"janvier",null,null,null,null,null,"janvier"]
[null,null,null,null,null,null,null,null,null,null,null,null,null,null,null,null,null,null,null,null,null,null,0,0,{"$error":"#DIV/0!"},null,null,null,null,null,null,null,null,null,"janvier",null,null,null,null,null,"janvier"]
[null,null,null,null,null,null,null,null,null,null,null,null,null,null,null,null,null,null,null,null,null,null,0,0,{"$error":"#DIV/0!"},null,null,null,null,null,null,null,null,null,"janvier",null,null,null,null,null,"janvier"]
[null,null,null,null,null,null,null,null,null,null,null,null,null,null,null,null,null,null,null,null,null,null,0,0,{"$error":"#DIV/0!"},null,null,null,null,null,null,null,null,null,"janvier",null,null,null,null,null,"janvier"]
[null,null,null,null,null,null,null,null,null,null,null,null,null,null,null,null,null,null,null,null,null,null,0,0,{"$error":"#DIV/0!"},null,null,null,null,null,null,null,null,null,"janvier",null,null,null,null,null,"janvier"]
[null,null,null,null,null,null,null,null,null,null,null,null,null,null,null,null,null,null,null,null,null,null,0,0,{"$error":"#DIV/0!"},null,null,null,null,null,null,null,null,null,"janvier",null,null,null,null,null,"janvier"]
[null,null,null,null,null,null,null,null,null,null,null,null,null,null,null,null,null,null,null,null,null,null,0,0,{"$error":"#DIV/0!"},null,null,null,null,null,null,null,null,null,"janvier",null,null,null,null,null,"janvier"]
[null,null,null,null,null,null,null,null,null,null,null,null,null,null,null,null,null,null,null,null,null,null,0,0,{"$error":"#DIV/0!"},null,null,null,null,null,null,null,null,null,"janvier",null,null,null,null,null,"janvier"]
[null,null,null,null,null,null,null,null,null,null,null,null,null,null,null,null,null,null,null,null,null,null,0,0,{"$error":"#DIV/0!"},null,null,null,null,null,null,null,null,null,"janvier",null,null,null,null,null,"janvier"]
[null,null,null,null,null,null,null,null,null,null,null,null,null,null,null,null,null,null,null,null,null,null,0,0,{"$error":"#DIV/0!"},null,null,null,null,null,null,null,null,null,"janvier",null,null,null,null,null,"janvier"]
[null,null,null,null,null,null,null,null,null,null,null,null,null,null,null,null,null,null,null,null,null,null,0,0,{"$error":"#DIV/0!"},null,null,null,null,null,null,null,null,null,"janvier",null,null,null,null,null,"janvier"]
[null,null,null,null,null,null,null,null,null,null,null,null,null,null,null,null,null,null,null,null,null,null,0,0,{"$error":"#DIV/0!"},null,null,null,null,null,null,null,null,null,"janvier",null,null,null,null,null,"janvier"]
[null,null,null,null,null,null,null,null,null,null,null,null,null,null,null,null,null,null,null,null,null,null,0,0,{"$error":"#DIV/0!"},null,null,null,null,null,null,null,null,null,"janvier",null,null,null,null,null,"janvier"]
[null,null,null,null,null,null,null,null,null,null,null,null,null,null,null,null,null,null,null,null,null,null,0,0,{"$error":"#DIV/0!"},null,null,null,null,null,null,null,null,null,"janvier",null,null,null,null,null,"janvier"]
[null,null,null,null,null,null,null,null,null,null,null,null,null,null,null,null,null,null,null,null,null,null,0,0,{"$error":"#DIV/0!"},null,null,null,null,null,null,null,null,null,"janvier",null,null,null,null,null,"janvier"]
[null,null,null,null,null,null,null,null,null,null,null,null,null,null,null,null,null,null,null,null,null,null,0,0,{"$error":"#DIV/0!"},null,null,null,null,null,null,null,null,null,"janvier",null,null,null,null,null,"janvier"]
[null,null,null,null,null,null,null,null,null,null,null,null,null,null,null,null,null,null,null,null,null,null,0,0,{"$error":"#DIV/0!"},null,null,null,null,null,null,null,null,null,"janvier",null,null,null,null,null,"janvier"]
[null,null,null,null,null,null,null,null,null,null,null,null,null,null,null,null,null,null,null,null,null,null,0,0,{"$error":"#DIV/0!"},null,null,null,null,null,null,null,null,null,"janvier",null,null,null,null,null,"janvier"]
[null,null,null,null,null,null,null,null,null,null,null,null,null,null,null,null,null,null,null,null,null,null,0,0,{"$error":"#DIV/0!"},null,null,null,null,null,null,null,null,null,"janvier",null,null,null,null,null,"janvier"]
[null,null,null,null,null,null,null,null,null,null,null,null,null,null,null,null,null,null,null,null,null,null,0,0,{"$error":"#DIV/0!"},null,null,null,null,null,null,null,null,null,"janvier",null,null,null,null,null,"janvier"]
[null,null,null,null,null,null,null,null,null,null,null,null,null,null,null,null,null,null,null,null,null,null,0,0,{"$error":"#DIV/0!"},null,null,null,null,null,null,null,null,null,"janvier",null,null,null,null,null,"janvier"]
[null,null,null,null,null,null,null,null,null,null,null,null,null,null,null,null,null,null,null,null,null,null,0,0,{"$error":"#DIV/0!"},null,null,null,null,null,null,null,null,null,"janvier",null,null,null,null,null,"janvier"]
[null,null,null,null,null,null,null,null,null,null,null,null,null,null,null,null,null,null,null,null,null,null,0,0,{"$error":"#DIV/0!"},null,null,null,null,null,null,null,null,null,"janvier",null,null,null,null,null,"janvier"]
[null,null,null,null,null,null,null,null,null,null,null,null,null,null,null,null,null,null,null,null,null,null,0,0,{"$error":"#DIV/0!"},null,null,null,null,null,null,null,null,null,"janvier",null,null,null,null,null,"janvier"]
[null,null,null,null,null,null,null,null,null,null,null,null,null,null,null,null,null,null,null,null,null,null,0,0,{"$error":"#DIV/0!"},null,null,null,null,null,null,null,null,null,"janvier",null,null,null,null,null,"janvier"]
[null,null,null,null,null,null,null,null,null,null,null,null,null,null,null,null,null,null,null,null,null,null,0,0,{"$error":"#DIV/0!"},null,null,null,null,null,null,null,null,null,"janvier",null,null,null,null,null,"janvier"]
[null,null,null,null,null,null,null,null,null,null,null,null,null,null,null,null,null,null,null,null,null,null,0,0,{"$error":"#DIV/0!"},null,null,null,null,null,null,null,null,null,"janvier",null,null,null,null,null,"janvier"]
[null,null,null,null,null,null,null,null,null,null,null,null,null,null,null,null,null,null,null,null,null,null,0,0,{"$error":"#DIV/0!"},null,null,null,null,null,null,null,null,null,"janvier",null,null,null,null,null,"janvier"]
[null,null,null,null,null,null,null,null,null,null,null,null,null,null,null,null,null,null,null,null,null,null,0,0,{"$error":"#DIV/0!"},null,null,null,null,null,null,null,null,null,"janvier",null,null,null,null,null,"janvier"]
[null,null,null,null,null,null,null,null,null,null,null,null,null,null,null,null,null,null,null,null,null,null,0,0,{"$error":"#DIV/0!"},null,null,null,null,null,null,null,null,null,"janvier",null,null,null,null,null,"janvier"]
[null,null,null,null,null,null,null,null,null,null,null,null,null,null,null,null,null,null,null,null,null,null,0,0,{"$error":"#DIV/0!"},null,null,null,null,null,null,null,null,null,"janvier",null,null,null,null,null,"janvier"]
[null,null,null,null,null,null,null,null,null,null,null,null,null,null,null,null,null,null,null,null,null,null,0,0,{"$error":"#DIV/0!"},null,null,null,null,null,null,null,null,null,"janvier",null,null,null,null,null,"janvier"]
[null,null,null,null,null,null,null,null,null,null,null,null,null,null,null,null,null,null,null,null,null,null,0,0,{"$error":"#DIV/0!"},null,null,null,null,null,null,null,null,null,"janvier",null,null,null,null,null,"janvier"]
[null,null,null,null,null,null,null,null,null,null,null,null,null,null,null,null,null,null,null,null,null,null,0,0,{"$error":"#DIV/0!"},null,null,null,null,null,null,null,null,null,"janvier",null,null,null,null,null,"janvier"]
[null,null,null,null,null,null,null,null,null,null,null,null,null,null,null,null,null,null,null,null,null,null,0,0,{"$error":"#DIV/0!"},null,null,null,null,null,null,null,null,null,"janvier",null,null,null,null,null,"janvier"]
[null,null,null,null,null,null,null,null,null,null,null,null,null,null,null,null,null,null,null,null,null,null,0,0,{"$error":"#DIV/0!"},null,null,null,null,null,null,null,null,null,"janvier",null,null,null,null,null,"janvier"]
[null,null,null,null,null,null,null,null,null,null,null,null,null,null,null,null,null,null,null,null,null,null,0,0,{"$error":"#DIV/0!"},null,null,null,null,null,null,null,null,null,"janvier",null,null,null,null,null,"janvier"]
[null,null,null,null,null,null,null,null,null,null,null,null,null,null,null,null,null,null,null,null,null,null,0,0,{"$error":"#DIV/0!"},null,null,null,null,null,null,null,null,null,"janvier",null,null,null,null,null,"janvier"]
[null,null,null,null,null,null,null,null,null,null,null,null,null,null,null,null,null,null,null,null,null,null,0,0,{"$error":"#DIV/0!"},null,null,null,null,null,null,null,null,null,"janvier",null,null,null,null,null,"janvier"]
[null,null,null,null,null,null,null,null,null,null,null,null,null,null,null,null,null,null,null,null,null,null,0,0,{"$error":"#DIV/0!"},null,null,null,null,null,null,null,null,null,"janvier",null,null,null,null,null,"janvier"]
[null,null,null,null,null,null,null,null,null,null,null,null,null,null,null,null,null,null,null,null,null,null,0,0,{"$error":"#DIV/0!"},null,null,null,null,null,null,null,null,null,"janvier",null,null,null,null,null,"janvier"]
[null,null,null,null,null,null,null,null,null,null,null,null,null,null,null,null,null,null,null,null,null,null,0,0,{"$error":"#DIV/0!"},null,null,null,null,null,null,null,null,null,"janvier",null,null,null,null,null,"janvier"]
[null,null,null,null,null,null,null,null,null,null,null,null,null,null,null,null,null,null,null,null,null,null,0,0,{"$error":"#DIV/0!"},null,null,null,null,null,null,null,null,null,"janvier",null,null,null,null,null,"janvier"]
[null,null,null,null,null,null,null,null,null,null,null,null,null,null,null,null,null,null,null,null,null,null,0,0,{"$error":"#DIV/0!"},null,null,null,null,null,null,null,null,null,"janvier",null,null,null,null,null,"janvier"]
[null,null,null,null,null,null,null,null,null,null,null,null,null,null,null,null,null,null,null,null,null,null,0,0,{"$error":"#DIV/0!"},null,null,null,null,null,null,null,null,null,"janvier",null,null,null,null,null,"janvier"]
[null,null,null,null,null,null,null,null,null,null,null,null,null,null,null,null,null,null,null,null,null,null,0,0,{"$error":"#DIV/0!"},null,null,null,null,null,null,null,null,null,"janvier",null,null,null,null,null,"janvier"]
[null,null,null,null,null,null,null,null,null,null,null,null,null,null,null,null,null,null,null,null,null,null,0,0,{"$error":"#DIV/0!"},null,null,null,null,null,null,null,null,null,"janvier",null,null,null,null,null,"janvier"]
[null,null,null,null,null,null,null,null,null,null,null,null,null,null,null,null,null,null,null,null,null,null,0,0,{"$error":"#DIV/0!"},null,null,null,null,null,null,null,null,null,"janvier",null,null,null,null,null,"janvier"]
[null,null,null,null,null,null,null,null,null,null,null,null,null,null,null,null,null,null,null,null,null,null,0,0,{"$error":"#DIV/0!"},null,null,null,null,null,null,null,null,null,"janvier",null,null,null,null,null,"janvier"]
[null,null,null,null,null,null,null,null,null,null,null,null,null,null,null,null,null,null,null,null,null,null,0,0,{"$error":"#DIV/0!"},null,null,null,null,null,null,null,null,null,"janvier",null,null,null,null,null,"janvier"]
[null,null,null,null,null,null,null,null,null,null,null,null,null,null,null,null,null,null,null,null,null,null,0,0,{"$error":"#DIV/0!"},null,null,null,null,null,null,null,null,null,"janvier",null,null,null,null,null,"janvier"]
[null,null,null,null,null,null,null,null,null,null,null,null,null,null,null,null,null,null,null,null,null,null,{"$f":"P131-Q131","v":0},{"$f":"Q131-U131","v":0},{"$f":"X131/Q131","v":{"$error":"#DIV/0!"}},null,null,null,null,null,null,null,null,null,{"$f":"TEXT(AH131,\"MMMM\")","v":"janvier"},null,null,null,null,null,{"$f":"TEXT(AN131,\"MMMM\")","v":"janvier"}]
[null,null,null,null,null,null,null,null,null,null,null,null,null,null,null,null,null,null,null,null,null,null,0,0,{"$error":"#DIV/0!"},null,null,null,null,null,null,null,null,null,"janvier",null,null,null,null,null,"janvier"]
[null,null,null,null,null,null,null,null,null,null,null,null,null,null,null,null,null,null,null,null,null,null,0,0,{"$error":"#DIV/0!"},null,null,null,null,null,null,null,null,null,"janvier",null,null,null,null,null,"janvier"]
[null,null,null,null,null,null,null,null,null,null,null,null,null,null,null,null,null,null,null,null,null,null,0,0,{"$error":"#DIV/0!"},null,null,null,null,null,null,null,null,null,"janvier",null,null,null,null,null,"janvier"]
[null,null,null,null,null,null,null,null,null,null,null,null,null,null,null,null,null,null,null,null,null,null,0,0,{"$error":"#DIV/0!"},null,null,null,null,null,null,null,null,null,"janvier",null,null,null,null,null,"janvier"]
[null,null,null,null,null,null,null,null,null,null,null,null,null,null,null,null,null,null,null,null,null,null,0,0,{"$error":"#DIV/0!"},null,null,null,null,null,null,null,null,null,"janvier",null,null,null,null,null,"janvier"]
[null,null,null,null,null,null,null,null,null,null,null,null,null,null,null,null,null,null,null,null,null,null,0,0,{"$error":"#DIV/0!"},null,null,null,null,null,null,null,null,null,"janvier",null,null,null,null,null,"janvier"]
[null,null,null,null,null,null,null,null,null,null,null,null,null,null,null,null,null,null,null,null,null,null,0,0,{"$error":"#DIV/0!"},null,null,null,null,null,null,null,null,null,"janvier",null,null,null,null,null,"janvier"]
[null,null,null,null,null,null,null,null,null,null,null,null,null,null,null,null,null,null,null,null,null,null,0,0,{"$error":"#DIV/0!"},null,null,null,null,null,null,null,null,null,"janvier",null,null,null,null,null,"janvier"]
[null,null,null,null,null,null,null,null,null,null,null,null,null,null,null,null,null,null,null,null,null,null,0,0,{"$error":"#DIV/0!"},null,null,null,null,null,null,null,null,null,"janvier",null,null,null,null,null,"janvier"]
[null,null,null,null,null,null,null,null,null,null,null,null,null,null,null,null,null,null,null,null,null,null,0,0,{"$error":"#DIV/0!"},null,null,null,null,null,null,null,null,null,"janvier",null,null,null,null,null,"janvier"]
[null,null,null,null,null,null,null,null,null,null,null,null,null,null,null,null,null,null,null,null,null,null,0,0,{"$error":"#DIV/0!"},null,null,null,null,null,null,null,null,null,"janvier",null,null,null,null,null,"janvier"]
[null,null,null,null,null,null,null,null,null,null,null,null,null,null,null,null,null,null,null,null,null,null,0,0,{"$error":"#DIV/0!"},null,null,null,null,null,null,null,null,null,"janvier",null,null,null,null,null,"janvier"]
[null,null,null,null,null,null,null,null,null,null,null,null,null,null,null,null,null,null,null,null,null,null,0,0,{"$error":"#DIV/0!"},null,null,null,null,null,null,null,null,null,"janvier",null,null,null,null,null,"janvier"]
[null,null,null,null,null,null,null,null,null,null,null,null,null,null,null,null,null,null,null,null,null,null,0,0,{"$error":"#DIV/0!"},null,null,null,null,null,null,null,null,null,"janvier",null,null,null,null,null,"janvier"]
[null,null,null,null,null,null,null,null,null,null,null,null,null,null,null,null,null,null,null,null,null,null,0,0,{"$error":"#DIV/0!"},null,null,null,null,null,null,null,null,null,"janvier",null,null,null,null,null,"janvier"]
[null,null,null,null,null,null,null,null,null,null,null,null,null,null,null,null,null,null,null,null,null,null,0,0,{"$error":"#DIV/0!"},null,null,null,null,null,null,null,null,null,"janvier",null,null,null,null,null,"janvier"]
[null,null,null,null,null,null,null,null,null,null,null,null,null,null,null,null,null,null,null,null,null,null,0,0,{"$error":"#DIV/0!"},null,null,null,null,null,null,null,null,null,"janvier",null,null,null,null,null,"janvier"]
[null,null,null,null,null,null,null,null,null,null,null,null,null,null,null,null,null,null,null,null,null,null,0,0,{"$error":"#DIV/0!"},null,null,null,null,null,null,null,null,null,"janvier",null,null,null,null,null,"janvier"]
[null,null,null,null,null,null,null,null,null,null,null,null,null,null,null,null,null,null,null,null,null,null,0,0,{"$error":"#DIV/0!"},null,null,null,null,null,null,null,null,null,"janvier",null,null,null,null,null,"janvier"]
[null,null,null,null,null,null,null,null,null,null,null,null,null,null,null,null,null,null,null,null,null,null,0,0,{"$error":"#DIV/0!"},null,null,null,null,null,null,null,null,null,"janvier",null,null,null,null,null,"janvier"]
[null,null,null,null,null,null,null,null,null,null,null,null,null,null,null,null,null,null,null,null,null,null,0,0,{"$error":"#DIV/0!"},null,null,null,null,null,null,null,null,null,"janvier",null,null,null,null,null,"janvier"]
[null,null,null,null,null,null,null,null,null,null,null,null,null,null,null,null,null,null,null,null,null,null,0,0,{"$error":"#DIV/0!"},null,null,null,null,null,null,null,null,null,"janvier",null,null,null,null,null,"janvier"]
[null,null,null,null,null,null,null,null,null,null,null,null,null,null,null,null,null,null,null,null,null,null,0,0,{"$error":"#DIV/0!"},null,null,null,null,null,null,null,null,null,"janvier",null,null,null,null,null,"janvier"]
[null,null,null,null,null,null,null,null,null,null,null,null,null,null,null,null,null,null,null,null,null,null,0,0,{"$error":"#DIV/0!"},null,null,null,null,null,null,null,null,null,"janvier",null,null,null,null,null,"janvier"]
[null,null,null,null,null,null,null,null,null,null,null,null,null,null,null,null,null,null,null,null,null,null,0,0,{"$error":"#DIV/0!"},null,null,null,null,null,null,null,null,null,"janvier",null,null,null,null,null,"janvier"]
[null,null,null,null,null,null,null,null,null,null,null,null,null,null,null,null,null,null,null,null,null,null,0,0,{"$error":"#DIV/0!"},null,null,null,null,null,null,null,null,null,"janvier",null,null,null,null,null,"janvier"]
[null,null,null,null,null,null,null,null,null,null,null,null,null,null,null,null,null,null,null,null,null,null,0,0,{"$error":"#DIV/0!"},null,null,null,null,null,null,null,null,null,"janvier",null,null,null,null,null,"janvier"]
[null,null,null,null,null,null,null,null,null,null,null,null,null,null,null,null,null,null,null,null,null,null,0,0,{"$error":"#DIV/0!"},null,null,null,null,null,null,null,null,null,"janvier",null,null,null,null,null,"janvier"]
[null,null,null,null,null,null,null,null,null,null,null,null,null,null,null,null,null,null,null,null,null,null,0,0,{"$error":"#DIV/0!"},null,null,null,null,null,null,null,null,null,"janvier",null,null,null,null,null,"janvier"]
[null,null,null,null,null,null,null,null,null,null,null,null,null,null,null,null,null,null,null,null,null,null,0,0,{"$error":"#DIV/0!"},null,null,null,null,null,null,null,null,null,"janvier",null,null,null,null,null,"janvier"]
[null,null,null,null,null,null,null,null,null,null,null,null,null,null,null,null,null,null,null,null,null,null,0,0,{"$error":"#DIV/0!"},null,null,null,null,null,null,null,null,null,"janvier",null,null,null,null,null,"janvier"]
[null,null,null,null,null,null,null,null,null,null,null,null,null,null,null,null,null,null,null,null,null,null,0,0,{"$error":"#DIV/0!"},null,null,null,null,null,null,null,null,null,"janvier",null,null,null,null,null,"janvier"]
[null,null,null,null,null,null,null,null,null,null,null,null,null,null,null,null,null,null,null,null,null,null,0,0,{"$error":"#DIV/0!"},null,null,null,null,null,null,null,null,null,"janvier",null,null,null,null,null,"janvier"]
[null,null,null,null,null,null,null,null,null,null,null,null,null,null,null,null,null,null,null,null,null,null,0,0,{"$error":"#DIV/0!"},null,null,null,null,null,null,null,null,null,"janvier",null,null,null,null,null,"janvier"]
[null,null,null,null,null,null,null,null,null,null,null,null,null,null,null,null,null,null,null,null,null,null,0,0,{"$error":"#DIV/0!"},null,null,null,null,null,null,null,null,null,"janvier",null,null,null,null,null,"janvier"]
[null,null,null,null,null,null,null,null,null,null,null,null,null,null,null,null,null,null,null,null,null,null,0,0,{"$error":"#DIV/0!"},null,null,null,null,null,null,null,null,null,"janvier",null,null,null,null,null,"janvier"]
[null,null,null,null,null,null,null,null,null,null,null,null,null,null,null,null,null,null,null,null,null,null,0,0,{"$error":"#DIV/0!"},null,null,null,null,null,null,null,null,null,"janvier",null,null,null,null,null,"janvier"]
[null,null,null,null,null,null,null,null,null,null,null,null,null,null,null,null,null,null,null,null,null,null,0,0,{"$error":"#DIV/0!"},null,null,null,null,null,null,null,null,null,"janvier",null,null,null,null,null,"janvier"]
[null,null,null,null,null,null,null,null,null,null,null,null,null,null,null,null,null,null,null,null,null,null,0,0,{"$error":"#DIV/0!"},null,null,null,null,null,null,null,null,null,"janvier",null,null,null,null,null,"janvier"]
[null,null,null,null,null,null,null,null,null,null,null,null,null,null,null,null,null,null,null,null,null,null,0,0,{"$error":"#DIV/0!"},null,null,null,null,null,null,null,null,null,"janvier",null,null,null,null,null,"janvier"]
[null,null,null,null,null,null,null,null,null,null,null,null,null,null,null,null,null,null,null,null,null,null,0,0,{"$error":"#DIV/0!"},null,null,null,null,null,null,null,null,null,"janvier",null,null,null,null,null,"janvier"]
[null,null,null,null,null,null,null,null,null,null,null,null,null,null,null,null,null,null,null,null,null,null,0,0,{"$error":"#DIV/0!"},null,null,null,null,null,null,null,null,null,"janvier",null,null,null,null,null,"janvier"]
[null,null,null,null,null,null,null,null,null,null,null,null,null,null,null,null,null,null,null,null,null,null,0,0,{"$error":"#DIV/0!"},null,null,null,null,null,null,null,null,null,"janvier",null,null,null,null,null,"janvier"]
[null,null,null,null,null,null,null,null,null,null,null,null,null,null,null,null,null,null,null,null,null,null,0,0,{"$error":"#DIV/0!"},null,null,null,null,null,null,null,null,null,"janvier",null,null,null,null,null,"janvier"]
[null,null,null,null,null,null,null,null,null,null,null,null,null,null,null,null,null,null,null,null,null,null,0,0,{"$error":"#DIV/0!"},null,null,null,null,null,null,null,null,null,"janvier",null,null,null,null,null,"janvier"]
[null,null,null,null,null,null,null,null,null,null,null,null,null,null,null,null,null,null,null,null,null,null,0,0,{"$error":"#DIV/0!"},null,null,null,null,null,null,null,null,null,"janvier",null,null,null,null,null,"janvier"]
[null,null,null,null,null,null,null,null,null,null,null,null,null,null,null,null,null,null,null,null,null,null,0,0,{"$error":"#DIV/0!"},null,null,null,null,null,null,null,null,null,"janvier",null,null,null,null,null,"janvier"]
[null,null,null,null,null,null,null,null,null,null,null,null,null,null,null,null,null,null,null,null,null,null,0,0,{"$error":"#DIV/0!"},null,null,null,null,null,null,null,null,null,"janvier",null,null,null,null,null,"janvier"]
[null,null,null,null,null,null,null,null,null,null,null,null,null,null,null,null,null,null,null,null,null,null,0,0,{"$error":"#DIV/0!"},null,null,null,null,null,null,null,null,null,"janvier",null,null,null,null,null,"janvier"]
[null,null,null,null,null,null,null,null,null,null,null,null,null,null,null,null,null,null,null,null,null,null,0,0,{"$error":"#DIV/0!"},null,null,null,null,null,null,null,null,null,"janvier",null,null,null,null,null,"janvier"]
[null,null,null,null,null,null,null,null,null,null,null,null,null,null,null,null,null,null,null,null,null,null,0,0,{"$error":"#DIV/0!"},null,null,null,null,null,null,null,null,null,"janvier",null,null,null,null,null,"janvier"]
[null,null,null,null,null,null,null,null,null,null,null,null,null,null,null,null,null,null,null,null,null,null,0,0,{"$error":"#DIV/0!"},null,null,null,null,null,null,null,null,null,"janvier",null,null,null,null,null,"janvier"]
[null,null,null,null,null,null,null,null,null,null,null,null,null,null,null,null,null,null,null,null,null,null,0,0,{"$error":"#DIV/0!"},null,null,null,null,null,null,null,null,null,"janvier",null,null,null,null,null,"janvier"]
[null,null,null,null,null,null,null,null,null,null,null,null,null,null,null,null,null,null,null,null,null,null,0,0,{"$error":"#DIV/0!"},null,null,null,null,null,null,null,null,null,"janvier",null,null,null,null,null,"janvier"]
[null,null,null,null,null,null,null,null,null,null,null,null,null,null,null,null,null,null,null,null,null,null,0,0,{"$error":"#DIV/0!"},null,null,null,null,null,null,null,null,null,"janvier",null,null,null,null,null,"janvier"]
[null,null,null,null,null,null,null,null,null,null,null,null,null,null,null,null,null,null,null,null,null,null,0,0,{"$error":"#DIV/0!"},null,null,null,null,null,null,null,null,null,"janvier",null,null,null,null,null,"janvier"]
[null,null,null,null,null,null,null,null,null,null,null,null,null,null,null,null,null,null,null,null,null,null,0,0,{"$error":"#DIV/0!"},null,null,null,null,null,null,null,null,null,"janvier",null,null,null,null,null,"janvier"]
[null,null,null,null,null,null,null,null,null,null,null,null,null,null,null,null,null,null,null,null,null,null,0,0,{"$error":"#DIV/0!"},null,null,null,null,null,null,null,null,null,"janvier",null,null,null,null,null,"janvier"]
[null,null,null,null,null,null,null,null,null,null,null,null,null,null,null,null,null,null,null,null,null,null,0,0,{"$error":"#DIV/0!"},null,null,null,null,null,null,null,null,null,"janvier",null,null,null,null,null,"janvier"]
[null,null,null,null,null,null,null,null,null,null,null,null,null,null,null,null,null,null,null,null,null,null,0,0,{"$error":"#DIV/0!"},null,null,null,null,null,null,null,null,null,"janvier",null,null,null,null,null,"janvier"]
[null,null,null,null,null,null,null,null,null,null,null,null,null,null,null,null,null,null,null,null,null,null,0,0,{"$error":"#DIV/0!"},null,null,null,null,null,null,null,null,null,"janvier",null,null,null,null,null,"janvier"]
[null,null,null,null,null,null,null,null,null,null,null,null,null,null,null,null,null,null,null,null,null,null,0,0,{"$error":"#DIV/0!"},null,null,null,null,null,null,null,null,null,"janvier",null,null,null,null,null,"janvier"]
[null,null,null,null,null,null,null,null,null,null,null,null,null,null,null,null,null,null,null,null,null,null,0,0,{"$error":"#DIV/0!"},null,null,null,null,null,null,null,null,null,"janvier",null,null,null,null,null,"janvier"]
[null,null,null,null,null,null,null,null,null,null,null,null,null,null,null,null,null,null,null,null,null,null,{"$f":"P195-Q195","v":0},{"$f":"Q195-U195","v":0},{"$f":"X195/Q195","v":{"$error":"#DIV/0!"}},null,null,null,null,null,null,null,null,null,{"$f":"TEXT(AH195,\"MMMM\")","v":"janvier"},null,null,null,null,null,{"$f":"TEXT(AN195,\"MMMM\")","v":"janvier"}]
[null,null,null,null,null,null,null,null,null,null,null,null,null,null,null,null,null,null,null,null,null,null,0,0,{"$error":"#DIV/0!"},null,null,null,null,null,null,null,null,null,"janvier",null,null,null,null,null,"janvier"]
[null,null,null,null,null,null,null,null,null,null,null,null,null,null,null,null,null,null,null,null,null,null,0,0,{"$error":"#DIV/0!"},null,null,null,null,null,null,null,null,null,"janvier",null,null,null,null,null,"janvier"]
[null,null,null,null,null,null,null,null,null,null,null,null,null,null,null,null,null,null,null,null,null,null,0,0,{"$error":"#DIV/0!"},null,null,null,null,null,null,null,null,null,"janvier",null,null,null,null,null,"janvier"]
[null,null,null,null,null,null,null,null,null,null,null,null,null,null,null,null,null,null,null,null,null,null,0,0,{"$error":"#DIV/0!"},null,null,null,null,null,null,null,null,null,"janvier",null,null,null,null,null,"janvier"]
[null,null,null,null,null,null,null,null,null,null,null,null,null,null,null,null,null,null,null,null,null,null,0,0,{"$error":"#DIV/0!"},null,null,null,null,null,null,null,null,null,"janvier",null,null,null,null,null,"janvier"]
[null,null,null,null,null,null,null,null,null,null,null,null,null,null,null,null,null,null,null,null,null,null,0,0,{"$error":"#DIV/0!"},null,null,null,null,null,null,null,null,null,"janvier",null,null,null,null,null,"janvier"]
[null,null,null,null,null,null,null,null,null,null,null,null,null,null,null,null,null,null,null,null,null,null,0,0,{"$error":"#DIV/0!"},null,null,null,null,null,null,null,null,null,"janvier",null,null,null,null,null,"janvier"]
[null,null,null,null,null,null,null,null,null,null,null,null,null,null,null,null,null,null,null,null,null,null,0,0,{"$error":"#DIV/0!"},null,null,null,null,null,null,null,null,null,"janvier",null,null,null,null,null,"janvier"]
[null,null,null,null,null,null,null,null,null,null,null,null,null,null,null,null,null,null,null,null,null,null,0,0,{"$error":"#DIV/0!"},null,null,null,null,null,null,null,null,null,"janvier",null,null,null,null,null,"janvier"]
[null,null,null,null,null,null,null,null,null,null,null,null,null,null,null,null,null,null,null,null,null,null,0,0,{"$error":"#DIV/0!"},null,null,null,null,null,null,null,null,null,"janvier",null,null,null,null,null,"janvier"]
[null,null,null,null,null,null,null,null,null,null,null,null,null,null,null,null,null,null,null,null,null,null,0,0,{"$error":"#DIV/0!"},null,null,null,null,null,null,null,null,null,"janvier",null,null,null,null,null,"janvier"]
[null,null,null,null,null,null,null,null,null,null,null,null,null,null,null,null,null,null,null,null,null,null,0,0,{"$error":"#DIV/0!"},null,null,null,null,null,null,null,null,null,"janvier",null,null,null,null,null,"janvier"]
[null,null,null,null,null,null,null,null,null,null,null,null,null,null,null,null,null,null,null,null,null,null,0,0,{"$error":"#DIV/0!"},null,null,null,null,null,null,null,null,null,"janvier",null,null,null,null,null,"janvier"]
[null,null,null,null,null,null,null,null,null,null,null,null,null,null,null,null,null,null,null,null,null,null,0,0,{"$error":"#DIV/0!"},null,null,null,null,null,null,null,null,null,"janvier",null,null,null,null,null,"janvier"]
[null,null,null,null,null,null,null,null,null,null,null,null,null,null,null,null,null,null,null,null,null,null,0,0,{"$error":"#DIV/0!"},null,null,null,null,null,null,null,null,null,"janvier",null,null,null,null,null,"janvier"]
[null,null,null,null,null,null,null,null,null,null,null,null,null,null,null,null,null,null,null,null,null,null,0,0,{"$error":"#DIV/0!"},null,null,null,null,null,null,null,null,null,"janvier",null,null,null,null,null,"janvier"]
[null,null,null,null,null,null,null,null,null,null,null,null,null,null,null,null,null,null,null,null,null,null,0,0,{"$error":"#DIV/0!"},null,null,null,null,null,null,null,null,null,"janvier",null,null,null,null,null,"janvier"]
[null,null,null,null,null,null,null,null,null,null,null,null,null,null,null,null,null,null,null,null,null,null,0,0,{"$error":"#DIV/0!"},null,null,null,null,null,null,null,null,null,"janvier",null,null,null,null,null,"janvier"]
[null,null,null,null,null,null,null,null,null,null,null,null,null,null,null,null,null,null,null,null,null,null,0,0,{"$error":"#DIV/0!"},null,null,null,null,null,null,null,null,null,"janvier",null,null,null,null,null,"janvier"]
[null,null,null,null,null,null,null,null,null,null,null,null,null,null,null,null,null,null,null,null,null,null,0,0,{"$error":"#DIV/0!"},null,null,null,null,null,null,null,null,null,"janvier",null,null,null,null,null,"janvier"]
[null,null,null,null,null,null,null,null,null,null,null,null,null,null,null,null,null,null,null,null,null,null,0,0,{"$error":"#DIV/0!"},null,null,null,null,null,null,null,null,null,"janvier",null,null,null,null,null,"janvier"]
[null,null,null,null,null,null,null,null,null,null,null,null,null,null,null,null,null,null,null,null,null,null,0,0,{"$error":"#DIV/0!"},null,null,null,null,null,null,null,null,null,"janvier",null,null,null,null,null,"janvier"]
[null,null,null,null,null,null,null,null,null,null,null,null,null,null,null,null,null,null,null,null,null,null,0,0,{"$error":"#DIV/0!"},null,null,null,null,null,null,null,null,null,"janvier",null,null,null,null,null,"janvier"]
[null,null,null,null,null,null,null,null,null,null,null,null,null,null,null,null,null,null,null,null,null,null,0,0,{"$error":"#DIV/0!"},null,null,null,null,null,null,null,null,null,"janvier",null,null,null,null,null,"janvier"]
[null,null,null,null,null,null,null,null,null,null,null,null,null,null,null,null,null,null,null,null,null,null,0,0,{"$error":"#DIV/0!"},null,null,null,null,null,null,null,null,null,"janvier",null,null,null,null,null,"janvier"]
[null,null,null,null,null,null,null,null,null,null,null,null,null,null,null,null,null,null,null,null,null,null,0,0,{"$error":"#DIV/0!"},null,null,null,null,null,null,null,null,null,"janvier",null,null,null,null,null,"janvier"]
[null,null,null,null,null,null,null,null,null,null,null,null,null,null,null,null,null,null,null,null,null,null,0,0,{"$error":"#DIV/0!"},null,null,null,null,null,null,null,null,null,"janvier",null,null,null,null,null,"janvier"]
[null,null,null,null,null,null,null,null,null,null,null,null,null,null,null,null,null,null,null,null,null,null,0,0,{"$error":"#DIV/0!"},null,null,null,null,null,null,null,null,null,"janvier",null,null,null,null,null,"janvier"]
[null,null,null,null,null,null,null,null,null,null,null,null,null,null,null,null,null,null,null,null,null,null,0,0,{"$error":"#DIV/0!"},null,null,null,null,null,null,null,null,null,"janvier",null,null,null,null,null,"janvier"]
[null,null,null,null,null,null,null,null,null,null,null,null,null,null,null,null,null,null,null,null,null,null,0,0,{"$error":"#DIV/0!"},null,null,null,null,null,null,null,null,null,"janvier",null,null,null,null,null,"janvier"]
[null,null,null,null,null,null,null,null,null,null,null,null,null,null,null,null,null,null,null,null,null,null,0,0,{"$error":"#DIV/0!"},null,null,null,null,null,null,null,null,null,"janvier",null,null,null,null,null,"janvier"]
[null,null,null,null,null,null,null,null,null,null,null,null,null,null,null,null,null,null,null,null,null,null,0,0,{"$error":"#DIV/0!"},null,null,null,null,null,null,null,null,null,"janvier",null,null,null,null,null,"janvier"]
[null,null,null,null,null,null,null,null,null,null,null,null,null,null,null,null,null,null,null,null,null,null,0,0,{"$error":"#DIV/0!"},null,null,null,null,null,null,null,null,null,"janvier",null,null,null,null,null,"janvier"]
[null,null,null,null,null,null,null,null,null,null,null,null,null,null,null,null,null,null,null,null,null,null,0,0,{"$error":"#DIV/0!"},null,null,null,null,null,null,null,null,null,"janvier",null,null,null,null,null,"janvier"]
[null,null,null,null,null,null,null,null,null,null,null,null,null,null,null,null,null,null,null,null,null,null,0,0,{"$error":"#DIV/0!"},null,null,null,null,null,null,null,null,null,"janvier",null,null,null,null,null,"janvier"]
[null,null,null,null,null,null,null,null,null,null,null,null,null,null,null,null,null,null,null,null,null,null,0,0,{"$error":"#DIV/0!"},null,null,null,null,null,null,null,null,null,"janvier",null,null,null,null,null,"janvier"]
[null,null,null,null,null,null,null,null,null,null,null,null,null,null,null,null,null,null,null,null,null,null,0,0,{"$error":"#DIV/0!"},null,null,null,null,null,null,null,null,null,"janvier",null,null,null,null,null,"janvier"]
[null,null,null,null,null,null,null,null,null,null,null,null,null,null,null,null,null,null,null,null,null,null,0,0,{"$error":"#DIV/0!"},null,null,null,null,null,null,null,null,null,"janvier",null,null,null,null,null,"janvier"]
[null,null,null,null,null,null,null,null,null,null,null,null,null,null,null,null,null,null,null,null,null,null,0,0,{"$error":"#DIV/0!"},null,null,null,null,null,null,null,null,null,"janvier",null,null,null,null,null,"janvier"]
[null,null,null,null,null,null,null,null,null,null,null,null,null,null,null,null,null,null,null,null,null,null,0,0,{"$error":"#DIV/0!"},null,null,null,null,null,null,null,null,null,"janvier",null,null,null,null,null,"janvier"]
[null,null,null,null,null,null,null,null,null,null,null,null,null,null,null,null,null,null,null,null,null,null,0,0,{"$error":"#DIV/0!"},null,null,null,null,null,null,null,null,null,"janvier",null,null,null,null,null,"janvier"]
[null,null,null,null,null,null,null,null,null,null,null,null,null,null,null,null,null,null,null,null,null,null,0,0,{"$error":"#DIV/0!"},null,null,null,null,null,null,null,null,null,"janvier",null,null,null,null,null,"janvier"]
[null,null,null,null,null,null,null,null,null,null,null,null,null,null,null,null,null,null,null,null,null,null,0,0,{"$error":"#DIV/0!"},null,null,null,null,null,null,null,null,null,"janvier",null,null,null,null,null,"janvier"]
[null,null,null,null,null,null,null,null,null,null,null,null,null,null,null,null,null,null,null,null,null,null,0,0,{"$error":"#DIV/0!"},null,null,null,null,null,null,null,null,null,"janvier",null,null,null,null,null,"janvier"]
[null,null,null,null,null,null,null,null,null,null,null,null,null,null,null,null,null,null,null,null,null,null,0,0,{"$error":"#DIV/0!"},null,null,null,null,null,null,null,null,null,"janvier",null,null,null,null,null,"janvier"]
[null,null,null,null,null,null,null,null,null,null,null,null,null,null,null,null,null,null,null,null,null,null,0,0,{"$error":"#DIV/0!"},null,null,null,null,null,null,null,null,null,"janvier",null,null,null,null,null,"janvier"]
[null,null,null,null,null,null,null,null,null,null,null,null,null,null,null,null,null,null,null,null,null,null,0,0,{"$error":"#DIV/0!"},null,null,null,null,null,null,null,null,null,"janvier",null,null,null,null,null,"janvier"]
[null,null,null,null,null,null,null,null,null,null,null,null,null,null,null,null,null,null,null,null,null,null,0,0,{"$error":"#DIV/0!"},null,null,null,null,null,null,null,null,null,"janvier",null,null,null,null,null,"janvier"]
[null,null,null,null,null,null,null,null,null,null,null,null,null,null,null,null,null,null,null,null,null,null,0,0,{"$error":"#DIV/0!"},null,null,null,null,null,null,null,null,null,"janvier",null,null,null,null,null,"janvier"]
[null,null,null,null,null,null,null,null,null,null,null,null,null,null,null,null,null,null,null,null,null,null,0,0,{"$error":"#DIV/0!"},null,null,null,null,null,null,null,null,null,"janvier",null,null,null,null,null,"janvier"]
[null,null,null,null,null,null,null,null,null,null,null,null,null,null,null,null,null,null,null,null,null,null,0,0,{"$error":"#DIV/0!"},null,null,null,null,null,null,null,null,null,"janvier",null,null,null,null,null,"janvier"]
[null,null,null,null,null,null,null,null,null,null,null,null,null,null,null,null,null,null,null,null,null,null,0,0,{"$error":"#DIV/0!"},null,null,null,null,null,null,null,null,null,"janvier",null,null,null,null,null,"janvier"]
[null,null,null,null,null,null,null,null,null,null,null,null,null,null,null,null,null,null,null,null,null,null,0,0,{"$error":"#DIV/0!"},null,null,null,null,null,null,null,null,null,"janvier",null,null,null,null,null,"janvier"]
[null,null,null,null,null,null,null,null,null,null,null,null,null,null,null,null,null,null,null,null,null,null,0,0,{"$error":"#DIV/0!"},null,null,null,null,null,null,null,null,null,"janvier",null,null,null,null,null,"janvier"]
[null,null,null,null,null,null,null,null,null,null,null,null,null,null,null,null,null,null,null,null,null,null,0,0,{"$error":"#DIV/0!"},null,null,null,null,null,null,null,null,null,"janvier",null,null,null,null,null,"janvier"]
[null,null,null,null,null,null,null,null,null,null,null,null,null,null,null,null,null,null,null,null,null,null,0,0,{"$error":"#DIV/0!"},null,null,null,null,null,null,null,null,null,"janvier",null,null,null,null,null,"janvier"]
[null,null,null,null,null,null,null,null,null,null,null,null,null,null,null,null,null,null,null,null,null,null,0,0,{"$error":"#DIV/0!"},null,null,null,null,null,null,null,null,null,"janvier",null,null,null,null,null,"janvier"]
[null,null,null,null,null,null,null,null,null,null,null,null,null,null,null,null,null,null,null,null,null,null,0,0,{"$error":"#DIV/0!"},null,null,null,null,null,null,null,null,null,"janvier",null,null,null,null,null,"janvier"]
[null,null,null,null,null,null,null,null,null,null,null,null,null,null,null,null,null,null,null,null,null,null,0,0,{"$error":"#DIV/0!"},null,null,null,null,null,null,null,null,null,"janvier",null,null,null,null,null,"janvier"]
[null,null,null,null,null,null,null,null,null,null,null,null,null,null,null,null,null,null,null,null,null,null,0,0,{"$error":"#DIV/0!"},null,null,null,null,null,null,null,null,null,"janvier",null,null,null,null,null,"janvier"]
[null,null,null,null,null,null,null,null,null,null,null,null,null,null,null,null,null,null,null,null,null,null,0,0,{"$error":"#DIV/0!"},null,null,null,null,null,null,null,null,null,"janvier",null,null,null,null,null,"janvier"]
[null,null,null,null,null,null,null,null,null,null,null,null,null,null,null,null,null,null,null,null,null,null,0,0,{"$error":"#DIV/0!"},null,null,null,null,null,null,null,null,null,"janvier",null,null,null,null,null,"janvier"]
[null,null,null,null,null,null,null,null,null,null,null,null,null,null,null,null,null,null,null,null,null,null,0,0,{"$error":"#DIV/0!"},null,null,null,null,null,null,null,null,null,"janvier",null,null,null,null,null,"janvier"]
[null,null,null,null,null,null,null,null,null,null,null,null,null,null,null,null,null,null,null,null,null,null,{"$f":"P259-Q259","v":0},{"$f":"Q259-U259","v":0},{"$f":"X259/Q259","v":{"$error":"#DIV/0!"}},null,null,null,null,null,null,null,null,null,{"$f":"TEXT(AH259,\"MMMM\")","v":"janvier"},null,null,null,null,null,{"$f":"TEXT(AN259,\"MMMM\")","v":"janvier"}]
[null,null,null,null,null,null,null,null,null,null,null,null,null,null,null,null,null,null,null,null,null,null,0,0,{"$error":"#DIV/0!"},null,null,null,null,null,null,null,null,null,"janvier",null,null,null,null,null,"janvier"]
[null,null,null,null,null,null,null,null,null,null,null,null,null,null,null,null,null,null,null,null,null,null,0,0,{"$error":"#DIV/0!"},null,null,null,null,null,null,null,null,null,"janvier",null,null,null,null,null,"janvier"]
[null,null,null,null,null,null,null,null,null,null,null,null,null,null,null,null,null,null,null,null,null,null,0,0,{"$error":"#DIV/0!"},null,null,null,null,null,null,null,null,null,"janvier",null,null,null,null,null,"janvier"]
[null,null,null,null,null,null,null,null,null,null,null,null,null,null,null,null,null,null,null,null,null,null,0,0,{"$error":"#DIV/0!"},null,null,null,null,null,null,null,null,null,"janvier",null,null,null,null,null,"janvier"]
[null,null,null,null,null,null,null,null,null,null,null,null,null,null,null,null,null,null,null,null,null,null,0,0,{"$error":"#DIV/0!"},null,null,null,null,null,null,null,null,null,"janvier",null,null,null,null,null,"janvier"]
[null,null,null,null,null,null,null,null,null,null,null,null,null,null,null,null,null,null,null,null,null,null,0,0,{"$error":"#DIV/0!"},null,null,null,null,null,null,null,null,null,"janvier",null,null,null,null,null,"janvier"]
[null,null,null,null,null,null,null,null,null,null,null,null,null,null,null,null,null,null,null,null,null,null,0,0,{"$error":"#DIV/0!"},null,null,null,null,null,null,null,null,null,"janvier",null,null,null,null,null,"janvier"]
[null,null,null,null,null,null,null,null,null,null,null,null,null,null,null,null,null,null,null,null,null,null,0,0,{"$error":"#DIV/0!"},null,null,null,null,null,null,null,null,null,"janvier",null,null,null,null,null,"janvier"]
[null,null,null,null,null,null,null,null,null,null,null,null,null,null,null,null,null,null,null,null,null,null,0,0,{"$error":"#DIV/0!"},null,null,null,null,null,null,null,null,null,"janvier",null,null,null,null,null,"janvier"]
[null,null,null,null,null,null,null,null,null,null,null,null,null,null,null,null,null,null,null,null,null,null,0,0,{"$error":"#DIV/0!"},null,null,null,null,null,null,null,null,null,"janvier",null,null,null,null,null,"janvier"]
[null,null,null,null,null,null,null,null,null,null,null,null,null,null,null,null,null,null,null,null,null,null,0,0,{"$error":"#DIV/0!"},null,null,null,null,null,null,null,null,null,"janvier",null,null,null,null,null,"janvier"]
[null,null,null,null,null,null,null,null,null,null,null,null,null,null,null,null,null,null,null,null,null,null,0,0,{"$error":"#DIV/0!"},null,null,null,null,null,null,null,null,null,"janvier",null,null,null,null,null,"janvier"]
[null,null,null,null,null,null,null,null,null,null,null,null,null,null,null,null,null,null,null,null,null,null,0,0,{"$error":"#DIV/0!"},null,null,null,null,null,null,null,null,null,"janvier",null,null,null,null,null,"janvier"]
[null,null,null,null,null,null,null,null,null,null,null,null,null,null,null,null,null,null,null,null,null,null,0,0,{"$error":"#DIV/0!"},null,null,null,null,null,null,null,null,null,"janvier",null,null,null,null,null,"janvier"]
[null,null,null,null,null,null,null,null,null,null,null,null,null,null,null,null,null,null,null,null,null,null,0,0,{"$error":"#DIV/0!"},null,null,null,null,null,null,null,null,null,"janvier",null,null,null,null,null,"janvier"]
[null,null,null,null,null,null,null,null,null,null,null,null,null,null,null,null,null,null,null,null,null,null,0,0,{"$error":"#DIV/0!"},null,null,null,null,null,null,null,null,null,"janvier",null,null,null,null,null,"janvier"]
[null,null,null,null,null,null,null,null,null,null,null,null,null,null,null,null,null,null,null,null,null,null,0,0,{"$error":"#DIV/0!"},null,null,null,null,null,null,null,null,null,"janvier",null,null,null,null,null,"janvier"]
[null,null,null,null,null,null,null,null,null,null,null,null,null,null,null,null,null,null,null,null,null,null,0,0,{"$error":"#DIV/0!"},null,null,null,null,null,null,null,null,null,"janvier",null,null,null,null,null,"janvier"]
[null,null,null,null,null,null,null,null,null,null,null,null,null,null,null,null,null,null,null,null,null,null,0,0,{"$error":"#DIV/0!"},null,null,null,null,null,null,null,null,null,"janvier",null,null,null,null,null,"janvier"]
[null,null,null,null,null,null,null,null,null,null,null,null,null,null,null,null,null,null,null,null,null,null,0,0,{"$error":"#DIV/0!"},null,null,null,null,null,null,null,null,null,"janvier",null,null,null,null,null,"janvier"]
[null,null,null,null,null,null,null,null,null,null,null,null,null,null,null,null,null,null,null,null,null,null,0,0,{"$error":"#DIV/0!"},null,null,null,null,null,null,null,null,null,"janvier",null,null,null,null,null,"janvier"]
[null,null,null,null,null,null,null,null,null,null,null,null,null,null,null,null,null,null,null,null,null,null,0,0,{"$error":"#DIV/0!"},null,null,null,null,null,null,null,null,null,"janvier",null,null,null,null,null,"janvier"]
[null,null,null,null,null,null,null,null,null,null,null,null,null,null,null,null,null,null,null,null,null,null,0,0,{"$error":"#DIV/0!"},null,null,null,null,null,null,null,null,null,"janvier",null,null,null,null,null,"janvier"]
[null,null,null,null,null,null,null,null,null,null,null,null,null,null,null,null,null,null,null,null,null,null,0,0,{"$error":"#DIV/0!"},null,null,null,null,null,null,null,null,null,"janvier",null,null,null,null,null,"janvier"]
[null,null,null,null,null,null,null,null,null,null,null,null,null,null,null,null,null,null,null,null,null,null,0,0,{"$error":"#DIV/0!"},null,null,null,null,null,null,null,null,null,"janvier",null,null,null,null,null,"janvier"]
[null,null,null,null,null,null,null,null,null,null,null,null,null,null,null,null,null,null,null,null,null,null,0,0,{"$error":"#DIV/0!"},null,null,null,null,null,null,null,null,null,"janvier",null,null,null,null,null,"janvier"]
[null,null,null,null,null,null,null,null,null,null,null,null,null,null,null,null,null,null,null,null,null,null,0,0,{"$error":"#DIV/0!"},null,null,null,null,null,null,null,null,null,"janvier",null,null,null,null,null,"janvier"]
[null,null,null,null,null,null,null,null,null,null,null,null,null,null,null,null,null,null,null,null,null,null,0,0,{"$error":"#DIV/0!"},null,null,null,null,null,null,null,null,null,"janvier",null,null,null,null,null,"janvier"]
[null,null,null,null,null,null,null,null,null,null,null,null,null,null,null,null,null,null,null,null,null,null,0,0,{"$error":"#DIV/0!"},null,null,null,null,null,null,null,null,null,"janvier",null,null,null,null,null,"janvier"]
[null,null,null,null,null,null,null,null,null,null,null,null,null,null,null,null,null,null,null,null,null,null,0,0,{"$error":"#DIV/0!"},null,null,null,null,null,null,null,null,null,"janvier",null,null,null,null,null,"janvier"]
[null,null,null,null,null,null,null,null,null,null,null,null,null,null,null,null,null,null,null,null,null,null,0,0,{"$error":"#DIV/0!"},null,null,null,null,null,null,null,null,null,"janvier",null,null,null,null,null,"janvier"]
[null,null,null,null,null,null,null,null,null,null,null,null,null,null,null,null,null,null,null,null,null,null,0,0,{"$error":"#DIV/0!"},null,null,null,null,null,null,null,null,null,"janvier",null,null,null,null,null,"janvier"]
[null,null,null,null,null,null,null,null,null,null,null,null,null,null,null,null,null,null,null,null,null,null,0,0,{"$error":"#DIV/0!"},null,null,null,null,null,null,null,null,null,"janvier",null,null,null,null,null,"janvier"]
[null,null,null,null,null,null,null,null,null,null,null,null,null,null,null,null,null,null,null,null,null,null,0,0,{"$error":"#DIV/0!"},null,null,null,null,null,null,null,null,null,"janvier",null,null,null,null,null,"janvier"]
[null,null,null,null,null,null,null,null,null,null,null,null,null,null,null,null,null,null,null,null,null,null,0,0,{"$error":"#DIV/0!"},null,null,null,null,null,null,null,null,null,"janvier",null,null,null,null,null,"janvier"]
[null,null,null,null,null,null,null,null,null,null,null,null,null,null,null,null,null,null,null,null,null,null,0,0,{"$error":"#DIV/0!"},null,null,null,null,null,null,null,null,null,"janvier",null,null,null,null,null,"janvier"]
[null,null,null,null,null,null,null,null,null,null,null,null,null,null,null,null,null,null,null,null,null,null,0,0,{"$error":"#DIV/0!"},null,null,null,null,null,null,null,null,null,"janvier",null,null,null,null,null,"janvier"]
[null,null,null,null,null,null,null,null,null,null,null,null,null,null,null,null,null,null,null,null,null,null,0,0,{"$error":"#DIV/0!"},null,null,null,null,null,null,null,null,null,"janvier",null,null,null,null,null,"janvier"]
[null,null,null,null,null,null,null,null,null,null,null,null,null,null,null,null,null,null,null,null,null,null,0,0,{"$error":"#DIV/0!"},null,null,null,null,null,null,null,null,null,"janvier",null,null,null,null,null,"janvier"]
[null,null,null,null,null,null,null,null,null,null,null,null,null,null,null,null,null,null,null,null,null,null,0,0,{"$error":"#DIV/0!"},null,null,null,null,null,null,null,null,null,"janvier",null,null,null,null,null,"janvier"]
[null,null,null,null,null,null,null,null,null,null,null,null,null,null,null,null,null,null,null,null,null,null,0,0,{"$error":"#DIV/0!"},null,null,null,null,null,null,null,null,null,"janvier",null,null,null,null,null,"janvier"]
[null,null,null,null,null,null,null,null,null,null,null,null,null,null,null,null,null,null,null,null,null,null,0,0,{"$error":"#DIV/0!"},null,null,null,null,null,null,null,null,null,"janvier",null,null,null,null,null,"janvier"]
[null,null,null,null,null,null,null,null,null,null,null,null,null,null,null,null,null,null,null,null,null,null,0,0,{"$error":"#DIV/0!"},null,null,null,null,null,null,null,null,null,"janvier",null,null,null,null,null,"janvier"]
[null,null,null,null,null,null,null,null,null,null,null,null,null,null,null,null,null,null,null,null,null,null,0,0,{"$error":"#DIV/0!"},null,null,null,null,null,null,null,null,null,"janvier",null,null,null,null,null,"janvier"]
[null,null,null,null,null,null,null,null,null,null,null,null,null,null,null,null,null,null,null,null,null,null,0,0,{"$error":"#DIV/0!"},null,null,null,null,null,null,null,null,null,"janvier",null,null,null,null,null,"janvier"]
[null,null,null,null,null,null,null,null,null,null,null,null,null,null,null,null,null,null,null,null,null,null,0,0,{"$error":"#DIV/0!"},null,null,null,null,null,null,null,null,null,"janvier",null,null,null,null,null,"janvier"]
[null,null,null,null,null,null,null,null,null,null,null,null,null,null,null,null,null,null,null,null,null,null,0,0,{"$error":"#DIV/0!"},null,null,null,null,null,null,null,null,null,"janvier",null,null,null,null,null,"janvier"]
[null,null,null,null,null,null,null,null,null,null,null,null,null,null,null,null,null,null,null,null,null,null,0,0,{"$error":"#DIV/0!"},null,null,null,null,null,null,null,null,null,"janvier",null,null,null,null,null,"janvier"]
[null,null,null,null,null,null,null,null,null,null,null,null,null,null,null,null,null,null,null,null,null,null,0,0,{"$error":"#DIV/0!"},null,null,null,null,null,null,null,null,null,"janvier",null,null,null,null,null,"janvier"]
[null,null,null,null,null,null,null,null,null,null,null,null,null,null,null,null,null,null,null,null,null,null,0,0,{"$error":"#DIV/0!"},null,null,null,null,null,null,null,null,null,"janvier",null,null,null,null,null,"janvier"]
[null,null,null,null,null,null,null,null,null,null,null,null,null,null,null,null,null,null,null,null,null,null,0,0,{"$error":"#DIV/0!"},null,null,null,null,null,null,null,null,null,"janvier",null,null,null,null,null,"janvier"]
[null,null,null,null,null,null,null,null,null,null,null,null,null,null,null,null,null,null,null,null,null,null,0,0,{"$error":"#DIV/0!"},null,null,null,null,null,null,null,null,null,"janvier",null,null,null,null,null,"janvier"]
[null,null,null,null,null,null,null,null,null,null,null,null,null,null,null,null,null,null,null,null,null,null,0,0,{"$error":"#DIV/0!"},null,null,null,null,null,null,null,null,null,"janvier",null,null,null,null,null,"janvier"]
[null,null,null,null,null,null,null,null,null,null,null,null,null,null,null,null,null,null,null,null,null,null,0,0,{"$error":"#DIV/0!"},null,null,null,null,null,null,null,null,null,"janvier",null,null,null,null,null,"janvier"]
[null,null,null,null,null,null,null,null,null,null,null,null,null,null,null,null,null,null,null,null,null,null,0,0,{"$error":"#DIV/0!"},null,null,null,null,null,null,null,null,null,"janvier",null,null,null,null,null,"janvier"]
[null,null,null,null,null,null,null,null,null,null,null,null,null,null,null,null,null,null,null,null,null,null,0,0,{"$error":"#DIV/0!"},null,null,null,null,null,null,null,null,null,"janvier",null,null,null,null,null,"janvier"]
[null,null,null,null,null,null,null,null,null,null,null,null,null,null,null,null,null,null,null,null,null,null,0,0,{"$error":"#DIV/0!"},null,null,null,null,null,null,null,null,null,"janvier",null,null,null,null,null,"janvier"]
[null,null,null,null,null,null,null,null,null,null,null,null,null,null,null,null,null,null,null,null,null,null,0,0,{"$error":"#DIV/0!"},null,null,null,null,null,null,null,null,null,"janvier",null,null,null,null,null,"janvier"]
[null,null,null,null,null,null,null,null,null,null,null,null,null,null,null,null,null,null,null,null,null,null,0,0,{"$error":"#DIV/0!"},null,null,null,null,null,null,null,null,null,"janvier",null,null,null,null,null,"janvier"]
[null,null,null,null,null,null,null,null,null,null,null,null,null,null,null,null,null,null,null,null,null,null,0,0,{"$error":"#DIV/0!"},null,null,null,null,null,null,null,null,null,"janvier",null,null,null,null,null,"janvier"]
[null,null,null,null,null,null,null,null,null,null,null,null,null,null,null,null,null,null,null,null,null,null,0,0,{"$error":"#DIV/0!"},null,null,null,null,null,null,null,null,null,"janvier",null,null,null,null,null,"janvier"]
[null,null,null,null,null,null,null,null,null,null,null,null,null,null,null,null,null,null,null,null,null,null,0,0,{"$error":"#DIV/0!"},null,null,null,null,null,null,null,null,null,"janvier",null,null,null,null,null,"janvier"]
[null,null,null,null,null,null,null,null,null,null,null,null,null,null,null,null,null,null,null,null,null,null,0,0,{"$error":"#DIV/0!"},null,null,null,null,null,null,null,null,null,"janvier",null,null,null,null,null,"janvier"]
[null,null,null,null,null,null,null,null,null,null,null,null,null,null,null,null,null,null,null,null,null,null,{"$f":"P323-Q323","v":0},{"$f":"Q323-U323","v":0},{"$f":"X323/Q323","v":{"$error":"#DIV/0!"}},null,null,null,null,null,null,null,null,null,{"$f":"TEXT(AH323,\"MMMM\")","v":"janvier"},null,null,null,null,null,{"$f":"TEXT(AN323,\"MMMM\")","v":"janvier"}]
[null,null,null,null,null,null,null,null,null,null,null,null,null,null,null,null,null,null,null,null,null,null,0,0,{"$error":"#DIV/0!"},null,null,null,null,null,null,null,null,null,"janvier",null,null,null,null,null,"janvier"]
[null,null,null,null,null,null,null,null,null,null,null,null,null,null,null,null,null,null,null,null,null,null,0,0,{"$error":"#DIV/0!"},null,null,null,null,null,null,null,null,null,"janvier",null,null,null,null,null,"janvier"]
[null,null,null,null,null,null,null,null,null,null,null,null,null,null,null,null,null,null,null,null,null,null,0,0,{"$error":"#DIV/0!"},null,null,null,null,null,null,null,null,null,"janvier",null,null,null,null,null,"janvier"]
[null,null,null,null,null,null,null,null,null,null,null,null,null,null,null,null,null,null,null,null,null,null,0,0,{"$error":"#DIV/0!"},null,null,null,null,null,null,null,null,null,"janvier",null,null,null,null,null,"janvier"]
[null,null,null,null,null,null,null,null,null,null,null,null,null,null,null,null,null,null,null,null,null,null,0,0,{"$error":"#DIV/0!"},null,null,null,null,null,null,null,null,null,"janvier",null,null,null,null,null,"janvier"]
[null,null,null,null,null,null,null,null,null,null,null,null,null,null,null,null,null,null,null,null,null,null,0,0,{"$error":"#DIV/0!"},null,null,null,null,null,null,null,null,null,"janvier",null,null,null,null,null,"janvier"]
[null,null,null,null,null,null,null,null,null,null,null,null,null,null,null,null,null,null,null,null,null,null,0,0,{"$error":"#DIV/0!"},null,null,null,null,null,null,null,null,null,"janvier",null,null,null,null,null,"janvier"]
[null,null,null,null,null,null,null,null,null,null,null,null,null,null,null,null,null,null,null,null,null,null,0,0,{"$error":"#DIV/0!"},null,null,null,null,null,null,null,null,null,"janvier",null,null,null,null,null,"janvier"]
[null,null,null,null,null,null,null,null,null,null,null,null,null,null,null,null,null,null,null,null,null,null,0,0,{"$error":"#DIV/0!"},null,null,null,null,null,null,null,null,null,"janvier",null,null,null,null,null,"janvier"]
[null,null,null,null,null,null,null,null,null,null,null,null,null,null,null,null,null,null,null,null,null,null,0,0,{"$error":"#DIV/0!"},null,null,null,null,null,null,null,null,null,"janvier",null,null,null,null,null,"janvier"]
[null,null,null,null,null,null,null,null,null,null,null,null,null,null,null,null,null,null,null,null,null,null,0,0,{"$error":"#DIV/0!"},null,null,null,null,null,null,null,null,null,"janvier",null,null,null,null,null,"janvier"]
[null,null,null,null,null,null,null,null,null,null,null,null,null,null,null,null,null,null,null,null,null,null,0,0,{"$error":"#DIV/0!"},null,null,null,null,null,null,null,null,null,"janvier",null,null,null,null,null,"janvier"]
[null,null,null,null,null,null,null,null,null,null,null,null,null,null,null,null,null,null,null,null,null,null,0,0,{"$error":"#DIV/0!"},null,null,null,null,null,null,null,null,null,"janvier",null,null,null,null,null,"janvier"]
[null,null,null,null,null,null,null,null,null,null,null,null,null,null,null,null,null,null,null,null,null,null,0,0,{"$error":"#DIV/0!"},null,null,null,null,null,null,null,null,null,"janvier",null,null,null,null,null,"janvier"]
[null,null,null,null,null,null,null,null,null,null,null,null,null,null,null,null,null,null,null,null,null,null,0,0,{"$error":"#DIV/0!"},null,null,null,null,null,null,null,null,null,"janvier",null,null,null,null,null,"janvier"]
[null,null,null,null,null,null,null,null,null,null,null,null,null,null,null,null,null,null,null,null,null,null,0,0,{"$error":"#DIV/0!"},null,null,null,null,null,null,null,null,null,"janvier",null,null,null,null,null,"janvier"]
[null,null,null,null,null,null,null,null,null,null,null,null,null,null,null,null,null,null,null,null,null,null,0,0,{"$error":"#DIV/0!"},null,null,null,null,null,null,null,null,null,"janvier",null,null,null,null,null,"janvier"]
[null,null,null,null,null,null,null,null,null,null,null,null,null,null,null,null,null,null,null,null,null,null,0,0,{"$error":"#DIV/0!"},null,null,null,null,null,null,null,null,null,"janvier",null,null,null,null,null,"janvier"]
[null,null,null,null,null,null,null,null,null,null,null,null,null,null,null,null,null,null,null,null,null,null,0,0,{"$error":"#DIV/0!"},null,null,null,null,null,null,null,null,null,"janvier",null,null,null,null,null,"janvier"]
[null,null,null,null,null,null,null,null,null,null,null,null,null,null,null,null,null,null,null,null,null,null,0,0,{"$error":"#DIV/0!"},null,null,null,null,null,null,null,null,null,"janvier",null,null,null,null,null,"janvier"]
[null,null,null,null,null,null,null,null,null,null,null,null,null,null,null,null,null,null,null,null,null,null,0,0,{"$error":"#DIV/0!"},null,null,null,null,null,null,null,null,null,"janvier",null,null,null,null,null,"janvier"]
[null,null,null,null,null,null,null,null,null,null,null,null,null,null,null,null,null,null,null,null,null,null,0,0,{"$error":"#DIV/0!"},null,null,null,null,null,null,null,null,null,"janvier",null,null,null,null,null,"janvier"]
[null,null,null,null,null,null,null,null,null,null,null,null,null,null,null,null,null,null,null,null,null,null,0,0,{"$error":"#DIV/0!"},null,null,null,null,null,null,null,null,null,"janvier",null,null,null,null,null,"janvier"]
[null,null,null,null,null,null,null,null,null,null,null,null,null,null,null,null,null,null,null,null,null,null,0,0,{"$error":"#DIV/0!"},null,null,null,null,null,null,null,null,null,"janvier",null,null,null,null,null,"janvier"]
[null,null,null,null,null,null,null,null,null,null,null,null,null,null,null,null,null,null,null,null,null,null,0,0,{"$error":"#DIV/0!"},null,null,null,null,null,null,null,null,null,"janvier",null,null,null,null,null,"janvier"]
[null,null,null,null,null,null,null,null,null,null,null,null,null,null,null,null,null,null,null,null,null,null,0,0,{"$error":"#DIV/0!"},null,null,null,null,null,null,null,null,null,"janvier",null,null,null,null,null,"janvier"]
[null,null,null,null,null,null,null,null,null,null,null,null,null,null,null,null,null,null,null,null,null,null,0,0,{"$error":"#DIV/0!"},null,null,null,null,null,null,null,null,null,"janvier",null,null,null,null,null,"janvier"]
[null,null,null,null,null,null,null,null,null,null,null,null,null,null,null,null,null,null,null,null,null,null,0,0,{"$error":"#DIV/0!"},null,null,null,null,null,null,null,null,null,"janvier",null,null,null,null,null,"janvier"]
[null,null,null,null,null,null,null,null,null,null,null,null,null,null,null,null,null,null,null,null,null,null,0,0,{"$error":"#DIV/0!"},null,null,null,null,null,null,null,null,null,"janvier",null,null,null,null,null,"janvier"]
[null,null,null,null,null,null,null,null,null,null,null,null,null,null,null,null,null,null,null,null,null,null,0,0,{"$error":"#DIV/0!"},null,null,null,null,null,null,null,null,null,"janvier",null,null,null,null,null,"janvier"]
[null,null,null,null,null,null,null,null,null,null,null,null,null,null,null,null,null,null,null,null,null,null,0,0,{"$error":"#DIV/0!"},null,null,null,null,null,null,null,null,null,"janvier",null,null,null,null,null,"janvier"]
[null,null,null,null,null,null,null,null,null,null,null,null,null,null,null,null,null,null,null,null,null,null,0,0,{"$error":"#DIV/0!"},null,null,null,null,null,null,null,null,null,"janvier",null,null,null,null,null,"janvier"]
[null,null,null,null,null,null,null,null,null,null,null,null,null,null,null,null,null,null,null,null,null,null,0,0,{"$error":"#DIV/0!"},null,null,null,null,null,null,null,null,null,"janvier",null,null,null,null,null,"janvier"]
[null,null,null,null,null,null,null,null,null,null,null,null,null,null,null,null,null,null,null,null,null,null,0,0,{"$error":"#DIV/0!"},null,null,null,null,null,null,null,null,null,"janvier",null,null,null,null,null,"janvier"]
[null,null,null,null,null,null,null,null,null,null,null,null,null,null,null,null,null,null,null,null,null,null,0,0,{"$error":"#DIV/0!"},null,null,null,null,null,null,null,null,null,"janvier",null,null,null,null,null,"janvier"]
[null,null,null,null,null,null,null,null,null,null,null,null,null,null,null,null,null,null,null,null,null,null,0,0,{"$error":"#DIV/0!"},null,null,null,null,null,null,null,null,null,"janvier",null,null,null,null,null,"janvier"]
[null,null,null,null,null,null,null,null,null,null,null,null,null,null,null,null,null,null,null,null,null,null,0,0,{"$error":"#DIV/0!"},null,null,null,null,null,null,null,null,null,"janvier",null,null,null,null,null,"janvier"]
[null,null,null,null,null,null,null,null,null,null,null,null,null,null,null,null,null,null,null,null,null,null,0,0,{"$error":"#DIV/0!"},null,null,null,null,null,null,null,null,null,"janvier",null,null,null,null,null,"janvier"]
[null,null,null,null,null,null,null,null,null,null,null,null,null,null,null,null,null,null,null,null,null,null,0,0,{"$error":"#DIV/0!"},null,null,null,null,null,null,null,null,null,"janvier",null,null,null,null,null,"janvier"]
[null,null,null,null,null,null,null,null,null,null,null,null,null,null,null,null,null,null,null,null,null,null,0,0,{"$error":"#DIV/0!"},null,null,null,null,null,null,null,null,null,"janvier",null,null,null,null,null,"janvier"]
[null,null,null,null,null,null,null,null,null,null,null,null,null,null,null,null,null,null,null,null,null,null,0,0,{"$error":"#DIV/0!"},null,null,null,null,null,null,null,null,null,"janvier",null,null,null,null,null,"janvier"]
[null,null,null,null,null,null,null,null,null,null,null,null,null,null,null,null,null,null,null,null,null,null,0,0,{"$error":"#DIV/0!"},null,null,null,null,null,null,null,null,null,"janvier",null,null,null,null,null,"janvier"]
[null,null,null,null,null,null,null,null,null,null,null,null,null,null,null,null,null,null,null,null,null,null,0,0,{"$error":"#DIV/0!"},null,null,null,null,null,null,null,null,null,"janvier",null,null,null,null,null,"janvier"]
[null,null,null,null,null,null,null,null,null,null,null,null,null,null,null,null,null,null,null,null,null,null,0,0,{"$error":"#DIV/0!"},null,null,null,null,null,null,null,null,null,"janvier",null,null,null,null,null,"janvier"]
[null,null,null,null,null,null,null,null,null,null,null,null,null,null,null,null,null,null,null,null,null,null,0,0,{"$error":"#DIV/0!"},null,null,null,null,null,null,null,null,null,"janvier",null,null,null,null,null,"janvier"]
[null,null,null,null,null,null,null,null,null,null,null,null,null,null,null,null,null,null,null,null,null,null,0,0,{"$error":"#DIV/0!"},null,null,null,null,null,null,null,null,null,"janvier",null,null,null,null,null,"janvier"]
[null,null,null,null,null,null,null,null,null,null,null,null,null,null,null,null,null,null,null,null,null,null,0,0,{"$error":"#DIV/0!"},null,null,null,null,null,null,null,null,null,"janvier",null,null,null,null,null,"janvier"]
[null,null,null,null,null,null,null,null,null,null,null,null,null,null,null,null,null,null,null,null,null,null,0,0,{"$error":"#DIV/0!"},null,null,null,null,null,null,null,null,null,"janvier",null,null,null,null,null,"janvier"]
[null,null,null,null,null,null,null,null,null,null,null,null,null,null,null,null,null,null,null,null,null,null,0,0,{"$error":"#DIV/0!"},null,null,null,null,null,null,null,null,null,"janvier",null,null,null,null,null,"janvier"]
[null,null,null,null,null,null,null,null,null,null,null,null,null,null,null,null,null,null,null,null,null,null,0,0,{"$error":"#DIV/0!"},null,null,null,null,null,null,null,null,null,"janvier",null,null,null,null,null,"janvier"]
[null,null,null,null,null,null,null,null,null,null,null,null,null,null,null,null,null,null,null,null,null,null,0,0,{"$error":"#DIV/0!"},null,null,null,null,null,null,null,null,null,"janvier",null,null,null,null,null,"janvier"]
[null,null,null,null,null,null,null,null,null,null,null,null,null,null,null,null,null,null,null,null,null,null,0,0,{"$error":"#DIV/0!"},null,null,null,null,null,null,null,null,null,"janvier",null,null,null,null,null,"janvier"]
[null,null,null,null,null,null,null,null,null,null,null,null,null,null,null,null,null,null,null,null,null,null,0,0,{"$error":"#DIV/0!"},null,null,null,null,null,null,null,null,null,"janvier",null,null,null,null,null,"janvier"]
[null,null,null,null,null,null,null,null,null,null,null,null,null,null,null,null,null,null,null,null,null,null,0,0,{"$error":"#DIV/0!"},null,null,null,null,null,null,null,null,null,"janvier",null,null,null,null,null,"janvier"]
[null,null,null,null,null,null,null,null,null,null,null,null,null,null,null,null,null,null,null,null,null,null,0,0,{"$error":"#DIV/0!"},null,null,null,null,null,null,null,null,null,"janvier",null,null,null,null,null,"janvier"]
[null,null,null,null,null,null,null,null,null,null,null,null,null,null,null,null,null,null,null,null,null,null,0,0,{"$error":"#DIV/0!"},null,null,null,null,null,null,null,null,null,"janvier",null,null,null,null,null,"janvier"]
[null,null,null,null,null,null,null,null,null,null,null,null,null,null,null,null,null,null,null,null,null,null,0,0,{"$error":"#DIV/0!"},null,null,null,null,null,null,null,null,null,"janvier",null,null,null,null,null,"janvier"]
[null,null,null,null,null,null,null,null,null,null,null,null,null,null,null,null,null,null,null,null,null,null,0,0,{"$error":"#DIV/0!"},null,null,null,null,null,null,null,null,null,"janvier",null,null,null,null,null,"janvier"]
[null,null,null,null,null,null,null,null,null,null,null,null,null,null,null,null,null,null,null,null,null,null,0,0,{"$error":"#DIV/0!"},null,null,null,null,null,null,null,null,null,"janvier",null,null,null,null,null,"janvier"]
[null,null,null,null,null,null,null,null,null,null,null,null,null,null,null,null,null,null,null,null,null,null,0,0,{"$error":"#DIV/0!"},null,null,null,null,null,null,null,null,null,"janvier",null,null,null,null,null,"janvier"]
[null,null,null,null,null,null,null,null,null,null,null,null,null,null,null,null,null,null,null,null,null,null,0,0,{"$error":"#DIV/0!"},null,null,null,null,null,null,null,null,null,"janvier",null,null,null,null,null,"janvier"]
[null,null,null,null,null,null,null,null,null,null,null,null,null,null,null,null,null,null,null,null,null,null,0,0,{"$error":"#DIV/0!"},null,null,null,null,null,null,null,null,null,"janvier",null,null,null,null,null,"janvier"]
[null,null,null,null,null,null,null,null,null,null,null,null,null,null,null,null,null,null,null,null,null,null,0,0,{"$error":"#DIV/0!"},null,null,null,null,null,null,null,null,null,"janvier",null,null,null,null,null,"janvier"]
[null,null,null,null,null,null,null,null,null,null,null,null,null,null,null,null,null,null,null,null,null,null,{"$f":"P387-Q387","v":0},{"$f":"Q387-U387","v":0},{"$f":"X387/Q387","v":{"$error":"#DIV/0!"}},null,null,null,null,null,null,null,null,null,{"$f":"TEXT(AH387,\"MMMM\")","v":"janvier"},null,null,null,null,null,{"$f":"TEXT(AN387,\"MMMM\")","v":"janvier"}]
[null,null,null,null,null,null,null,null,null,null,null,null,null,null,null,null,null,null,null,null,null,null,0,0,{"$error":"#DIV/0!"},null,null,null,null,null,null,null,null,null,"janvier",null,null,null,null,null,"janvier"]
[null,null,null,null,null,null,null,null,null,null,null,null,null,null,null,null,null,null,null,null,null,null,0,0,{"$error":"#DIV/0!"},null,null,null,null,null,null,null,null,null,"janvier",null,null,null,null,null,"janvier"]
[null,null,null,null,null,null,null,null,null,null,null,null,null,null,null,null,null,null,null,null,null,null,0,0,{"$error":"#DIV/0!"},null,null,null,null,null,null,null,null,null,"janvier",null,null,null,null,null,"janvier"]
[null,null,null,null,null,null,null,null,null,null,null,null,null,null,null,null,null,null,null,null,null,null,0,0,{"$error":"#DIV/0!"},null,null,null,null,null,null,null,null,null,"janvier",null,null,null,null,null,"janvier"]
[null,null,null,null,null,null,null,null,null,null,null,null,null,null,null,null,null,null,null,null,null,null,0,0,{"$error":"#DIV/0!"},null,null,null,null,null,null,null,null,null,"janvier",null,null,null,null,null,"janvier"]
[null,null,null,null,null,null,null,null,null,null,null,null,null,null,null,null,null,null,null,null,null,null,0,0,{"$error":"#DIV/0!"},null,null,null,null,null,null,null,null,null,"janvier",null,null,null,null,null,"janvier"]
[null,null,null,null,null,null,null,null,null,null,null,null,null,null,null,null,null,null,null,null,null,null,0,0,{"$error":"#DIV/0!"},null,null,null,null,null,null,null,null,null,"janvier",null,null,null,null,null,"janvier"]
[null,null,null,null,null,null,null,null,null,null,null,null,null,null,null,null,null,null,null,null,null,null,0,0,{"$error":"#DIV/0!"},null,null,null,null,null,null,null,null,null,"janvier",null,null,null,null,null,"janvier"]
[null,null,null,null,null,null,null,null,null,null,null,null,null,null,null,null,null,null,null,null,null,null,0,0,{"$error":"#DIV/0!"},null,null,null,null,null,null,null,null,null,"janvier",null,null,null,null,null,"janvier"]
[null,null,null,null,null,null,null,null,null,null,null,null,null,null,null,null,null,null,null,null,null,null,0,0,{"$error":"#DIV/0!"},null,null,null,null,null,null,null,null,null,"janvier",null,null,null,null,null,"janvier"]
[null,null,null,null,null,null,null,null,null,null,null,null,null,null,null,null,null,null,null,null,null,null,0,0,{"$error":"#DIV/0!"},null,null,null,null,null,null,null,null,null,"janvier",null,null,null,null,null,"janvier"]
[null,null,null,null,null,null,null,null,null,null,null,null,null,null,null,null,null,null,null,null,null,null,0,0,{"$error":"#DIV/0!"},null,null,null,null,null,null,null,null,null,"janvier",null,null,null,null,null,"janvier"]
[null,null,null,null,null,null,null,null,null,null,null,null,null,null,null,null,null,null,null,null,null,null,0,0,{"$error":"#DIV/0!"},null,null,null,null,null,null,null,null,null,"janvier",null,null,null,null,null,"janvier"]
[null,null,null,null,null,null,null,null,null,null,null,null,null,null,null,null,null,null,null,null,null,null,0,0,{"$error":"#DIV/0!"},null,null,null,null,null,null,null,null,null,"janvier",null,null,null,null,null,"janvier"]
[null,null,null,null,null,null,null,null,null,null,null,null,null,null,null,null,null,null,null,null,null,null,0,0,{"$error":"#DIV/0!"},null,null,null,null,null,null,null,null,null,"janvier",null,null,null,null,null,"janvier"]
[null,null,null,null,null,null,null,null,null,null,null,null,null,null,null,null,null,null,null,null,null,null,0,0,{"$error":"#DIV/0!"},null,null,null,null,null,null,null,null,null,"janvier",null,null,null,null,null,"janvier"]
[null,null,null,null,null,null,null,null,null,null,null,null,null,null,null,null,null,null,null,null,null,null,0,0,{"$error":"#DIV/0!"},null,null,null,null,null,null,null,null,null,"janvier",null,null,null,null,null,"janvier"]
[null,null,null,null,null,null,null,null,null,null,null,null,null,null,null,null,null,null,null,null,null,null,0,0,{"$error":"#DIV/0!"},null,null,null,null,null,null,null,null,null,"janvier",null,null,null,null,null,"janvier"]
[null,null,null,null,null,null,null,null,null,null,null,null,null,null,null,null,null,null,null,null,null,null,0,0,{"$error":"#DIV/0!"},null,null,null,null,null,null,null,null,null,"janvier",null,null,null,null,null,"janvier"]
[null,null,null,null,null,null,null,null,null,null,null,null,null,null,null,null,null,null,null,null,null,null,0,0,{"$error":"#DIV/0!"},null,null,null,null,null,null,null,null,null,"janvier",null,null,null,null,null,"janvier"]
[null,null,null,null,null,null,null,null,null,null,null,null,null,null,null,null,null,null,null,null,null,null,0,0,{"$error":"#DIV/0!"},null,null,null,null,null,null,null,null,null,"janvier",null,null,null,null,null,"janvier"]
[null,null,null,null,null,null,null,null,null,null,null,null,null,null,null,null,null,null,null,null,null,null,0,0,{"$error":"#DIV/0!"},null,null,null,null,null,null,null,null,null,"janvier",null,null,null,null,null,"janvier"]
[null,null,null,null,null,null,null,null,null,null,null,null,null,null,null,null,null,null,null,null,null,null,0,0,{"$error":"#DIV/0!"},null,null,null,null,null,null,null,null,null,"janvier",null,null,null,null,null,"janvier"]
[null,null,null,null,null,null,null,null,null,null,null,null,null,null,null,null,null,null,null,null,null,null,0,0,{"$error":"#DIV/0!"},null,null,null,null,null,null,null,null,null,"janvier",null,null,null,null,null,"janvier"]
[null,null,null,null,null,null,null,null,null,null,null,null,null,null,null,null,null,null,null,null,null,null,0,0,{"$error":"#DIV/0!"},null,null,null,null,null,null,null,null,null,"janvier",null,null,null,null,null,"janvier"]
[null,null,null,null,null,null,null,null,null,null,null,null,null,null,null,null,null,null,null,null,null,null,0,0,{"$error":"#DIV/0!"},null,null,null,null,null,null,null,null,null,"janvier",null,null,null,null,null,"janvier"]
[null,null,null,null,null,null,null,null,null,null,null,null,null,null,null,null,null,null,null,null,null,null,0,0,{"$error":"#DIV/0!"},null,null,null,null,null,null,null,null,null,"janvier",null,null,null,null,null,"janvier"]
[null,null,null,null,null,null,null,null,null,null,null,null,null,null,null,null,null,null,null,null,null,null,0,0,{"$error":"#DIV/0!"},null,null,null,null,null,null,null,null,null,"janvier",null,null,null,null,null,"janvier"]
[null,null,null,null,null,null,null,null,null,null,null,null,null,null,null,null,null,null,null,null,null,null,0,0,{"$error":"#DIV/0!"},null,null,null,null,null,null,null,null,null,"janvier",null,null,null,null,null,"janvier"]
[null,null,null,null,null,null,null,null,null,null,null,null,null,null,null,null,null,null,null,null,null,null,0,0,{"$error":"#DIV/0!"},null,null,null,null,null,null,null,null,null,"janvier",null,null,null,null,null,"janvier"]
[null,null,null,null,null,null,null,null,null,null,null,null,null,null,null,null,null,null,null,null,null,null,0,0,{"$error":"#DIV/0!"},null,null,null,null,null,null,null,null,null,"janvier",null,null,null,null,null,"janvier"]
[null,null,null,null,null,null,null,null,null,null,null,null,null,null,null,null,null,null,null,null,null,null,0,0,{"$error":"#DIV/0!"},null,null,null,null,null,null,null,null,null,"janvier",null,null,null,null,null,"janvier"]
[null,null,null,null,null,null,null,null,null,null,null,null,null,null,null,null,null,null,null,null,null,null,0,0,{"$error":"#DIV/0!"},null,null,null,null,null,null,null,null,null,"janvier",null,null,null,null,null,"janvier"]
[null,null,null,null,null,null,null,null,null,null,null,null,null,null,null,null,null,null,null,null,null,null,0,0,{"$error":"#DIV/0!"},null,null,null,null,null,null,null,null,null,"janvier",null,null,null,null,null,"janvier"]
[null,null,null,null,null,null,null,null,null,null,null,null,null,null,null,null,null,null,null,null,null,null,0,0,{"$error":"#DIV/0!"},null,null,null,null,null,null,null,null,null,"janvier",null,null,null,null,null,"janvier"]
[null,null,null,null,null,null,null,null,null,null,null,null,null,null,null,null,null,null,null,null,null,null,0,0,{"$error":"#DIV/0!"},null,null,null,null,null,null,null,null,null,"janvier",null,null,null,null,null,"janvier"]
[null,null,null,null,null,null,null,null,null,null,null,null,null,null,null,null,null,null,null,null,null,null,0,0,{"$error":"#DIV/0!"},null,null,null,null,null,null,null,null,null,"janvier",null,null,null,null,null,"janvier"]
[null,null,null,null,null,null,null,null,null,null,null,null,null,null,null,null,null,null,null,null,null,null,0,0,{"$error":"#DIV/0!"},null,null,null,null,null,null,null,null,null,"janvier",null,null,null,null,null,"janvier"]
[null,null,null,null,null,null,null,null,null,null,null,null,null,null,null,null,null,null,null,null,null,null,0,0,{"$error":"#DIV/0!"},null,null,null,null,null,null,null,null,null,"janvier",null,null,null,null,null,"janvier"]
[null,null,null,null,null,null,null,null,null,null,null,null,null,null,null,null,null,null,null,null,null,null,0,0,{"$error":"#DIV/0!"},null,null,null,null,null,null,null,null,null,"janvier",null,null,null,null,null,"janvier"]
[null,null,null,null,null,null,null,null,null,null,null,null,null,null,null,null,null,null,null,null,null,null,0,0,{"$error":"#DIV/0!"},null,null,null,null,null,null,null,null,null,"janvier",null,null,null,null,null,"janvier"]
[null,null,null,null,null,null,null,null,null,null,null,null,null,null,null,null,null,null,null,null,null,null,0,0,{"$error":"#DIV/0!"},null,null,null,null,null,null,null,null,null,"janvier",null,null,null,null,null,"janvier"]
[null,null,null,null,null,null,null,null,null,null,null,null,null,null,null,null,null,null,null,null,null,null,0,0,{"$error":"#DIV/0!"},null,null,null,null,null,null,null,null,null,"janvier",null,null,null,null,null,"janvier"]
[null,null,null,null,null,null,null,null,null,null,null,null,null,null,null,null,null,null,null,null,null,null,0,0,{"$error":"#DIV/0!"},null,null,null,null,null,null,null,null,null,"janvier",null,null,null,null,null,"janvier"]
[null,null,null,null,null,null,null,null,null,null,null,null,null,null,null,null,null,null,null,null,null,null,0,0,{"$error":"#DIV/0!"},null,null,null,null,null,null,null,null,null,"janvier",null,null,null,null,null,"janvier"]
[null,null,null,null,null,null,null,null,null,null,null,null,null,null,null,null,null,null,null,null,null,null,0,0,{"$error":"#DIV/0!"},null,null,null,null,null,null,null,null,null,"janvier",null,null,null,null,null,"janvier"]
[null,null,null,null,null,null,null,null,null,null,null,null,null,null,null,null,null,null,null,null,null,null,0,0,{"$error":"#DIV/0!"},null,null,null,null,null,null,null,null,null,"janvier",null,null,null,null,null,"janvier"]
[null,null,null,null,null,null,null,null,null,null,null,null,null,null,null,null,null,null,null,null,null,null,0,0,{"$error":"#DIV/0!"},null,null,null,null,null,null,null,null,null,"janvier",null,null,null,null,null,"janvier"]
[null,null,null,null,null,null,null,null,null,null,null,null,null,null,null,null,null,null,null,null,null,null,0,0,{"$error":"#DIV/0!"},null,null,null,null,null,null,null,null,null,"janvier",null,null,null,null,null,"janvier"]
[null,null,null,null,null,null,null,null,null,null,null,null,null,null,null,null,null,null,null,null,null,null,0,0,{"$error":"#DIV/0!"},null,null,null,null,null,null,null,null,null,"janvier",null,null,null,null,null,"janvier"]
[null,null,null,null,null,null,null,null,null,null,null,null,null,null,null,null,null,null,null,null,null,null,0,0,{"$error":"#DIV/0!"},null,null,null,null,null,null,null,null,null,"janvier",null,null,null,null,null,"janvier"]
[null,null,null,null,null,null,null,null,null,null,null,null,null,null,null,null,null,null,null,null,null,null,0,0,{"$error":"#DIV/0!"},null,null,null,null,null,null,null,null,null,"janvier",null,null,null,null,null,"janvier"]
[null,null,null,null,null,null,null,null,null,null,null,null,null,null,null,null,null,null,null,null,null,null,0,0,{"$error":"#DIV/0!"},null,null,null,null,null,null,null,null,null,"janvier",null,null,null,null,null,"janvier"]
[null,null,null,null,null,null,null,null,null,null,null,null,null,null,null,null,null,null,null,null,null,null,0,0,{"$error":"#DIV/0!"},null,null,null,null,null,null,null,null,null,"janvier",null,null,null,null,null,"janvier"]
[null,null,null,null,null,null,null,null,null,null,null,null,null,null,null,null,null,null,null,null,null,null,0,0,{"$error":"#DIV/0!"},null,null,null,null,null,null,null,null,null,"janvier",null,null,null,null,null,"janvier"]
[null,null,null,null,null,null,null,null,null,null,null,null,null,null,null,null,null,null,null,null,null,null,0,0,{"$error":"#DIV/0!"},null,null,null,null,null,null,null,null,null,"janvier",null,null,null,null,null,"janvier"]
[null,null,null,null,null,null,null,null,null,null,null,null,null,null,null,null,null,null,null,null,null,null,0,0,{"$error":"#DIV/0!"},null,null,null,null,null,null,null,null,null,"janvier",null,null,null,null,null,"janvier"]
[null,null,null,null,null,null,null,null,null,null,null,null,null,null,null,null,null,null,null,null,null,null,0,0,{"$error":"#DIV/0!"},null,null,null,null,null,null,null,null,null,"janvier",null,null,null,null,null,"janvier"]
[null,null,null,null,null,null,null,null,null,null,null,null,null,null,null,null,null,null,null,null,null,null,0,0,{"$error":"#DIV/0!"},null,null,null,null,null,null,null,null,null,"janvier",null,null,null,null,null,"janvier"]
[null,null,null,null,null,null,null,null,null,null,null,null,null,null,null,null,null,null,null,null,null,null,0,0,{"$error":"#DIV/0!"},null,null,null,null,null,null,null,null,null,"janvier",null,null,null,null,null,"janvier"]
[null,null,null,null,null,null,null,null,null,null,null,null,null,null,null,null,null,null,null,null,null,null,0,0,{"$error":"#DIV/0!"},null,null,null,null,null,null,null,null,null,"janvier",null,null,null,null,null,"janvier"]
[null,null,null,null,null,null,null,null,null,null,null,null,null,null,null,null,null,null,null,null,null,null,0,0,{"$error":"#DIV/0!"},null,null,null,null,null,null,null,null,null,"janvier",null,null,null,null,null,"janvier"]
[null,null,null,null,null,null,null,null,null,null,null,null,null,null,null,null,null,null,null,null,null,null,0,0,{"$error":"#DIV/0!"},null,null,null,null,null,null,null,null,null,"janvier",null,null,null,null,null,"janvier"]
[null,null,null,null,null,null,null,null,null,null,null,null,null,null,null,null,null,null,null,null,null,null,{"$f":"P451-Q451","v":0},{"$f":"Q451-U451","v":0},{"$f":"X451/Q451","v":{"$error":"#DIV/0!"}},null,null,null,null,null,null,null,null,null,{"$f":"TEXT(AH451,\"MMMM\")","v":"janvier"},null,null,null,null,null,{"$f":"TEXT(AN451,\"MMMM\")","v":"janvier"}]
[null,null,null,null,null,null,null,null,null,null,null,null,null,null,null,null,null,null,null,null,null,null,0,0,{"$error":"#DIV/0!"},null,null,null,null,null,null,null,null,null,"janvier",null,null,null,null,null,"janvier"]
[null,null,null,null,null,null,null,null,null,null,null,null,null,null,null,null,null,null,null,null,null,null,0,0,{"$error":"#DIV/0!"},null,null,null,null,null,null,null,null,null,"janvier",null,null,null,null,null,"janvier"]
[null,null,null,null,null,null,null,null,null,null,null,null,null,null,null,null,null,null,null,null,null,null,0,0,{"$error":"#DIV/0!"},null,null,null,null,null,null,null,null,null,"janvier",null,null,null,null,null,"janvier"]
[null,null,null,null,null,null,null,null,null,null,null,null,null,null,null,null,null,null,null,null,null,null,0,0,{"$error":"#DIV/0!"},null,null,null,null,null,null,null,null,null,"janvier",null,null,null,null,null,"janvier"]
[null,null,null,null,null,null,null,null,null,null,null,null,null,null,null,null,null,null,null,null,null,null,0,0,{"$error":"#DIV/0!"},null,null,null,null,null,null,null,null,null,"janvier",null,null,null,null,null,"janvier"]
[null,null,null,null,null,null,null,null,null,null,null,null,null,null,null,null,null,null,null,null,null,null,0,0,{"$error":"#DIV/0!"},null,null,null,null,null,null,null,null,null,"janvier",null,null,null,null,null,"janvier"]
[null,null,null,null,null,null,null,null,null,null,null,null,null,null,null,null,null,null,null,null,null,null,0,0,{"$error":"#DIV/0!"},null,null,null,null,null,null,null,null,null,"janvier",null,null,null,null,null,"janvier"]
[null,null,null,null,null,null,null,null,null,null,null,null,null,null,null,null,null,null,null,null,null,null,0,0,{"$error":"#DIV/0!"},null,null,null,null,null,null,null,null,null,"janvier",null,null,null,null,null,"janvier"]
[null,null,null,null,null,null,null,null,null,null,null,null,null,null,null,null,null,null,null,null,null,null,0,0,{"$error":"#DIV/0!"},null,null,null,null,null,null,null,null,null,"janvier",null,null,null,null,null,"janvier"]
[null,null,null,null,null,null,null,null,null,null,null,null,null,null,null,null,null,null,null,null,null,null,0,0,{"$error":"#DIV/0!"},null,null,null,null,null,null,null,null,null,"janvier",null,null,null,null,null,"janvier"]
[null,null,null,null,null,null,null,null,null,null,null,null,null,null,null,null,null,null,null,null,null,null,0,0,{"$error":"#DIV/0!"},null,null,null,null,null,null,null,null,null,"janvier",null,null,null,null,null,"janvier"]
[null,null,null,null,null,null,null,null,null,null,null,null,null,null,null,null,null,null,null,null,null,null,0,0,{"$error":"#DIV/0!"},null,null,null,null,null,null,null,null,null,"janvier",null,null,null,null,null,"janvier"]
[null,null,null,null,null,null,null,null,null,null,null,null,null,null,null,null,null,null,null,null,null,null,0,0,{"$error":"#DIV/0!"},null,null,null,null,null,null,null,null,null,"janvier",null,null,null,null,null,"janvier"]
[null,null,null,null,null,null,null,null,null,null,null,null,null,null,null,null,null,null,null,null,null,null,0,0,{"$error":"#DIV/0!"},null,null,null,null,null,null,null,null,null,"janvier",null,null,null,null,null,"janvier"]
[null,null,null,null,null,null,null,null,null,null,null,null,null,null,null,null,null,null,null,null,null,null,0,0,{"$error":"#DIV/0!"},null,null,null,null,null,null,null,null,null,"janvier",null,null,null,null,null,"janvier"]
[null,null,null,null,null,null,null,null,null,null,null,null,null,null,null,null,null,null,null,null,null,null,0,0,{"$error":"#DIV/0!"},null,null,null,null,null,null,null,null,null,"janvier",null,null,null,null,null,"janvier"]
[null,null,null,null,null,null,null,null,null,null,null,null,null,null,null,null,null,null,null,null,null,null,0,0,{"$error":"#DIV/0!"},null,null,null,null,null,null,null,null,null,"janvier",null,null,null,null,null,"janvier"]
[null,null,null,null,null,null,null,null,null,null,null,null,null,null,null,null,null,null,null,null,null,null,0,0,{"$error":"#DIV/0!"},null,null,null,null,null,null,null,null,null,"janvier",null,null,null,null,null,"janvier"]
[null,null,null,null,null,null,null,null,null,null,null,null,null,null,null,null,null,null,null,null,null,null,0,0,{"$error":"#DIV/0!"},null,null,null,null,null,null,null,null,null,"janvier",null,null,null,null,null,"janvier"]
[null,null,null,null,null,null,null,null,null,null,null,null,null,null,null,null,null,null,null,null,null,null,0,0,{"$error":"#DIV/0!"},null,null,null,null,null,null,null,null,null,"janvier",null,null,null,null,null,"janvier"]
[null,null,null,null,null,null,null,null,null,null,null,null,null,null,null,null,null,null,null,null,null,null,0,0,{"$error":"#DIV/0!"},null,null,null,null,null,null,null,null,null,"janvier",null,null,null,null,null,"janvier"]
[null,null,null,null,null,null,null,null,null,null,null,null,null,null,null,null,null,null,null,null,null,null,0,0,{"$error":"#DIV/0!"},null,null,null,null,null,null,null,null,null,"janvier",null,null,null,null,null,"janvier"]
[null,null,null,null,null,null,null,null,null,null,null,null,null,null,null,null,null,null,null,null,null,null,0,0,{"$error":"#DIV/0!"},null,null,null,null,null,null,null,null,null,"janvier",null,null,null,null,null,"janvier"]
[null,null,null,null,null,null,null,null,null,null,null,null,null,null,null,null,null,null,null,null,null,null,0,0,{"$error":"#DIV/0!"},null,null,null,null,null,null,null,null,null,"janvier",null,null,null,null,null,"janvier"]
[null,null,null,null,null,null,null,null,null,null,null,null,null,null,null,null,null,null,null,null,null,null,0,0,{"$error":"#DIV/0!"},null,null,null,null,null,null,null,null,null,"janvier",null,null,null,null,null,"janvier"]
[null,null,null,null,null,null,null,null,null,null,null,null,null,null,null,null,null,null,null,null,null,null,0,0,{"$error":"#DIV/0!"},null,null,null,null,null,null,null,null,null,"janvier",null,null,null,null,null,"janvier"]
[null,null,null,null,null,null,null,null,null,null,null,null,null,null,null,null,null,null,null,null,null,null,0,0,{"$error":"#DIV/0!"},null,null,null,null,null,null,null,null,null,"janvier",null,null,null,null,null,"janvier"]
[null,null,null,null,null,null,null,null,null,null,null,null,null,null,null,null,null,null,null,null,null,null,0,0,{"$error":"#DIV/0!"},null,null,null,null,null,null,null,null,null,"janvier",null,null,null,null,null,"janvier"]
[null,null,null,null,null,null,null,null,null,null,null,null,null,null,null,null,null,null,null,null,null,null,0,0,{"$error":"#DIV/0!"},null,null,null,null,null,null,null,null,null,"janvier",null,null,null,null,null,"janvier"]
[null,null,null,null,null,null,null,null,null,null,null,null,null,null,null,null,null,null,null,null,null,null,0,0,{"$error":"#DIV/0!"},null,null,null,null,null,null,null,null,null,"janvier",null,null,null,null,null,"janvier"]
[null,null,null,null,null,null,null,null,null,null,null,null,null,null,null,null,null,null,null,null,null,null,0,0,{"$error":"#DIV/0!"},null,null,null,null,null,null,null,null,null,"janvier",null,null,null,null,null,"janvier"]
[null,null,null,null,null,null,null,null,null,null,null,null,null,null,null,null,null,null,null,null,null,null,0,0,{"$error":"#DIV/0!"},null,null,null,null,null,null,null,null,null,"janvier",null,null,null,null,null,"janvier"]
[null,null,null,null,null,null,null,null,null,null,null,null,null,null,null,null,null,null,null,null,null,null,0,0,{"$error":"#DIV/0!"},null,null,null,null,null,null,null,null,null,"janvier",null,null,null,null,null,"janvier"]
[null,null,null,null,null,null,null,null,null,null,null,null,null,null,null,null,null,null,null,null,null,null,0,0,{"$error":"#DIV/0!"},null,null,null,null,null,null,null,null,null,"janvier",null,null,null,null,null,"janvier"]
[null,null,null,null,null,null,null,null,null,null,null,null,null,null,null,null,null,null,null,null,null,null,0,0,{"$error":"#DIV/0!"},null,null,null,null,null,null,null,null,null,"janvier",null,null,null,null,null,"janvier"]
[null,null,null,null,null,null,null,null,null,null,null,null,null,null,null,null,null,null,null,null,null,null,0,0,{"$error":"#DIV/0!"},null,null,null,null,null,null,null,null,null,"janvier",null,null,null,null,null,"janvier"]
[null,null,null,null,null,null,null,null,null,null,null,null,null,null,null,null,null,null,null,null,null,null,0,0,{"$error":"#DIV/0!"},null,null,null,null,null,null,null,null,null,"janvier",null,null,null,null,null,"janvier"]
[null,null,null,null,null,null,null,null,null,null,null,null,null,null,null,null,null,null,null,null,null,null,0,0,{"$error":"#DIV/0!"},null,null,null,null,null,null,null,null,null,"janvier",null,null,null,null,null,"janvier"]
[null,null,null,null,null,null,null,null,null,null,null,null,null,null,null,null,null,null,null,null,null,null,0,0,{"$error":"#DIV/0!"},null,null,null,null,null,null,null,null,null,"janvier",null,null,null,null,null,"janvier"]
[null,null,null,null,null,null,null,null,null,null,null,null,null,null,null,null,null,null,null,null,null,null,0,0,{"$error":"#DIV/0!"},null,null,null,null,null,null,null,null,null,"janvier",null,null,null,null,null,"janvier"]
[null,null,null,null,null,null,null,null,null,null,null,null,null,null,null,null,null,null,null,null,null,null,0,0,{"$error":"#DIV/0!"},null,null,null,null,null,null,null,null,null,"janvier",null,null,null,null,null,"janvier"]
[null,null,null,null,null,null,null,null,null,null,null,null,null,null,null,null,null,null,null,null,null,null,0,0,{"$error":"#DIV/0!"},null,null,null,null,null,null,null,null,null,"janvier",null,null,null,null,null,"janvier"]
[null,null,null,null,null,null,null,null,null,null,null,null,null,null,null,null,null,null,null,null,null,null,0,0,{"$error":"#DIV/0!"},null,null,null,null,null,null,null,null,null,"janvier",null,null,null,null,null,"janvier"]
[null,null,null,null,null,null,null,null,null,null,null,null,null,null,null,null,null,null,null,null,null,null,0,0,{"$error":"#DIV/0!"},null,null,null,null,null,null,null,null,null,"janvier",null,null,null,null,null,"janvier"]
[null,null,null,null,null,null,null,null,null,null,null,null,null,null,null,null,null,null,null,null,null,null,0,0,{"$error":"#DIV/0!"},null,null,null,null,null,null,null,null,null,"janvier",null,null,null,null,null,"janvier"]
[null,null,null,null,null,null,null,null,null,null,null,null,null,null,null,null,null,null,null,null,null,null,0,0,{"$error":"#DIV/0!"},null,null,null,null,null,null,null,null,null,"janvier",null,null,null,null,null,"janvier"]
[null,null,null,null,null,null,null,null,null,null,null,null,null,null,null,null,null,null,null,null,null,null,0,0,{"$error":"#DIV/0!"},null,null,null,null,null,null,null,null,null,"janvier",null,null,null,null,null,"janvier"]
[null,null,null,null,null,null,null,null,null,null,null,null,null,null,null,null,null,null,null,null,null,null,0,0,{"$error":"#DIV/0!"},null,null,null,null,null,null,null,null,null,"janvier",null,null,null,null,null,"janvier"]
[null,null,null,null,null,null,null,null,null,null,null,null,null,null,null,null,null,null,null,null,null,null,0,0,{"$error":"#DIV/0!"},null,null,null,null,null,null,null,null,null,"janvier",null,null,null,null,null,"janvier"]
[null,null,null,null,null,null,null,null,null,null,null,null,null,null,null,null,null,null,null,null,null,null,0,0,{"$error":"#DIV/0!"},null,null,null,null,null,null,null,null,null,"janvier",null,null,null,null,null,"janvier"]
[null,null,null,null,null,null,null,null,null,null,null,null,null,null,null,null,null,null,null,null,null,null,0,0,{"$error":"#DIV/0!"},null,null,null,null,null,null,null,null,null,"janvier",null,null,null,null,null,"janvier"]
[null,null,null,null,null,null,null,null,null,null,null,null,null,null,null,null,null,null,null,null,null,null,0,0,{"$error":"#DIV/0!"},null,null,null,null,null,null,null,null,null,"janvier",null,null,null,null,null,"janvier"]
[null,null,null,null,null,null,null,null,null,null,null,null,null,null,null,null,null,null,null,null,null,null,0,0,{"$error":"#DIV/0!"},null,null,null,null,null,null,null,null,null,"janvier",null,null,null,null,null,"janvier"]
[null,null,null,null,null,null,null,null,null,null,null,null,null,null,null,null,null,null,null,null,null,null,0,0,{"$error":"#DIV/0!"},null,null,null,null,null,null,null,null,null,"janvier",null,null,null,null,null,"janvier"]
[null,null,null,null,null,null,null,null,null,null,null,null,null,null,null,null,null,null,null,null,null,null,0,0,{"$error":"#DIV/0!"},null,null,null,null,null,null,null,null,null,"janvier",null,null,null,null,null,"janvier"]
[null,null,null,null,null,null,null,null,null,null,null,null,null,null,null,null,null,null,null,null,null,null,0,0,{"$error":"#DIV/0!"},null,null,null,null,null,null,null,null,null,"janvier",null,null,null,null,null,"janvier"]
[null,null,null,null,null,null,null,null,null,null,null,null,null,null,null,null,null,null,null,null,null,null,0,0,{"$error":"#DIV/0!"},null,null,null,null,null,null,null,null,null,"janvier",null,null,null,null,null,"janvier"]
[null,null,null,null,null,null,null,null,null,null,null,null,null,null,null,null,null,null,null,null,null,null,0,0,{"$error":"#DIV/0!"},null,null,null,null,null,null,null,null,null,"janvier",null,null,null,null,null,"janvier"]
[null,null,null,null,null,null,null,null,null,null,null,null,null,null,null,null,null,null,null,null,null,null,0,0,{"$error":"#DIV/0!"},null,null,null,null,null,null,null,null,null,"janvier",null,null,null,null,null,"janvier"]
[null,null,null,null,null,null,null,null,null,null,null,null,null,null,null,null,null,null,null,null,null,null,0,0,{"$error":"#DIV/0!"},null,null,null,null,null,null,null,null,null,"janvier",null,null,null,null,null,"janvier"]
[null,null,null,null,null,null,null,null,null,null,null,null,null,null,null,null,null,null,null,null,null,null,0,0,{"$error":"#DIV/0!"},null,null,null,null,null,null,null,null,null,"janvier",null,null,null,null,null,"janvier"]
[null,null,null,null,null,null,null,null,null,null,null,null,null,null,null,null,null,null,null,null,null,null,0,0,{"$error":"#DIV/0!"},null,null,null,null,null,null,null,null,null,"janvier",null,null,null,null,null,"janvier"]
[null,null,null,null,null,null,null,null,null,null,null,null,null,null,null,null,null,null,null,null,null,null,0,0,{"$error":"#DIV/0!"},null,null,null,null,null,null,null,null,null,"janvier",null,null,null,null,null,"janvier"]
[null,null,null,null,null,null,null,null,null,null,null,null,null,null,null,null,null,null,null,null,null,null,{"$f":"P515-Q515","v":0},{"$f":"Q515-U515","v":0},{"$f":"X515/Q515","v":{"$error":"#DIV/0!"}},null,null,null,null,null,null,null,null,null,{"$f":"TEXT(AH515,\"MMMM\")","v":"janvier"},null,null,null,null,null,{"$f":"TEXT(AN515,\"MMMM\")","v":"janvier"}]
[null,null,null,null,null,null,null,null,null,null,null,null,null,null,null,null,null,null,null,null,null,null,0,0,{"$error":"#DIV/0!"},null,null,null,null,null,null,null,null,null,"janvier",null,null,null,null,null,"janvier"]
[null,null,null,null,null,null,null,null,null,null,null,null,null,null,null,null,null,null,null,null,null,null,0,0,{"$error":"#DIV/0!"},null,null,null,null,null,null,null,null,null,"janvier",null,null,null,null,null,"janvier"]
[null,null,null,null,null,null,null,null,null,null,null,null,null,null,null,null,null,null,null,null,null,null,0,0,{"$error":"#DIV/0!"},null,null,null,null,null,null,null,null,null,"janvier",null,null,null,null,null,"janvier"]
[null,null,null,null,null,null,null,null,null,null,null,null,null,null,null,null,null,null,null,null,null,null,0,0,{"$error":"#DIV/0!"},null,null,null,null,null,null,null,null,null,"janvier",null,null,null,null,null,"janvier"]
[null,null,null,null,null,null,null,null,null,null,null,null,null,null,null,null,null,null,null,null,null,null,0,0,{"$error":"#DIV/0!"},null,null,null,null,null,null,null,null,null,"janvier",null,null,null,null,null,"janvier"]
[null,null,null,null,null,null,null,null,null,null,null,null,null,null,null,null,null,null,null,null,null,null,0,0,{"$error":"#DIV/0!"},null,null,null,null,null,null,null,null,null,"janvier",null,null,null,null,null,"janvier"]
[null,null,null,null,null,null,null,null,null,null,null,null,null,null,null,null,null,null,null,null,null,null,0,0,{"$error":"#DIV/0!"},null,null,null,null,null,null,null,null,null,"janvier",null,null,null,null,null,"janvier"]
[null,null,null,null,null,null,null,null,null,null,null,null,null,null,null,null,null,null,null,null,null,null,0,0,{"$error":"#DIV/0!"},null,null,null,null,null,null,null,null,null,"janvier",null,null,null,null,null,"janvier"]
[null,null,null,null,null,null,null,null,null,null,null,null,null,null,null,null,null,null,null,null,null,null,0,0,{"$error":"#DIV/0!"},null,null,null,null,null,null,null,null,null,"janvier",null,null,null,null,null,"janvier"]
[null,null,null,null,null,null,null,null,null,null,null,null,null,null,null,null,null,null,null,null,null,null,0,0,{"$error":"#DIV/0!"},null,null,null,null,null,null,null,null,null,"janvier",null,null,null,null,null,"janvier"]
[null,null,null,null,null,null,null,null,null,null,null,null,null,null,null,null,null,null,null,null,null,null,0,0,{"$error":"#DIV/0!"},null,null,null,null,null,null,null,null,null,"janvier",null,null,null,null,null,"janvier"]
[null,null,null,null,null,null,null,null,null,null,null,null,null,null,null,null,null,null,null,null,null,null,0,0,{"$error":"#DIV/0!"},null,null,null,null,null,null,null,null,null,"janvier",null,null,null,null,null,"janvier"]
[null,null,null,null,null,null,null,null,null,null,null,null,null,null,null,null,null,null,null,null,null,null,0,0,{"$error":"#DIV/0!"},null,null,null,null,null,null,null,null,null,"janvier",null,null,null,null,null,"janvier"]
[null,null,null,null,null,null,null,null,null,null,null,null,null,null,null,null,null,null,null,null,null,null,0,0,{"$error":"#DIV/0!"},null,null,null,null,null,null,null,null,null,"janvier",null,null,null,null,null,"janvier"]
[null,null,null,null,null,null,null,null,null,null,null,null,null,null,null,null,null,null,null,null,null,null,0,0,{"$error":"#DIV/0!"},null,null,null,null,null,null,null,null,null,"janvier",null,null,null,null,null,"janvier"]
[null,null,null,null,null,null,null,null,null,null,null,null,null,null,null,null,null,null,null,null,null,null,0,0,{"$error":"#DIV/0!"},null,null,null,null,null,null,null,null,null,"janvier",null,null,null,null,null,"janvier"]
[null,null,null,null,null,null,null,null,null,null,null,null,null,null,null,null,null,null,null,null,null,null,0,0,{"$error":"#DIV/0!"},null,null,null,null,null,null,null,null,null,"janvier",null,null,null,null,null,"janvier"]
[null,null,null,null,null,null,null,null,null,null,null,null,null,null,null,null,null,null,null,null,null,null,0,0,{"$error":"#DIV/0!"},null,null,null,null,null,null,null,null,null,"janvier",null,null,null,null,null,"janvier"]
[null,null,null,null,null,null,null,null,null,null,null,null,null,null,null,null,null,null,null,null,null,null,0,0,{"$error":"#DIV/0!"},null,null,null,null,null,null,null,null,null,"janvier",null,null,null,null,null,"janvier"]
[null,null,null,null,null,null,null,null,null,null,null,null,null,null,null,null,null,null,null,null,null,null,0,0,{"$error":"#DIV/0!"},null,null,null,null,null,null,null,null,null,"janvier",null,null,null,null,null,"janvier"]
[null,null,null,null,null,null,null,null,null,null,null,null,null,null,null,null,null,null,null,null,null,null,0,0,{"$error":"#DIV/0!"},null,null,null,null,null,null,null,null,null,"janvier",null,null,null,null,null,"janvier"]
[null,null,null,null,null,null,null,null,null,null,null,null,null,null,null,null,null,null,null,null,null,null,0,0,{"$error":"#DIV/0!"},null,null,null,null,null,null,null,null,null,"janvier",null,null,null,null,null,"janvier"]
[null,null,null,null,null,null,null,null,null,null,null,null,null,null,null,null,null,null,null,null,null,null,0,0,{"$error":"#DIV/0!"},null,null,null,null,null,null,null,null,null,"janvier",null,null,null,null,null,"janvier"]
[null,null,null,null,null,null,null,null,null,null,null,null,null,null,null,null,null,null,null,null,null,null,0,0,{"$error":"#DIV/0!"},null,null,null,null,null,null,null,null,null,"janvier",null,null,null,null,null,"janvier"]
[null,null,null,null,null,null,null,null,null,null,null,null,null,null,null,null,null,null,null,null,null,null,0,0,{"$error":"#DIV/0!"},null,null,null,null,null,null,null,null,null,"janvier",null,null,null,null,null,"janvier"]
[null,null,null,null,null,null,null,null,null,null,null,null,null,null,null,null,null,null,null,null,null,null,0,0,{"$error":"#DIV/0!"},null,null,null,null,null,null,null,null,null,"janvier",null,null,null,null,null,"janvier"]
[null,null,null,null,null,null,null,null,null,null,null,null,null,null,null,null,null,null,null,null,null,null,0,0,{"$error":"#DIV/0!"},null,null,null,null,null,null,null,null,null,"janvier",null,null,null,null,null,"janvier"]
[null,null,null,null,null,null,null,null,null,null,null,null,null,null,null,null,null,null,null,null,null,null,0,0,{"$error":"#DIV/0!"},null,null,null,null,null,null,null,null,null,"janvier",null,null,null,null,null,"janvier"]
[null,null,null,null,null,null,null,null,null,null,null,null,null,null,null,null,null,null,null,null,null,null,0,0,{"$error":"#DIV/0!"},null,null,null,null,null,null,null,null,null,"janvier",null,null,null,null,null,"janvier"]
[null,null,null,null,null,null,null,null,null,null,null,null,null,null,null,null,null,null,null,null,null,null,0,0,{"$error":"#DIV/0!"},null,null,null,null,null,null,null,null,null,"janvier",null,null,null,null,null,"janvier"]
[null,null,null,null,null,null,null,null,null,null,null,null,null,null,null,null,null,null,null,null,null,null,0,0,{"$error":"#DIV/0!"},null,null,null,null,null,null,null,null,null,"janvier",null,null,null,null,null,"janvier"]
[null,null,null,null,null,null,null,null,null,null,null,null,null,null,null,null,null,null,null,null,null,null,0,0,{"$error":"#DIV/0!"},null,null,null,null,null,null,null,null,null,"janvier",null,null,null,null,null,"janvier"]
[null,null,null,null,null,null,null,null,null,null,null,null,null,null,null,null,null,null,null,null,null,null,0,0,{"$error":"#DIV/0!"},null,null,null,null,null,null,null,null,null,"janvier",null,null,null,null,null,"janvier"]
[null,null,null,null,null,null,null,null,null,null,null,null,null,null,null,null,null,null,null,null,null,null,0,0,{"$error":"#DIV/0!"},null,null,null,null,null,null,null,null,null,"janvier",null,null,null,null,null,"janvier"]
[null,null,null,null,null,null,null,null,null,null,null,null,null,null,null,null,null,null,null,null,null,null,0,0,{"$error":"#DIV/0!"},null,null,null,null,null,null,null,null,null,"janvier",null,null,null,null,null,"janvier"]
[null,null,null,null,null,null,null,null,null,null,null,null,null,null,null,null,null,null,null,null,null,null,0,0,{"$error":"#DIV/0!"},null,null,null,null,null,null,null,null,null,"janvier",null,null,null,null,null,"janvier"]
[null,null,null,null,null,null,null,null,null,null,null,null,null,null,null,null,null,null,null,null,null,null,0,0,{"$error":"#DIV/0!"},null,null,null,null,null,null,null,null,null,"janvier",null,null,null,null,null,"janvier"]
[null,null,null,null,null,null,null,null,null,null,null,null,null,null,null,null,null,null,null,null,null,null,0,0,{"$error":"#DIV/0!"},null,null,null,null,null,null,null,null,null,"janvier",null,null,null,null,null,"janvier"]
[null,null,null,null,null,null,null,null,null,null,null,null,null,null,null,null,null,null,null,null,null,null,0,0,{"$error":"#DIV/0!"},null,null,null,null,null,null,null,null,null,"janvier",null,null,null,null,null,"janvier"]
[null,null,null,null,null,null,null,null,null,null,null,null,null,null,null,null,null,null,null,null,null,null,0,0,{"$error":"#DIV/0!"},null,null,null,null,null,null,null,null,null,"janvier",null,null,null,null,null,"janvier"]
[null,null,null,null,null,null,null,null,null,null,null,null,null,null,null,null,null,null,null,null,null,null,0,0,{"$error":"#DIV/0!"},null,null,null,null,null,null,null,null,null,"janvier",null,null,null,null,null,"janvier"]
[null,null,null,null,null,null,null,null,null,null,null,null,null,null,null,null,null,null,null,null,null,null,0,0,{"$error":"#DIV/0!"},null,null,null,null,null,null,null,null,null,"janvier",null,null,null,null,null,"janvier"]
[null,null,null,null,null,null,null,null,null,null,null,null,null,null,null,null,null,null,null,null,null,null,0,0,{"$error":"#DIV/0!"},null,null,null,null,null,null,null,null,null,"janvier",null,null,null,null,null,"janvier"]
[null,null,null,null,null,null,null,null,null,null,null,null,null,null,null,null,null,null,null,null,null,null,0,0,{"$error":"#DIV/0!"},null,null,null,null,null,null,null,null,null,"janvier",null,null,null,null,null,"janvier"]
[null,null,null,null,null,null,null,null,null,null,null,null,null,null,null,null,null,null,null,null,null,null,0,0,{"$error":"#DIV/0!"},null,null,null,null,null,null,null,null,null,"janvier",null,null,null,null,null,"janvier"]
[null,null,null,null,null,null,null,null,null,null,null,null,null,null,null,null,null,null,null,null,null,null,0,0,{"$error":"#DIV/0!"},null,null,null,null,null,null,null,null,null,"janvier",null,null,null,null,null,"janvier"]
[null,null,null,null,null,null,null,null,null,null,null,null,null,null,null,null,null,null,null,null,null,null,0,0,{"$error":"#DIV/0!"},null,null,null,null,null,null,null,null,null,"janvier",null,null,null,null,null,"janvier"]
[null,null,null,null,null,null,null,null,null,null,null,null,null,null,null,null,null,null,null,null,null,null,0,0,{"$error":"#DIV/0!"},null,null,null,null,null,null,null,null,null,"janvier",null,null,null,null,null,"janvier"]
[null,null,null,null,null,null,null,null,null,null,null,null,null,null,null,null,null,null,null,null,null,null,0,0,{"$error":"#DIV/0!"},null,null,null,null,null,null,null,null,null,"janvier",null,null,null,null,null,"janvier"]
[null,null,null,null,null,null,null,null,null,null,null,null,null,null,null,null,null,null,null,null,null,null,0,0,{"$error":"#DIV/0!"},null,null,null,null,null,null,null,null,null,"janvier",null,null,null,null,null,"janvier"]
[null,null,null,null,null,null,null,null,null,null,null,null,null,null,null,null,null,null,null,null,null,null,0,0,{"$error":"#DIV/0!"},null,null,null,null,null,null,null,null,null,"janvier",null,null,null,null,null,"janvier"]
[null,null,null,null,null,null,null,null,null,null,null,null,null,null,null,null,null,null,null,null,null,null,0,0,{"$error":"#DIV/0!"},null,null,null,null,null,null,null,null,null,"janvier",null,null,null,null,null,"janvier"]
[null,null,null,null,null,null,null,null,null,null,null,null,null,null,null,null,null,null,null,null,null,null,0,0,{"$error":"#DIV/0!"},null,null,null,null,null,null,null,null,null,"janvier",null,null,null,null,null,"janvier"]
[null,null,null,null,null,null,null,null,null,null,null,null,null,null,null,null,null,null,null,null,null,null,0,0,{"$error":"#DIV/0!"},null,null,null,null,null,null,null,null,null,"janvier",null,null,null,null,null,"janvier"]
[null,null,null,null,null,null,null,null,null,null,null,null,null,null,null,null,null,null,null,null,null,null,0,0,{"$error":"#DIV/0!"},null,null,null,null,null,null,null,null,null,"janvier",null,null,null,null,null,"janvier"]
[null,null,null,null,null,null,null,null,null,null,null,null,null,null,null,null,null,null,null,null,null,null,0,0,{"$error":"#DIV/0!"},null,null,null,null,null,null,null,null,null,"janvier",null,null,null,null,null,"janvier"]
[null,null,null,null,null,null,null,null,null,null,null,null,null,null,null,null,null,null,null,null,null,null,0,0,{"$error":"#DIV/0!"},null,null,null,null,null,null,null,null,null,"janvier",null,null,null,null,null,"janvier"]
[null,null,null,null,null,null,null,null,null,null,null,null,null,null,null,null,null,null,null,null,null,null,0,0,{"$error":"#DIV/0!"},null,null,null,null,null,null,null,null,null,"janvier",null,null,null,null,null,"janvier"]
[null,null,null,null,null,null,null,null,null,null,null,null,null,null,null,null,null,null,null,null,null,null,0,0,{"$error":"#DIV/0!"},null,null,null,null,null,null,null,null,null,"janvier",null,null,null,null,null,"janvier"]
[null,null,null,null,null,null,null,null,null,null,null,null,null,null,null,null,null,null,null,null,null,null,0,0,{"$error":"#DIV/0!"},null,null,null,null,null,null,null,null,null,"janvier",null,null,null,null,null,"janvier"]
[null,null,null,null,null,null,null,null,null,null,null,null,null,null,null,null,null,null,null,null,null,null,0,0,{"$error":"#DIV/0!"},null,null,null,null,null,null,null,null,null,"janvier",null,null,null,null,null,"janvier"]
[null,null,null,null,null,null,null,null,null,null,null,null,null,null,null,null,null,null,null,null,null,null,0,0,{"$error":"#DIV/0!"},null,null,null,null,null,null,null,null,null,"janvier",null,null,null,null,null,"janvier"]
[null,null,null,null,null,null,null,null,null,null,null,null,null,null,null,null,null,null,null,null,null,null,0,0,{"$error":"#DIV/0!"},null,null,null,null,null,null,null,null,null,"janvier",null,null,null,null,null,"janvier"]
[null,null,null,null,null,null,null,null,null,null,null,null,null,null,null,null,null,null,null,null,null,null,{"$f":"P579-Q579","v":0},{"$f":"Q579-U579","v":0},{"$f":"X579/Q579","v":{"$error":"#DIV/0!"}},null,null,null,null,null,null,null,null,null,{"$f":"TEXT(AH579,\"MMMM\")","v":"janvier"},null,null,null,null,null,{"$f":"TEXT(AN579,\"MMMM\")","v":"janvier"}]
[null,null,null,null,null,null,null,null,null,null,null,null,null,null,null,null,null,null,null,null,null,null,0,0,{"$error":"#DIV/0!"},null,null,null,null,null,null,null,null,null,"janvier",null,null,null,null,null,"janvier"]
[null,null,null,null,null,null,null,null,null,null,null,null,null,null,null,null,null,null,null,null,null,null,0,0,{"$error":"#DIV/0!"},null,null,null,null,null,null,null,null,null,"janvier",null,null,null,null,null,"janvier"]
[null,null,null,null,null,null,null,null,null,null,null,null,null,null,null,null,null,null,null,null,null,null,0,0,{"$error":"#DIV/0!"},null,null,null,null,null,null,null,null,null,"janvier",null,null,null,null,null,"janvier"]
[null,null,null,null,null,null,null,null,null,null,null,null,null,null,null,null,null,null,null,null,null,null,0,0,{"$error":"#DIV/0!"},null,null,null,null,null,null,null,null,null,"janvier",null,null,null,null,null,"janvier"]
[null,null,null,null,null,null,null,null,null,null,null,null,null,null,null,null,null,null,null,null,null,null,0,0,{"$error":"#DIV/0!"},null,null,null,null,null,null,null,null,null,"janvier",null,null,null,null,null,"janvier"]
[null,null,null,null,null,null,null,null,null,null,null,null,null,null,null,null,null,null,null,null,null,null,0,0,{"$error":"#DIV/0!"},null,null,null,null,null,null,null,null,null,"janvier",null,null,null,null,null,"janvier"]
[null,null,null,null,null,null,null,null,null,null,null,null,null,null,null,null,null,null,null,null,null,null,0,0,{"$error":"#DIV/0!"},null,null,null,null,null,null,null,null,null,"janvier",null,null,null,null,null,"janvier"]
[null,null,null,null,null,null,null,null,null,null,null,null,null,null,null,null,null,null,null,null,null,null,0,0,{"$error":"#DIV/0!"},null,null,null,null,null,null,null,null,null,"janvier",null,null,null,null,null,"janvier"]
[null,null,null,null,null,null,null,null,null,null,null,null,null,null,null,null,null,null,null,null,null,null,0,0,{"$error":"#DIV/0!"},null,null,null,null,null,null,null,null,null,"janvier",null,null,null,null,null,"janvier"]
[null,null,null,null,null,null,null,null,null,null,null,null,null,null,null,null,null,null,null,null,null,null,0,0,{"$error":"#DIV/0!"},null,null,null,null,null,null,null,null,null,"janvier",null,null,null,null,null,"janvier"]
[null,null,null,null,null,null,null,null,null,null,null,null,null,null,null,null,null,null,null,null,null,null,0,0,{"$error":"#DIV/0!"},null,null,null,null,null,null,null,null,null,"janvier",null,null,null,null,null,"janvier"]
[null,null,null,null,null,null,null,null,null,null,null,null,null,null,null,null,null,null,null,null,null,null,0,0,{"$error":"#DIV/0!"},null,null,null,null,null,null,null,null,null,"janvier",null,null,null,null,null,"janvier"]
[null,null,null,null,null,null,null,null,null,null,null,null,null,null,null,null,null,null,null,null,null,null,0,0,{"$error":"#DIV/0!"},null,null,null,null,null,null,null,null,null,"janvier",null,null,null,null,null,"janvier"]
[null,null,null,null,null,null,null,null,null,null,null,null,null,null,null,null,null,null,null,null,null,null,0,0,{"$error":"#DIV/0!"},null,null,null,null,null,null,null,null,null,"janvier",null,null,null,null,null,"janvier"]
[null,null,null,null,null,null,null,null,null,null,null,null,null,null,null,null,null,null,null,null,null,null,0,0,{"$error":"#DIV/0!"},null,null,null,null,null,null,null,null,null,"janvier",null,null,null,null,null,"janvier"]
[null,null,null,null,null,null,null,null,null,null,null,null,null,null,null,null,null,null,null,null,null,null,0,0,{"$error":"#DIV/0!"},null,null,null,null,null,null,null,null,null,"janvier",null,null,null,null,null,"janvier"]
[null,null,null,null,null,null,null,null,null,null,null,null,null,null,null,null,null,null,null,null,null,null,0,0,{"$error":"#DIV/0!"},null,null,null,null,null,null,null,null,null,"janvier",null,null,null,null,null,"janvier"]
[null,null,null,null,null,null,null,null,null,null,null,null,null,null,null,null,null,null,null,null,null,null,0,0,{"$error":"#DIV/0!"},null,null,null,null,null,null,null,null,null,"janvier",null,null,null,null,null,"janvier"]
[null,null,null,null,null,null,null,null,null,null,null,null,null,null,null,null,null,null,null,null,null,null,0,0,{"$error":"#DIV/0!"},null,null,null,null,null,null,null,null,null,"janvier",null,null,null,null,null,"janvier"]
[null,null,null,null,null,null,null,null,null,null,null,null,null,null,null,null,null,null,null,null,null,null,0,0,{"$error":"#DIV/0!"},null,null,null,null,null,null,null,null,null,"janvier",null,null,null,null,null,"janvier"]
[null,null,null,null,null,null,null,null,null,null,null,null,null,null,null,null,null,null,null,null,null,null,0,0,{"$error":"#DIV/0!"},null,null,null,null,null,null,null,null,null,"janvier",null,null,null,null,null,"janvier"]
[null,null,null,null,null,null,null,null,null,null,null,null,null,null,null,null,null,null,null,null,null,null,0,0,{"$error":"#DIV/0!"},null,null,null,null,null,null,null,null,null,"janvier",null,null,null,null,null,"janvier"]
[null,null,null,null,null,null,null,null,null,null,null,null,null,null,null,null,null,null,null,null,null,null,0,0,{"$error":"#DIV/0!"},null,null,null,null,null,null,null,null,null,"janvier",null,null,null,null,null,"janvier"]
[null,null,null,null,null,null,null,null,null,null,null,null,null,null,null,null,null,null,null,null,null,null,0,0,{"$error":"#DIV/0!"},null,null,null,null,null,null,null,null,null,"janvier",null,null,null,null,null,"janvier"]
[null,null,null,null,null,null,null,null,null,null,null,null,null,null,null,null,null,null,null,null,null,null,0,0,{"$error":"#DIV/0!"},null,null,null,null,null,null,null,null,null,"janvier",null,null,null,null,null,"janvier"]
[null,null,null,null,null,null,null,null,null,null,null,null,null,null,null,null,null,null,null,null,null,null,0,0,{"$error":"#DIV/0!"},null,null,null,null,null,null,null,null,null,"janvier",null,null,null,null,null,"janvier"]
[null,null,null,null,null,null,null,null,null,null,null,null,null,null,null,null,null,null,null,null,null,null,0,0,{"$error":"#DIV/0!"},null,null,null,null,null,null,null,null,null,"janvier",null,null,null,null,null,"janvier"]
[null,null,null,null,null,null,null,null,null,null,null,null,null,null,null,null,null,null,null,null,null,null,0,0,{"$error":"#DIV/0!"},null,null,null,null,null,null,null,null,null,"janvier",null,null,null,null,null,"janvier"]
[null,null,null,null,null,null,null,null,null,null,null,null,null,null,null,null,null,null,null,null,null,null,0,0,{"$error":"#DIV/0!"},null,null,null,null,null,null,null,null,null,"janvier",null,null,null,null,null,"janvier"]
[null,null,null,null,null,null,null,null,null,null,null,null,null,null,null,null,null,null,null,null,null,null,0,0,{"$error":"#DIV/0!"},null,null,null,null,null,null,null,null,null,"janvier",null,null,null,null,null,"janvier"]
[null,null,null,null,null,null,null,null,null,null,null,null,null,null,null,null,null,null,null,null,null,null,0,0,{"$error":"#DIV/0!"},null,null,null,null,null,null,null,null,null,"janvier",null,null,null,null,null,"janvier"]
[null,null,null,null,null,null,null,null,null,null,null,null,null,null,null,null,null,null,null,null,null,null,0,0,{"$error":"#DIV/0!"},null,null,null,null,null,null,null,null,null,"janvier",null,null,null,null,null,"janvier"]
[null,null,null,null,null,null,null,null,null,null,null,null,null,null,null,null,null,null,null,null,null,null,0,0,{"$error":"#DIV/0!"},null,null,null,null,null,null,null,null,null,"janvier",null,null,null,null,null,"janvier"]
[null,null,null,null,null,null,null,null,null,null,null,null,null,null,null,null,null,null,null,null,null,null,0,0,{"$error":"#DIV/0!"},null,null,null,null,null,null,null,null,null,"janvier",null,null,null,null,null,"janvier"]
[null,null,null,null,null,null,null,null,null,null,null,null,null,null,null,null,null,null,null,null,null,null,0,0,{"$error":"#DIV/0!"},null,null,null,null,null,null,null,null,null,"janvier",null,null,null,null,null,"janvier"]
[null,null,null,null,null,null,null,null,null,null,null,null,null,null,null,null,null,null,null,null,null,null,0,0,{"$error":"#DIV/0!"},null,null,null,null,null,null,null,null,null,"janvier",null,null,null,null,null,"janvier"]
[null,null,null,null,null,null,null,null,null,null,null,null,null,null,null,null,null,null,null,null,null,null,0,0,{"$error":"#DIV/0!"},null,null,null,null,null,null,null,null,null,"janvier",null,null,null,null,null,"janvier"]
[null,null,null,null,null,null,null,null,null,null,null,null,null,null,null,null,null,null,null,null,null,null,0,0,{"$error":"#DIV/0!"},null,null,null,null,null,null,null,null,null,"janvier",null,null,null,null,null,"janvier"]
[null,null,null,null,null,null,null,null,null,null,null,null,null,null,null,null,null,null,null,null,null,null,0,0,{"$error":"#DIV/0!"},null,null,null,null,null,null,null,null,null,"janvier",null,null,null,null,null,"janvier"]
[null,null,null,null,null,null,null,null,null,null,null,null,null,null,null,null,null,null,null,null,null,null,0,0,{"$error":"#DIV/0!"},null,null,null,null,null,null,null,null,null,"janvier",null,null,null,null,null,"janvier"]
[null,null,null,null,null,null,null,null,null,null,null,null,null,null,null,null,null,null,null,null,null,null,0,0,{"$error":"#DIV/0!"},null,null,null,null,null,null,null,null,null,"janvier",null,null,null,null,null,"janvier"]
[null,null,null,null,null,null,null,null,null,null,null,null,null,null,null,null,null,null,null,null,null,null,0,0,{"$error":"#DIV/0!"},null,null,null,null,null,null,null,null,null,"janvier",null,null,null,null,null,"janvier"]
[null,null,null,null,null,null,null,null,null,null,null,null,null,null,null,null,null,null,null,null,null,null,0,0,{"$error":"#DIV/0!"},null,null,null,null,null,null,null,null,null,"janvier",null,null,null,null,null,"janvier"]
[null,null,null,null,null,null,null,null,null,null,null,null,null,null,null,null,null,null,null,null,null,null,0,0,{"$error":"#DIV/0!"},null,null,null,null,null,null,null,null,null,"janvier",null,null,null,null,null,"janvier"]
[null,null,null,null,null,null,null,null,null,null,null,null,null,null,null,null,null,null,null,null,null,null,0,0,{"$error":"#DIV/0!"},null,null,null,null,null,null,null,null,null,"janvier",null,null,null,null,null,"janvier"]
[null,null,null,null,null,null,null,null,null,null,null,null,null,null,null,null,null,null,null,null,null,null,0,0,{"$error":"#DIV/0!"},null,null,null,null,null,null,null,null,null,"janvier",null,null,null,null,null,"janvier"]
[null,null,null,null,null,null,null,null,null,null,null,null,null,null,null,null,null,null,null,null,null,null,0,0,{"$error":"#DIV/0!"},null,null,null,null,null,null,null,null,null,"janvier",null,null,null,null,null,"janvier"]
[null,null,null,null,null,null,null,null,null,null,null,null,null,null,null,null,null,null,null,null,null,null,0,0,{"$error":"#DIV/0!"},null,null,null,null,null,null,null,null,null,"janvier",null,null,null,null,null,"janvier"]
[null,null,null,null,null,null,null,null,null,null,null,null,null,null,null,null,null,null,null,null,null,null,0,0,{"$error":"#DIV/0!"},null,null,null,null,null,null,null,null,null,"janvier",null,null,null,null,null,"janvier"]
[null,null,null,null,null,null,null,null,null,null,null,null,null,null,null,null,null,null,null,null,null,null,0,0,{"$error":"#DIV/0!"},null,null,null,null,null,null,null,null,null,"janvier",null,null,null,null,null,"janvier"]
[null,null,null,null,null,null,null,null,null,null,null,null,null,null,null,null,null,null,null,null,null,null,0,0,{"$error":"#DIV/0!"},null,null,null,null,null,null,null,null,null,"janvier",null,null,null,null,null,"janvier"]
[null,null,null,null,null,null,null,null,null,null,null,null,null,null,null,null,null,null,null,null,null,null,0,0,{"$error":"#DIV/0!"},null,null,null,null,null,null,null,null,null,"janvier",null,null,null,null,null,"janvier"]
[null,null,null,null,null,null,null,null,null,null,null,null,null,null,null,null,null,null,null,null,null,null,0,0,{"$error":"#DIV/0!"},null,null,null,null,null,null,null,null,null,"janvier",null,null,null,null,null,"janvier"]
[null,null,null,null,null,null,null,null,null,null,null,null,null,null,null,null,null,null,null,null,null,null,0,0,{"$error":"#DIV/0!"},null,null,null,null,null,null,null,null,null,"janvier",null,null,null,null,null,"janvier"]
[null,null,null,null,null,null,null,null,null,null,null,null,null,null,null,null,null,null,null,null,null,null,0,0,{"$error":"#DIV/0!"},null,null,null,null,null,null,null,null,null,"janvier",null,null,null,null,null,"janvier"]
[null,null,null,null,null,null,null,null,null,null,null,null,null,null,null,null,null,null,null,null,null,null,0,0,{"$error":"#DIV/0!"},null,null,null,null,null,null,null,null,null,"janvier",null,null,null,null,null,"janvier"]
[null,null,null,null,null,null,null,null,null,null,null,null,null,null,null,null,null,null,null,null,null,null,0,0,{"$error":"#DIV/0!"},null,null,null,null,null,null,null,null,null,"janvier",null,null,null,null,null,"janvier"]
[null,null,null,null,null,null,null,null,null,null,null,null,null,null,null,null,null,null,null,null,null,null,0,0,{"$error":"#DIV/0!"},null,null,null,null,null,null,null,null,null,"janvier",null,null,null,null,null,"janvier"]
[null,null,null,null,null,null,null,null,null,null,null,null,null,null,null,null,null,null,null,null,null,null,0,0,{"$error":"#DIV/0!"},null,null,null,null,null,null,null,null,null,"janvier",null,null,null,null,null,"janvier"]
[null,null,null,null,null,null,null,null,null,null,null,null,null,null,null,null,null,null,null,null,null,null,0,0,{"$error":"#DIV/0!"},null,null,null,null,null,null,null,null,null,"janvier",null,null,null,null,null,"janvier"]
[null,null,null,null,null,null,null,null,null,null,null,null,null,null,null,null,null,null,null,null,null,null,0,0,{"$error":"#DIV/0!"},null,null,null,null,null,null,null,null,null,"janvier",null,null,null,null,null,"janvier"]
[null,null,null,null,null,null,null,null,null,null,null,null,null,null,null,null,null,null,null,null,null,null,0,0,{"$error":"#DIV/0!"},null,null,null,null,null,null,null,null,null,"janvier",null,null,null,null,null,"janvier"]
[null,null,null,null,null,null,null,null,null,null,null,null,null,null,null,null,null,null,null,null,null,null,0,0,{"$error":"#DIV/0!"},null,null,null,null,null,null,null,null,null,"janvier",null,null,null,null,null,"janvier"]
[null,null,null,null,null,null,null,null,null,null,null,null,null,null,null,null,null,null,null,null,null,null,{"$f":"P643-Q643","v":0},{"$f":"Q643-U643","v":0},{"$f":"X643/Q643","v":{"$error":"#DIV/0!"}},null,null,null,null,null,null,null,null,null,{"$f":"TEXT(AH643,\"MMMM\")","v":"janvier"},null,null,null,null,null,{"$f":"TEXT(AN643,\"MMMM\")","v":"janvier"}]
[null,null,null,null,null,null,null,null,null,null,null,null,null,null,null,null,null,null,null,null,null,null,0,0,{"$error":"#DIV/0!"},null,null,null,null,null,null,null,null,null,"janvier",null,null,null,null,null,"janvier"]
[null,null,null,null,null,null,null,null,null,null,null,null,null,null,null,null,null,null,null,null,null,null,0,0,{"$error":"#DIV/0!"},null,null,null,null,null,null,null,null,null,"janvier",null,null,null,null,null,"janvier"]
[null,null,null,null,null,null,null,null,null,null,null,null,null,null,null,null,null,null,null,null,null,null,0,0,{"$error":"#DIV/0!"},null,null,null,null,null,null,null,null,null,"janvier",null,null,null,null,null,"janvier"]
[null,null,null,null,null,null,null,null,null,null,null,null,null,null,null,null,null,null,null,null,null,null,0,0,{"$error":"#DIV/0!"},null,null,null,null,null,null,null,null,null,"janvier",null,null,null,null,null,"janvier"]
[null,null,null,null,null,null,null,null,null,null,null,null,null,null,null,null,null,null,null,null,null,null,0,0,{"$error":"#DIV/0!"},null,null,null,null,null,null,null,null,null,"janvier",null,null,null,null,null,"janvier"]
[null,null,null,null,null,null,null,null,null,null,null,null,null,null,null,null,null,null,null,null,null,null,0,0,{"$error":"#DIV/0!"},null,null,null,null,null,null,null,null,null,"janvier",null,null,null,null,null,"janvier"]
[null,null,null,null,null,null,null,null,null,null,null,null,null,null,null,null,null,null,null,null,null,null,0,0,{"$error":"#DIV/0!"},null,null,null,null,null,null,null,null,null,"janvier",null,null,null,null,null,"janvier"]
[null,null,null,null,null,null,null,null,null,null,null,null,null,null,null,null,null,null,null,null,null,null,0,0,{"$error":"#DIV/0!"},null,null,null,null,null,null,null,null,null,"janvier",null,null,null,null,null,"janvier"]
[null,null,null,null,null,null,null,null,null,null,null,null,null,null,null,null,null,null,null,null,null,null,0,0,{"$error":"#DIV/0!"},null,null,null,null,null,null,null,null,null,"janvier",null,null,null,null,null,"janvier"]
[null,null,null,null,null,null,null,null,null,null,null,null,null,null,null,null,null,null,null,null,null,null,0,0,{"$error":"#DIV/0!"},null,null,null,null,null,null,null,null,null,"janvier",null,null,null,null,null,"janvier"]
[null,null,null,null,null,null,null,null,null,null,null,null,null,null,null,null,null,null,null,null,null,null,0,0,{"$error":"#DIV/0!"},null,null,null,null,null,null,null,null,null,"janvier",null,null,null,null,null,"janvier"]
[null,null,null,null,null,null,null,null,null,null,null,null,null,null,null,null,null,null,null,null,null,null,0,0,{"$error":"#DIV/0!"},null,null,null,null,null,null,null,null,null,"janvier",null,null,null,null,null,"janvier"]
[null,null,null,null,null,null,null,null,null,null,null,null,null,null,null,null,null,null,null,null,null,null,0,0,{"$error":"#DIV/0!"},null,null,null,null,null,null,null,null,null,"janvier",null,null,null,null,null,"janvier"]
[null,null,null,null,null,null,null,null,null,null,null,null,null,null,null,null,null,null,null,null,null,null,0,0,{"$error":"#DIV/0!"},null,null,null,null,null,null,null,null,null,"janvier",null,null,null,null,null,"janvier"]
[null,null,null,null,null,null,null,null,null,null,null,null,null,null,null,null,null,null,null,null,null,null,0,0,{"$error":"#DIV/0!"},null,null,null,null,null,null,null,null,null,"janvier",null,null,null,null,null,"janvier"]
[null,null,null,null,null,null,null,null,null,null,null,null,null,null,null,null,null,null,null,null,null,null,0,0,{"$error":"#DIV/0!"},null,null,null,null,null,null,null,null,null,"janvier",null,null,null,null,null,"janvier"]
[null,null,null,null,null,null,null,null,null,null,null,null,null,null,null,null,null,null,null,null,null,null,0,0,{"$error":"#DIV/0!"},null,null,null,null,null,null,null,null,null,"janvier",null,null,null,null,null,"janvier"]
[null,null,null,null,null,null,null,null,null,null,null,null,null,null,null,null,null,null,null,null,null,null,0,0,{"$error":"#DIV/0!"},null,null,null,null,null,null,null,null,null,"janvier",null,null,null,null,null,"janvier"]
[null,null,null,null,null,null,null,null,null,null,null,null,null,null,null,null,null,null,null,null,null,null,0,0,{"$error":"#DIV/0!"},null,null,null,null,null,null,null,null,null,"janvier",null,null,null,null,null,"janvier"]
[null,null,null,null,null,null,null,null,null,null,null,null,null,null,null,null,null,null,null,null,null,null,0,0,{"$error":"#DIV/0!"},null,null,null,null,null,null,null,null,null,"janvier",null,null,null,null,null,"janvier"]
[null,null,null,null,null,null,null,null,null,null,null,null,null,null,null,null,null,null,null,null,null,null,0,0,{"$error":"#DIV/0!"},null,null,null,null,null,null,null,null,null,"janvier",null,null,null,null,null,"janvier"]
[null,null,null,null,null,null,null,null,null,null,null,null,null,null,null,null,null,null,null,null,null,null,0,0,{"$error":"#DIV/0!"},null,null,null,null,null,null,null,null,null,"janvier",null,null,null,null,null,"janvier"]
[null,null,null,null,null,null,null,null,null,null,null,null,null,null,null,null,null,null,null,null,null,null,0,0,{"$error":"#DIV/0!"},null,null,null,null,null,null,null,null,null,"janvier",null,null,null,null,null,"janvier"]
[null,null,null,null,null,null,null,null,null,null,null,null,null,null,null,null,null,null,null,null,null,null,0,0,{"$error":"#DIV/0!"},null,null,null,null,null,null,null,null,null,"janvier",null,null,null,null,null,"janvier"]
[null,null,null,null,null,null,null,null,null,null,null,null,null,null,null,null,null,null,null,null,null,null,0,0,{"$error":"#DIV/0!"},null,null,null,null,null,null,null,null,null,"janvier",null,null,null,null,null,"janvier"]
[null,null,null,null,null,null,null,null,null,null,null,null,null,null,null,null,null,null,null,null,null,null,0,0,{"$error":"#DIV/0!"},null,null,null,null,null,null,null,null,null,"janvier",null,null,null,null,null,"janvier"]
[null,null,null,null,null,null,null,null,null,null,null,null,null,null,null,null,null,null,null,null,null,null,0,0,{"$error":"#DIV/0!"},null,null,null,null,null,null,null,null,null,"janvier",null,null,null,null,null,"janvier"]
[null,null,null,null,null,null,null,null,null,null,null,null,null,null,null,null,null,null,null,null,null,null,0,0,{"$error":"#DIV/0!"},null,null,null,null,null,null,null,null,null,"janvier",null,null,null,null,null,"janvier"]
[null,null,null,null,null,null,null,null,null,null,null,null,null,null,null,null,null,null,null,null,null,null,0,0,{"$error":"#DIV/0!"},null,null,null,null,null,null,null,null,null,"janvier",null,null,null,null,null,"janvier"]
[null,null,null,null,null,null,null,null,null,null,null,null,null,null,null,null,null,null,null,null,null,null,0,0,{"$error":"#DIV/0!"},null,null,null,null,null,null,null,null,null,"janvier",null,null,null,null,null,"janvier"]
[null,null,null,null,null,null,null,null,null,null,null,null,null,null,null,null,null,null,null,null,null,null,0,0,{"$error":"#DIV/0!"},null,null,null,null,null,null,null,null,null,"janvier",null,null,null,null,null,"janvier"]
[null,null,null,null,null,null,null,null,null,null,null,null,null,null,null,null,null,null,null,null,null,null,0,0,{"$error":"#DIV/0!"},null,null,null,null,null,null,null,null,null,"janvier",null,null,null,null,null,"janvier"]
[null,null,null,null,null,null,null,null,null,null,null,null,null,null,null,null,null,null,null,null,null,null,0,0,{"$error":"#DIV/0!"},null,null,null,null,null,null,null,null,null,"janvier",null,null,null,null,null,"janvier"]
[null,null,null,null,null,null,null,null,null,null,null,null,null,null,null,null,null,null,null,null,null,null,0,0,{"$error":"#DIV/0!"},null,null,null,null,null,null,null,null,null,"janvier",null,null,null,null,null,"janvier"]
[null,null,null,null,null,null,null,null,null,null,null,null,null,null,null,null,null,null,null,null,null,null,0,0,{"$error":"#DIV/0!"},null,null,null,null,null,null,null,null,null,"janvier",null,null,null,null,null,"janvier"]
[null,null,null,null,null,null,null,null,null,null,null,null,null,null,null,null,null,null,null,null,null,null,0,0,{"$error":"#DIV/0!"},null,null,null,null,null,null,null,null,null,"janvier",null,null,null,null,null,"janvier"]
[null,null,null,null,null,null,null,null,null,null,null,null,null,null,null,null,null,null,null,null,null,null,0,0,{"$error":"#DIV/0!"},null,null,null,null,null,null,null,null,null,"janvier",null,null,null,null,null,"janvier"]
[null,null,null,null,null,null,null,null,null,null,null,null,null,null,null,null,null,null,null,null,null,null,0,0,{"$error":"#DIV/0!"},null,null,null,null,null,null,null,null,null,"janvier",null,null,null,null,null,"janvier"]
[null,null,null,null,null,null,null,null,null,null,null,null,null,null,null,null,null,null,null,null,null,null,0,0,{"$error":"#DIV/0!"},null,null,null,null,null,null,null,null,null,"janvier",null,null,null,null,null,"janvier"]
[null,null,null,null,null,null,null,null,null,null,null,null,null,null,null,null,null,null,null,null,null,null,0,0,{"$error":"#DIV/0!"},null,null,null,null,null,null,null,null,null,"janvier",null,null,null,null,null,"janvier"]
[null,null,null,null,null,null,null,null,null,null,null,null,null,null,null,null,null,null,null,null,null,null,0,0,{"$error":"#DIV/0!"},null,null,null,null,null,null,null,null,null,"janvier",null,null,null,null,null,"janvier"]
[null,null,null,null,null,null,null,null,null,null,null,null,null,null,null,null,null,null,null,null,null,null,0,0,{"$error":"#DIV/0!"},null,null,null,null,null,null,null,null,null,"janvier",null,null,null,null,null,"janvier"]
[null,null,null,null,null,null,null,null,null,null,null,null,null,null,null,null,null,null,null,null,null,null,0,0,{"$error":"#DIV/0!"},null,null,null,null,null,null,null,null,null,"janvier",null,null,null,null,null,"janvier"]
[null,null,null,null,null,null,null,null,null,null,null,null,null,null,null,null,null,null,null,null,null,null,0,0,{"$error":"#DIV/0!"},null,null,null,null,null,null,null,null,null,"janvier",null,null,null,null,null,"janvier"]
[null,null,null,null,null,null,null,null,null,null,null,null,null,null,null,null,null,null,null,null,null,null,0,0,{"$error":"#DIV/0!"},null,null,null,null,null,null,null,null,null,"janvier",null,null,null,null,null,"janvier"]
[null,null,null,null,null,null,null,null,null,null,null,null,null,null,null,null,null,null,null,null,null,null,0,0,{"$error":"#DIV/0!"},null,null,null,null,null,null,null,null,null,"janvier",null,null,null,null,null,"janvier"]
[null,null,null,null,null,null,null,null,null,null,null,null,null,null,null,null,null,null,null,null,null,null,0,0,{"$error":"#DIV/0!"},null,null,null,null,null,null,null,null,null,"janvier",null,null,null,null,null,"janvier"]
[null,null,null,null,null,null,null,null,null,null,null,null,null,null,null,null,null,null,null,null,null,null,0,0,{"$error":"#DIV/0!"},null,null,null,null,null,null,null,null,null,"janvier",null,null,null,null,null,"janvier"]
[null,null,null,null,null,null,null,null,null,null,null,null,null,null,null,null,null,null,null,null,null,null,0,0,{"$error":"#DIV/0!"},null,null,null,null,null,null,null,null,null,"janvier",null,null,null,null,null,"janvier"]
[null,null,null,null,null,null,null,null,null,null,null,null,null,null,null,null,null,null,null,null,null,null,0,0,{"$error":"#DIV/0!"},null,null,null,null,null,null,null,null,null,"janvier",null,null,null,null,null,"janvier"]
[null,null,null,null,null,null,null,null,null,null,null,null,null,null,null,null,null,null,null,null,null,null,0,0,{"$error":"#DIV/0!"},null,null,null,null,null,null,null,null,null,"janvier",null,null,null,null,null,"janvier"]
[null,null,null,null,null,null,null,null,null,null,null,null,null,null,null,null,null,null,null,null,null,null,0,0,{"$error":"#DIV/0!"},null,null,null,null,null,null,null,null,null,"janvier",null,null,null,null,null,"janvier"]
[null,null,null,null,null,null,null,null,null,null,null,null,null,null,null,null,null,null,null,null,null,null,0,0,{"$error":"#DIV/0!"},null,null,null,null,null,null,null,null,null,"janvier",null,null,null,null,null,"janvier"]
[null,null,null,null,null,null,null,null,null,null,null,null,null,null,null,null,null,null,null,null,null,null,0,0,{"$error":"#DIV/0!"},null,null,null,null,null,null,null,null,null,"janvier",null,null,null,null,null,"janvier"]
[null,null,null,null,null,null,null,null,null,null,null,null,null,null,null,null,null,null,null,null,null,null,0,0,{"$error":"#DIV/0!"},null,null,null,null,null,null,null,null,null,"janvier",null,null,null,null,null,"janvier"]
[null,null,null,null,null,null,null,null,null,null,null,null,null,null,null,null,null,null,null,null,null,null,0,0,{"$error":"#DIV/0!"},null,null,null,null,null,null,null,null,null,"janvier",null,null,null,null,null,"janvier"]
[null,null,null,null,null,null,null,null,null,null,null,null,null,null,null,null,null,null,null,null,null,null,0,0,{"$error":"#DIV/0!"},null,null,null,null,null,null,null,null,null,"janvier",null,null,null,null,null,"janvier"]
[null,null,null,null,null,null,null,null,null,null,null,null,null,null,null,null,null,null,null,null,null,null,0,0,{"$error":"#DIV/0!"},null,null,null,null,null,null,null,null,null,"janvier",null,null,null,null,null,"janvier"]
[null,null,null,null,null,null,null,null,null,null,null,null,null,null,null,null,null,null,null,null,null,null,0,0,{"$error":"#DIV/0!"},null,null,null,null,null,null,null,null,null,"janvier",null,null,null,null,null,"janvier"]
[null,null,null,null,null,null,null,null,null,null,null,null,null,null,null,null,null,null,null,null,null,null,0,0,{"$error":"#DIV/0!"},null,null,null,null,null,null,null,null,null,"janvier",null,null,null,null,null,"janvier"]
[null,null,null,null,null,null,null,null,null,null,null,null,null,null,null,null,null,null,null,null,null,null,0,0,{"$error":"#DIV/0!"},null,null,null,null,null,null,null,null,null,"janvier",null,null,null,null,null,"janvier"]
[null,null,null,null,null,null,null,null,null,null,null,null,null,null,null,null,null,null,null,null,null,null,0,0,{"$error":"#DIV/0!"},null,null,null,null,null,null,null,null,null,"janvier",null,null,null,null,null,"janvier"]
[null,null,null,null,null,null,null,null,null,null,null,null,null,null,null,null,null,null,null,null,null,null,0,0,{"$error":"#DIV/0!"},null,null,null,null,null,null,null,null,null,"janvier",null,null,null,null,null,"janvier"]
[null,null,null,null,null,null,null,null,null,null,null,null,null,null,null,null,null,null,null,null,null,null,{"$f":"P707-Q707","v":0},{"$f":"Q707-U707","v":0},{"$f":"X707/Q707","v":{"$error":"#DIV/0!"}},null,null,null,null,null,null,null,null,null,{"$f":"TEXT(AH707,\"MMMM\")","v":"janvier"},null,null,null,null,null,{"$f":"TEXT(AN707,\"MMMM\")","v":"janvier"}]
[null,null,null,null,null,null,null,null,null,null,null,null,null,null,null,null,null,null,null,null,null,null,0,0,{"$error":"#DIV/0!"},null,null,null,null,null,null,null,null,null,"janvier",null,null,null,null,null,"janvier"]
[null,null,null,null,null,null,null,null,null,null,null,null,null,null,null,null,null,null,null,null,null,null,0,0,{"$error":"#DIV/0!"},null,null,null,null,null,null,null,null,null,"janvier",null,null,null,null,null,"janvier"]
[null,null,null,null,null,null,null,null,null,null,null,null,null,null,null,null,null,null,null,null,null,null,0,0,{"$error":"#DIV/0!"},null,null,null,null,null,null,null,null,null,"janvier",null,null,null,null,null,"janvier"]
[null,null,null,null,null,null,null,null,null,null,null,null,null,null,null,null,null,null,null,null,null,null,0,0,{"$error":"#DIV/0!"},null,null,null,null,null,null,null,null,null,"janvier",null,null,null,null,null,"janvier"]
[null,null,null,null,null,null,null,null,null,null,null,null,null,null,null,null,null,null,null,null,null,null,0,0,{"$error":"#DIV/0!"},null,null,null,null,null,null,null,null,null,"janvier",null,null,null,null,null,"janvier"]
[null,null,null,null,null,null,null,null,null,null,null,null,null,null,null,null,null,null,null,null,null,null,0,0,{"$error":"#DIV/0!"},null,null,null,null,null,null,null,null,null,"janvier",null,null,null,null,null,"janvier"]
[null,null,null,null,null,null,null,null,null,null,null,null,null,null,null,null,null,null,null,null,null,null,0,0,{"$error":"#DIV/0!"},null,null,null,null,null,null,null,null,null,"janvier",null,null,null,null,null,"janvier"]
[null,null,null,null,null,null,null,null,null,null,null,null,null,null,null,null,null,null,null,null,null,null,0,0,{"$error":"#DIV/0!"},null,null,null,null,null,null,null,null,null,"janvier",null,null,null,null,null,"janvier"]
[null,null,null,null,null,null,null,null,null,null,null,null,null,null,null,null,null,null,null,null,null,null,0,0,{"$error":"#DIV/0!"},null,null,null,null,null,null,null,null,null,"janvier",null,null,null,null,null,"janvier"]
[null,null,null,null,null,null,null,null,null,null,null,null,null,null,null,null,null,null,null,null,null,null,0,0,{"$error":"#DIV/0!"},null,null,null,null,null,null,null,null,null,"janvier",null,null,null,null,null,"janvier"]
[null,null,null,null,null,null,null,null,null,null,null,null,null,null,null,null,null,null,null,null,null,null,0,0,{"$error":"#DIV/0!"},null,null,null,null,null,null,null,null,null,"janvier",null,null,null,null,null,"janvier"]
[null,null,null,null,null,null,null,null,null,null,null,null,null,null,null,null,null,null,null,null,null,null,0,0,{"$error":"#DIV/0!"},null,null,null,null,null,null,null,null,null,"janvier",null,null,null,null,null,"janvier"]
[null,null,null,null,null,null,null,null,null,null,null,null,null,null,null,null,null,null,null,null,null,null,0,0,{"$error":"#DIV/0!"},null,null,null,null,null,null,null,null,null,"janvier",null,null,null,null,null,"janvier"]
[null,null,null,null,null,null,null,null,null,null,null,null,null,null,null,null,null,null,null,null,null,null,0,0,{"$error":"#DIV/0!"},null,null,null,null,null,null,null,null,null,"janvier",null,null,null,null,null,"janvier"]
[null,null,null,null,null,null,null,null,null,null,null,null,null,null,null,null,null,null,null,null,null,null,0,0,{"$error":"#DIV/0!"},null,null,null,null,null,null,null,null,null,"janvier",null,null,null,null,null,"janvier"]
[null,null,null,null,null,null,null,null,null,null,null,null,null,null,null,null,null,null,null,null,null,null,0,0,{"$error":"#DIV/0!"},null,null,null,null,null,null,null,null,null,"janvier",null,null,null,null,null,"janvier"]
[null,null,null,null,null,null,null,null,null,null,null,null,null,null,null,null,null,null,null,null,null,null,0,0,{"$error":"#DIV/0!"},null,null,null,null,null,null,null,null,null,"janvier",null,null,null,null,null,"janvier"]
[null,null,null,null,null,null,null,null,null,null,null,null,null,null,null,null,null,null,null,null,null,null,0,0,{"$error":"#DIV/0!"},null,null,null,null,null,null,null,null,null,"janvier",null,null,null,null,null,"janvier"]
[null,null,null,null,null,null,null,null,null,null,null,null,null,null,null,null,null,null,null,null,null,null,0,0,{"$error":"#DIV/0!"},null,null,null,null,null,null,null,null,null,"janvier",null,null,null,null,null,"janvier"]
[null,null,null,null,null,null,null,null,null,null,null,null,null,null,null,null,null,null,null,null,null,null,0,0,{"$error":"#DIV/0!"},null,null,null,null,null,null,null,null,null,"janvier",null,null,null,null,null,"janvier"]
[null,null,null,null,null,null,null,null,null,null,null,null,null,null,null,null,null,null,null,null,null,null,0,0,{"$error":"#DIV/0!"},null,null,null,null,null,null,null,null,null,"janvier",null,null,null,null,null,"janvier"]
[null,null,null,null,null,null,null,null,null,null,null,null,null,null,null,null,null,null,null,null,null,null,0,0,{"$error":"#DIV/0!"},null,null,null,null,null,null,null,null,null,"janvier",null,null,null,null,null,"janvier"]
[null,null,null,null,null,null,null,null,null,null,null,null,null,null,null,null,null,null,null,null,null,null,0,0,{"$error":"#DIV/0!"},null,null,null,null,null,null,null,null,null,"janvier",null,null,null,null,null,"janvier"]
[null,null,null,null,null,null,null,null,null,null,null,null,null,null,null,null,null,null,null,null,null,null,0,0,{"$error":"#DIV/0!"},null,null,null,null,null,null,null,null,null,"janvier",null,null,null,null,null,"janvier"]
[null,null,null,null,null,null,null,null,null,null,null,null,null,null,null,null,null,null,null,null,null,null,0,0,{"$error":"#DIV/0!"},null,null,null,null,null,null,null,null,null,"janvier",null,null,null,null,null,"janvier"]
[null,null,null,null,null,null,null,null,null,null,null,null,null,null,null,null,null,null,null,null,null,null,0,0,{"$error":"#DIV/0!"},null,null,null,null,null,null,null,null,null,"janvier",null,null,null,null,null,"janvier"]
[null,null,null,null,null,null,null,null,null,null,null,null,null,null,null,null,null,null,null,null,null,null,0,0,{"$error":"#DIV/0!"},null,null,null,null,null,null,null,null,null,"janvier",null,null,null,null,null,"janvier"]
[null,null,null,null,null,null,null,null,null,null,null,null,null,null,null,null,null,null,null,null,null,null,0,0,{"$error":"#DIV/0!"},null,null,null,null,null,null,null,null,null,"janvier",null,null,null,null,null,"janvier"]
[null,null,null,null,null,null,null,null,null,null,null,null,null,null,null,null,null,null,null,null,null,null,0,0,{"$error":"#DIV/0!"},null,null,null,null,null,null,null,null,null,"janvier",null,null,null,null,null,"janvier"]
[null,null,null,null,null,null,null,null,null,null,null,null,null,null,null,null,null,null,null,null,null,null,0,0,{"$error":"#DIV/0!"},null,null,null,null,null,null,null,null,null,"janvier",null,null,null,null,null,"janvier"]
[null,null,null,null,null,null,null,null,null,null,null,null,null,null,null,null,null,null,null,null,null,null,0,0,{"$error":"#DIV/0!"},null,null,null,null,null,null,null,null,null,"janvier",null,null,null,null,null,"janvier"]
[null,null,null,null,null,null,null,null,null,null,null,null,null,null,null,null,null,null,null,null,null,null,0,0,{"$error":"#DIV/0!"},null,null,null,null,null,null,null,null,null,"janvier",null,null,null,null,null,"janvier"]
[null,null,null,null,null,null,null,null,null,null,null,null,null,null,null,null,null,null,null,null,null,null,0,0,{"$error":"#DIV/0!"},null,null,null,null,null,null,null,null,null,"janvier",null,null,null,null,null,"janvier"]
[null,null,null,null,null,null,null,null,null,null,null,null,null,null,null,null,null,null,null,null,null,null,0,0,{"$error":"#DIV/0!"},null,null,null,null,null,null,null,null,null,"janvier",null,null,null,null,null,"janvier"]
[null,null,null,null,null,null,null,null,null,null,null,null,null,null,null,null,null,null,null,null,null,null,0,0,{"$error":"#DIV/0!"},null,null,null,null,null,null,null,null,null,"janvier",null,null,null,null,null,"janvier"]
[null,null,null,null,null,null,null,null,null,null,null,null,null,null,null,null,null,null,null,null,null,null,0,0,{"$error":"#DIV/0!"},null,null,null,null,null,null,null,null,null,"janvier",null,null,null,null,null,"janvier"]
[null,null,null,null,null,null,null,null,null,null,null,null,null,null,null,null,null,null,null,null,null,null,0,0,{"$error":"#DIV/0!"},null,null,null,null,null,null,null,null,null,"janvier",null,null,null,null,null,"janvier"]
[null,null,null,null,null,null,null,null,null,null,null,null,null,null,null,null,null,null,null,null,null,null,0,0,{"$error":"#DIV/0!"},null,null,null,null,null,null,null,null,null,"janvier",null,null,null,null,null,"janvier"]
[null,null,null,null,null,null,null,null,null,null,null,null,null,null,null,null,null,null,null,null,null,null,0,0,{"$error":"#DIV/0!"},null,null,null,null,null,null,null,null,null,"janvier",null,null,null,null,null,"janvier"]
[null,null,null,null,null,null,null,null,null,null,null,null,null,null,null,null,null,null,null,null,null,null,0,0,{"$error":"#DIV/0!"},null,null,null,null,null,null,null,null,null,"janvier",null,null,null,null,null,"janvier"]
[null,null,null,null,null,null,null,null,null,null,null,null,null,null,null,null,null,null,null,null,null,null,0,0,{"$error":"#DIV/0!"},null,null,null,null,null,null,null,null,null,"janvier",null,null,null,null,null,"janvier"]
[null,null,null,null,null,null,null,null,null,null,null,null,null,null,null,null,null,null,null,null,null,null,0,0,{"$error":"#DIV/0!"},null,null,null,null,null,null,null,null,null,"janvier",null,null,null,null,null,"janvier"]
[null,null,null,null,null,null,null,null,null,null,null,null,null,null,null,null,null,null,null,null,null,null,0,0,{"$error":"#DIV/0!"},null,null,null,null,null,null,null,null,null,"janvier",null,null,null,null,null,"janvier"]
[null,null,null,null,null,null,null,null,null,null,null,null,null,null,null,null,null,null,null,null,null,null,0,0,{"$error":"#DIV/0!"},null,null,null,null,null,null,null,null,null,"janvier",null,null,null,null,null,"janvier"]
[null,null,null,null,null,null,null,null,null,null,null,null,null,null,null,null,null,null,null,null,null,null,0,0,{"$error":"#DIV/0!"},null,null,null,null,null,null,null,null,null,"janvier",null,null,null,null,null,"janvier"]
[null,null,null,null,null,null,null,null,null,null,null,null,null,null,null,null,null,null,null,null,null,null,0,0,{"$error":"#DIV/0!"},null,null,null,null,null,null,null,null,null,"janvier",null,null,null,null,null,"janvier"]
[null,null,null,null,null,null,null,null,null,null,null,null,null,null,null,null,null,null,null,null,null,null,0,0,{"$error":"#DIV/0!"},null,null,null,null,null,null,null,null,null,"janvier",null,null,null,null,null,"janvier"]
[null,null,null,null,null,null,null,null,null,null,null,null,null,null,null,null,null,null,null,null,null,null,0,0,{"$error":"#DIV/0!"},null,null,null,null,null,null,null,null,null,"janvier",null,null,null,null,null,"janvier"]
[null,null,null,null,null,null,null,null,null,null,null,null,null,null,null,null,null,null,null,null,null,null,0,0,{"$error":"#DIV/0!"},null,null,null,null,null,null,null,null,null,"janvier",null,null,null,null,null,"janvier"]
[null,null,null,null,null,null,null,null,null,null,null,null,null,null,null,null,null,null,null,null,null,null,0,0,{"$error":"#DIV/0!"},null,null,null,null,null,null,null,null,null,"janvier",null,null,null,null,null,"janvier"]
[null,null,null,null,null,null,null,null,null,null,null,null,null,null,null,null,null,null,null,null,null,null,0,0,{"$error":"#DIV/0!"},null,null,null,null,null,null,null,null,null,"janvier",null,null,null,null,null,"janvier"]
[null,null,null,null,null,null,null,null,null,null,null,null,null,null,null,null,null,null,null,null,null,null,0,0,{"$error":"#DIV/0!"},null,null,null,null,null,null,null,null,null,"janvier",null,null,null,null,null,"janvier"]
[null,null,null,null,null,null,null,null,null,null,null,null,null,null,null,null,null,null,null,null,null,null,0,0,{"$error":"#DIV/0!"},null,null,null,null,null,null,null,null,null,"janvier",null,null,null,null,null,"janvier"]
[null,null,null,null,null,null,null,null,null,null,null,null,null,null,null,null,null,null,null,null,null,null,0,0,{"$error":"#DIV/0!"},null,null,null,null,null,null,null,null,null,"janvier",null,null,null,null,null,"janvier"]
[null,null,null,null,null,null,null,null,null,null,null,null,null,null,null,null,null,null,null,null,null,null,0,0,{"$error":"#DIV/0!"},null,null,null,null,null,null,null,null,null,"janvier",null,null,null,null,null,"janvier"]
[null,null,null,null,null,null,null,null,null,null,null,null,null,null,null,null,null,null,null,null,null,null,0,0,{"$error":"#DIV/0!"},null,null,null,null,null,null,null,null,null,"janvier",null,null,null,null,null,"janvier"]
[null,null,null,null,null,null,null,null,null,null,null,null,null,null,null,null,null,null,null,null,null,null,0,0,{"$error":"#DIV/0!"},null,null,null,null,null,null,null,null,null,"janvier",null,null,null,null,null,"janvier"]
[null,null,null,null,null,null,null,null,null,null,null,null,null,null,null,null,null,null,null,null,null,null,0,0,{"$error":"#DIV/0!"},null,null,null,null,null,null,null,null,null,"janvier",null,null,null,null,null,"janvier"]
[null,null,null,null,null,null,null,null,null,null,null,null,null,null,null,null,null,null,null,null,null,null,0,0,{"$error":"#DIV/0!"},null,null,null,null,null,null,null,null,null,"janvier",null,null,null,null,null,"janvier"]
[null,null,null,null,null,null,null,null,null,null,null,null,null,null,null,null,null,null,null,null,null,null,0,0,{"$error":"#DIV/0!"},null,null,null,null,null,null,null,null,null,"janvier",null,null,null,null,null,"janvier"]
[null,null,null,null,null,null,null,null,null,null,null,null,null,null,null,null,null,null,null,null,null,null,0,0,{"$error":"#DIV/0!"},null,null,null,null,null,null,null,null,null,"janvier",null,null,null,null,null,"janvier"]
[null,null,null,null,null,null,null,null,null,null,null,null,null,null,null,null,null,null,null,null,null,null,0,0,{"$error":"#DIV/0!"},null,null,null,null,null,null,null,null,null,"janvier",null,null,null,null,null,"janvier"]
[null,null,null,null,null,null,null,null,null,null,null,null,null,null,null,null,null,null,null,null,null,null,0,0,{"$error":"#DIV/0!"},null,null,null,null,null,null,null,null,null,"janvier",null,null,null,null,null,"janvier"]
[null,null,null,null,null,null,null,null,null,null,null,null,null,null,null,null,null,null,null,null,null,null,{"$f":"P771-Q771","v":0},{"$f":"Q771-U771","v":0},{"$f":"X771/Q771","v":{"$error":"#DIV/0!"}},null,null,null,null,null,null,null,null,null,{"$f":"TEXT(AH771,\"MMMM\")","v":"janvier"},null,null,null,null,null,{"$f":"TEXT(AN771,\"MMMM\")","v":"janvier"}]
[null,null,null,null,null,null,null,null,null,null,null,null,null,null,null,null,null,null,null,null,null,null,0,0,{"$error":"#DIV/0!"},null,null,null,null,null,null,null,null,null,"janvier",null,null,null,null,null,"janvier"]
[null,null,null,null,null,null,null,null,null,null,null,null,null,null,null,null,null,null,null,null,null,null,0,0,{"$error":"#DIV/0!"},null,null,null,null,null,null,null,null,null,"janvier",null,null,null,null,null,"janvier"]
[null,null,null,null,null,null,null,null,null,null,null,null,null,null,null,null,null,null,null,null,null,null,0,0,{"$error":"#DIV/0!"},null,null,null,null,null,null,null,null,null,"janvier",null,null,null,null,null,"janvier"]
[null,null,null,null,null,null,null,null,null,null,null,null,null,null,null,null,null,null,null,null,null,null,0,0,{"$error":"#DIV/0!"},null,null,null,null,null,null,null,null,null,"janvier",null,null,null,null,null,"janvier"]
[null,null,null,null,null,null,null,null,null,null,null,null,null,null,null,null,null,null,null,null,null,null,0,0,{"$error":"#DIV/0!"},null,null,null,null,null,null,null,null,null,"janvier",null,null,null,null,null,"janvier"]
[null,null,null,null,null,null,null,null,null,null,null,null,null,null,null,null,null,null,null,null,null,null,0,0,{"$error":"#DIV/0!"},null,null,null,null,null,null,null,null,null,"janvier",null,null,null,null,null,"janvier"]
[null,null,null,null,null,null,null,null,null,null,null,null,null,null,null,null,null,null,null,null,null,null,0,0,{"$error":"#DIV/0!"},null,null,null,null,null,null,null,null,null,"janvier",null,null,null,null,null,"janvier"]
[null,null,null,null,null,null,null,null,null,null,null,null,null,null,null,null,null,null,null,null,null,null,0,0,{"$error":"#DIV/0!"},null,null,null,null,null,null,null,null,null,"janvier",null,null,null,null,null,"janvier"]
[null,null,null,null,null,null,null,null,null,null,null,null,null,null,null,null,null,null,null,null,null,null,0,0,{"$error":"#DIV/0!"},null,null,null,null,null,null,null,null,null,"janvier",null,null,null,null,null,"janvier"]
[null,null,null,null,null,null,null,null,null,null,null,null,null,null,null,null,null,null,null,null,null,null,0,0,{"$error":"#DIV/0!"},null,null,null,null,null,null,null,null,null,"janvier",null,null,null,null,null,"janvier"]
[null,null,null,null,null,null,null,null,null,null,null,null,null,null,null,null,null,null,null,null,null,null,0,0,{"$error":"#DIV/0!"},null,null,null,null,null,null,null,null,null,"janvier",null,null,null,null,null,"janvier"]
[null,null,null,null,null,null,null,null,null,null,null,null,null,null,null,null,null,null,null,null,null,null,0,0,{"$error":"#DIV/0!"},null,null,null,null,null,null,null,null,null,"janvier",null,null,null,null,null,"janvier"]
[null,null,null,null,null,null,null,null,null,null,null,null,null,null,null,null,null,null,null,null,null,null,0,0,{"$error":"#DIV/0!"},null,null,null,null,null,null,null,null,null,"janvier",null,null,null,null,null,"janvier"]
[null,null,null,null,null,null,null,null,null,null,null,null,null,null,null,null,null,null,null,null,null,null,0,0,{"$error":"#DIV/0!"},null,null,null,null,null,null,null,null,null,"janvier",null,null,null,null,null,"janvier"]
[null,null,null,null,null,null,null,null,null,null,null,null,null,null,null,null,null,null,null,null,null,null,0,0,{"$error":"#DIV/0!"},null,null,null,null,null,null,null,null,null,"janvier",null,null,null,null,null,"janvier"]
[null,null,null,null,null,null,null,null,null,null,null,null,null,null,null,null,null,null,null,null,null,null,0,0,{"$error":"#DIV/0!"},null,null,null,null,null,null,null,null,null,"janvier",null,null,null,null,null,"janvier"]
[null,null,null,null,null,null,null,null,null,null,null,null,null,null,null,null,null,null,null,null,null,null,0,0,{"$error":"#DIV/0!"},null,null,null,null,null,null,null,null,null,"janvier",null,null,null,null,null,"janvier"]
[null,null,null,null,null,null,null,null,null,null,null,null,null,null,null,null,null,null,null,null,null,null,0,0,{"$error":"#DIV/0!"},null,null,null,null,null,null,null,null,null,"janvier",null,null,null,null,null,"janvier"]
[null,null,null,null,null,null,null,null,null,null,null,null,null,null,null,null,null,null,null,null,null,null,0,0,{"$error":"#DIV/0!"},null,null,null,null,null,null,null,null,null,"janvier",null,null,null,null,null,"janvier"]
[null,null,null,null,null,null,null,null,null,null,null,null,null,null,null,null,null,null,null,null,null,null,0,0,{"$error":"#DIV/0!"},null,null,null,null,null,null,null,null,null,"janvier",null,null,null,null,null,"janvier"]
[null,null,null,null,null,null,null,null,null,null,null,null,null,null,null,null,null,null,null,null,null,null,0,0,{"$error":"#DIV/0!"},null,null,null,null,null,null,null,null,null,"janvier",null,null,null,null,null,"janvier"]
[null,null,null,null,null,null,null,null,null,null,null,null,null,null,null,null,null,null,null,null,null,null,0,0,{"$error":"#DIV/0!"},null,null,null,null,null,null,null,null,null,"janvier",null,null,null,null,null,"janvier"]
[null,null,null,null,null,null,null,null,null,null,null,null,null,null,null,null,null,null,null,null,null,null,0,0,{"$error":"#DIV/0!"},null,null,null,null,null,null,null,null,null,"janvier",null,null,null,null,null,"janvier"]
[null,null,null,null,null,null,null,null,null,null,null,null,null,null,null,null,null,null,null,null,null,null,0,0,{"$error":"#DIV/0!"},null,null,null,null,null,null,null,null,null,"janvier",null,null,null,null,null,"janvier"]
[null,null,null,null,null,null,null,null,null,null,null,null,null,null,null,null,null,null,null,null,null,null,0,0,{"$error":"#DIV/0!"},null,null,null,null,null,null,null,null,null,"janvier",null,null,null,null,null,"janvier"]
[null,null,null,null,null,null,null,null,null,null,null,null,null,null,null,null,null,null,null,null,null,null,0,0,{"$error":"#DIV/0!"},null,null,null,null,null,null,null,null,null,"janvier",null,null,null,null,null,"janvier"]
[null,null,null,null,null,null,null,null,null,null,null,null,null,null,null,null,null,null,null,null,null,null,0,0,{"$error":"#DIV/0!"},null,null,null,null,null,null,null,null,null,"janvier",null,null,null,null,null,"janvier"]
[null,null,null,null,null,null,null,null,null,null,null,null,null,null,null,null,null,null,null,null,null,null,0,0,{"$error":"#DIV/0!"},null,null,null,null,null,null,null,null,null,"janvier",null,null,null,null,null,"janvier"]
[null,null,null,null,null,null,null,null,null,null,null,null,null,null,null,null,null,null,null,null,null,null,0,0,{"$error":"#DIV/0!"},null,null,null,null,null,null,null,null,null,"janvier",null,null,null,null,null,"janvier"]
[null,null,null,null,null,null,null,null,null,null,null,null,null,null,null,null,null,null,null,null,null,null,0,0,{"$error":"#DIV/0!"},null,null,null,null,null,null,null,null,null,"janvier",null,null,null,null,null,"janvier"]
[null,null,null,null,null,null,null,null,null,null,null,null,null,null,null,null,null,null,null,null,null,null,0,0,{"$error":"#DIV/0!"},null,null,null,null,null,null,null,null,null,"janvier",null,null,null,null,null,"janvier"]
[null,null,null,null,null,null,null,null,null,null,null,null,null,null,null,null,null,null,null,null,null,null,0,0,{"$error":"#DIV/0!"},null,null,null,null,null,null,null,null,null,"janvier",null,null,null,null,null,"janvier"]
[null,null,null,null,null,null,null,null,null,null,null,null,null,null,null,null,null,null,null,null,null,null,0,0,{"$error":"#DIV/0!"},null,null,null,null,null,null,null,null,null,"janvier",null,null,null,null,null,"janvier"]
[null,null,null,null,null,null,null,null,null,null,null,null,null,null,null,null,null,null,null,null,null,null,0,0,{"$error":"#DIV/0!"},null,null,null,null,null,null,null,null,null,"janvier",null,null,null,null,null,"janvier"]
[null,null,null,null,null,null,null,null,null,null,null,null,null,null,null,null,null,null,null,null,null,null,0,0,{"$error":"#DIV/0!"},null,null,null,null,null,null,null,null,null,"janvier",null,null,null,null,null,"janvier"]
[null,null,null,null,null,null,null,null,null,null,null,null,null,null,null,null,null,null,null,null,null,null,0,0,{"$error":"#DIV/0!"},null,null,null,null,null,null,null,null,null,"janvier",null,null,null,null,null,"janvier"]
[null,null,null,null,null,null,null,null,null,null,null,null,null,null,null,null,null,null,null,null,null,null,0,0,{"$error":"#DIV/0!"},null,null,null,null,null,null,null,null,null,"janvier",null,null,null,null,null,"janvier"]
[null,null,null,null,null,null,null,null,null,null,null,null,null,null,null,null,null,null,null,null,null,null,0,0,{"$error":"#DIV/0!"},null,null,null,null,null,null,null,null,null,"janvier",null,null,null,null,null,"janvier"]
[null,null,null,null,null,null,null,null,null,null,null,null,null,null,null,null,null,null,null,null,null,null,0,0,{"$error":"#DIV/0!"},null,null,null,null,null,null,null,null,null,"janvier",null,null,null,null,null,"janvier"]
[null,null,null,null,null,null,null,null,null,null,null,null,null,null,null,null,null,null,null,null,null,null,0,0,{"$error":"#DIV/0!"},null,null,null,null,null,null,null,null,null,"janvier",null,null,null,null,null,"janvier"]
[null,null,null,null,null,null,null,null,null,null,null,null,null,null,null,null,null,null,null,null,null,null,0,0,{"$error":"#DIV/0!"},null,null,null,null,null,null,null,null,null,"janvier",null,null,null,null,null,"janvier"]
[null,null,null,null,null,null,null,null,null,null,null,null,null,null,null,null,null,null,null,null,null,null,0,0,{"$error":"#DIV/0!"},null,null,null,null,null,null,null,null,null,"janvier",null,null,null,null,null,"janvier"]
[null,null,null,null,null,null,null,null,null,null,null,null,null,null,null,null,null,null,null,null,null,null,0,0,{"$error":"#DIV/0!"},null,null,null,null,null,null,null,null,null,"janvier",null,null,null,null,null,"janvier"]
[null,null,null,null,null,null,null,null,null,null,null,null,null,null,null,null,null,null,null,null,null,null,0,0,{"$error":"#DIV/0!"},null,null,null,null,null,null,null,null,null,"janvier",null,null,null,null,null,"janvier"]
[null,null,null,null,null,null,null,null,null,null,null,null,null,null,null,null,null,null,null,null,null,null,0,0,{"$error":"#DIV/0!"},null,null,null,null,null,null,null,null,null,"janvier",null,null,null,null,null,"janvier"]
[null,null,null,null,null,null,null,null,null,null,null,null,null,null,null,null,null,null,null,null,null,null,0,0,{"$error":"#DIV/0!"},null,null,null,null,null,null,null,null,null,"janvier",null,null,null,null,null,"janvier"]
[null,null,null,null,null,null,null,null,null,null,null,null,null,null,null,null,null,null,null,null,null,null,0,0,{"$error":"#DIV/0!"},null,null,null,null,null,null,null,null,null,"janvier",null,null,null,null,null,"janvier"]
[null,null,null,null,null,null,null,null,null,null,null,null,null,null,null,null,null,null,null,null,null,null,0,0,{"$error":"#DIV/0!"},null,null,null,null,null,null,null,null,null,"janvier",null,null,null,null,null,"janvier"]
[null,null,null,null,null,null,null,null,null,null,null,null,null,null,null,null,null,null,null,null,null,null,0,0,{"$error":"#DIV/0!"},null,null,null,null,null,null,null,null,null,"janvier",null,null,null,null,null,"janvier"]
[null,null,null,null,null,null,null,null,null,null,null,null,null,null,null,null,null,null,null,null,null,null,0,0,{"$error":"#DIV/0!"},null,null,null,null,null,null,null,null,null,"janvier",null,null,null,null,null,"janvier"]
[null,null,null,null,null,null,null,null,null,null,null,null,null,null,null,null,null,null,null,null,null,null,0,0,{"$error":"#DIV/0!"},null,null,null,null,null,null,null,null,null,"janvier",null,null,null,null,null,"janvier"]
[null,null,null,null,null,null,null,null,null,null,null,null,null,null,null,null,null,null,null,null,null,null,0,0,{"$error":"#DIV/0!"},null,null,null,null,null,null,null,null,null,"janvier",null,null,null,null,null,"janvier"]
[null,null,null,null,null,null,null,null,null,null,null,null,null,null,null,null,null,null,null,null,null,null,0,0,{"$error":"#DIV/0!"},null,null,null,null,null,null,null,null,null,"janvier",null,null,null,null,null,"janvier"]
[null,null,null,null,null,null,null,null,null,null,null,null,null,null,null,null,null,null,null,null,null,null,0,0,{"$error":"#DIV/0!"},null,null,null,null,null,null,null,null,null,"janvier",null,null,null,null,null,"janvier"]
[null,null,null,null,null,null,null,null,null,null,null,null,null,null,null,null,null,null,null,null,null,null,0,0,{"$error":"#DIV/0!"},null,null,null,null,null,null,null,null,null,"janvier",null,null,null,null,null,"janvier"]
[null,null,null,null,null,null,null,null,null,null,null,null,null,null,null,null,null,null,null,null,null,null,0,0,{"$error":"#DIV/0!"},null,null,null,null,null,null,null,null,null,"janvier",null,null,null,null,null,"janvier"]
[null,null,null,null,null,null,null,null,null,null,null,null,null,null,null,null,null,null,null,null,null,null,0,0,{"$error":"#DIV/0!"},null,null,null,null,null,null,null,null,null,"janvier",null,null,null,null,null,"janvier"]
[null,null,null,null,null,null,null,null,null,null,null,null,null,null,null,null,null,null,null,null,null,null,0,0,{"$error":"#DIV/0!"},null,null,null,null,null,null,null,null,null,"janvier",null,null,null,null,null,"janvier"]
[null,null,null,null,null,null,null,null,null,null,null,null,null,null,null,null,null,null,null,null,null,null,0,0,{"$error":"#DIV/0!"},null,null,null,null,null,null,null,null,null,"janvier",null,null,null,null,null,"janvier"]
[null,null,null,null,null,null,null,null,null,null,null,null,null,null,null,null,null,null,null,null,null,null,0,0,{"$error":"#DIV/0!"},null,null,null,null,null,null,null,null,null,"janvier",null,null,null,null,null,"janvier"]
[null,null,null,null,null,null,null,null,null,null,null,null,null,null,null,null,null,null,null,null,null,null,0,0,{"$error":"#DIV/0!"},null,null,null,null,null,null,null,null,null,"janvier",null,null,null,null,null,"janvier"]
[null,null,null,null,null,null,null,null,null,null,null,null,null,null,null,null,null,null,null,null,null,null,0,0,{"$error":"#DIV/0!"},null,null,null,null,null,null,null,null,null,"janvier",null,null,null,null,null,"janvier"]
[null,null,null,null,null,null,null,null,null,null,null,null,null,null,null,null,null,null,null,null,null,null,0,0,{"$error":"#DIV/0!"},null,null,null,null,null,null,null,null,null,"janvier",null,null,null,null,null,"janvier"]
[null,null,null,null,null,null,null,null,null,null,null,null,null,null,null,null,null,null,null,null,null,null,{"$f":"P835-Q835","v":0},{"$f":"Q835-U835","v":0},{"$f":"X835/Q835","v":{"$error":"#DIV/0!"}},null,null,null,null,null,null,null,null,null,{"$f":"TEXT(AH835,\"MMMM\")","v":"janvier"},null,null,null,null,null,{"$f":"TEXT(AN835,\"MMMM\")","v":"janvier"}]
[null,null,null,null,null,null,null,null,null,null,null,null,null,null,null,null,null,null,null,null,null,null,0,0,{"$error":"#DIV/0!"},null,null,null,null,null,null,null,null,null,"janvier",null,null,null,null,null,"janvier"]
[null,null,null,null,null,null,null,null,null,null,null,null,null,null,null,null,null,null,null,null,null,null,0,0,{"$error":"#DIV/0!"},null,null,null,null,null,null,null,null,null,"janvier",null,null,null,null,null,"janvier"]
[null,null,null,null,null,null,null,null,null,null,null,null,null,null,null,null,null,null,null,null,null,null,0,0,{"$error":"#DIV/0!"},null,null,null,null,null,null,null,null,null,"janvier",null,null,null,null,null,"janvier"]
[null,null,null,null,null,null,null,null,null,null,null,null,null,null,null,null,null,null,null,null,null,null,0,0,{"$error":"#DIV/0!"},null,null,null,null,null,null,null,null,null,"janvier",null,null,null,null,null,"janvier"]
[null,null,null,null,null,null,null,null,null,null,null,null,null,null,null,null,null,null,null,null,null,null,0,0,{"$error":"#DIV/0!"},null,null,null,null,null,null,null,null,null,"janvier",null,null,null,null,null,"janvier"]
[null,null,null,null,null,null,null,null,null,null,null,null,null,null,null,null,null,null,null,null,null,null,0,0,{"$error":"#DIV/0!"},null,null,null,null,null,null,null,null,null,"janvier",null,null,null,null,null,"janvier"]
[null,null,null,null,null,null,null,null,null,null,null,null,null,null,null,null,null,null,null,null,null,null,0,0,{"$error":"#DIV/0!"},null,null,null,null,null,null,null,null,null,"janvier",null,null,null,null,null,"janvier"]
[null,null,null,null,null,null,null,null,null,null,null,null,null,null,null,null,null,null,null,null,null,null,0,0,{"$error":"#DIV/0!"},null,null,null,null,null,null,null,null,null,"janvier",null,null,null,null,null,"janvier"]
[null,null,null,null,null,null,null,null,null,null,null,null,null,null,null,null,null,null,null,null,null,null,0,0,{"$error":"#DIV/0!"},null,null,null,null,null,null,null,null,null,"janvier",null,null,null,null,null,"janvier"]
[null,null,null,null,null,null,null,null,null,null,null,null,null,null,null,null,null,null,null,null,null,null,0,0,{"$error":"#DIV/0!"},null,null,null,null,null,null,null,null,null,"janvier",null,null,null,null,null,"janvier"]
[null,null,null,null,null,null,null,null,null,null,null,null,null,null,null,null,null,null,null,null,null,null,0,0,{"$error":"#DIV/0!"},null,null,null,null,null,null,null,null,null,"janvier",null,null,null,null,null,"janvier"]
[null,null,null,null,null,null,null,null,null,null,null,null,null,null,null,null,null,null,null,null,null,null,0,0,{"$error":"#DIV/0!"},null,null,null,null,null,null,null,null,null,"janvier",null,null,null,null,null,"janvier"]
[null,null,null,null,null,null,null,null,null,null,null,null,null,null,null,null,null,null,null,null,null,null,0,0,{"$error":"#DIV/0!"},null,null,null,null,null,null,null,null,null,"janvier",null,null,null,null,null,"janvier"]
[null,null,null,null,null,null,null,null,null,null,null,null,null,null,null,null,null,null,null,null,null,null,0,0,{"$error":"#DIV/0!"},null,null,null,null,null,null,null,null,null,"janvier",null,null,null,null,null,"janvier"]
[null,null,null,null,null,null,null,null,null,null,null,null,null,null,null,null,null,null,null,null,null,null,0,0,{"$error":"#DIV/0!"},null,null,null,null,null,null,null,null,null,"janvier",null,null,null,null,null,"janvier"]
[null,null,null,null,null,null,null,null,null,null,null,null,null,null,null,null,null,null,null,null,null,null,0,0,{"$error":"#DIV/0!"},null,null,null,null,null,null,null,null,null,"janvier",null,null,null,null,null,"janvier"]
[null,null,null,null,null,null,null,null,null,null,null,null,null,null,null,null,null,null,null,null,null,null,0,0,{"$error":"#DIV/0!"},null,null,null,null,null,null,null,null,null,"janvier",null,null,null,null,null,"janvier"]
[null,null,null,null,null,null,null,null,null,null,null,null,null,null,null,null,null,null,null,null,null,null,0,0,{"$error":"#DIV/0!"},null,null,null,null,null,null,null,null,null,"janvier",null,null,null,null,null,"janvier"]
[null,null,null,null,null,null,null,null,null,null,null,null,null,null,null,null,null,null,null,null,null,null,0,0,{"$error":"#DIV/0!"},null,null,null,null,null,null,null,null,null,"janvier",null,null,null,null,null,"janvier"]
[null,null,null,null,null,null,null,null,null,null,null,null,null,null,null,null,null,null,null,null,null,null,0,0,{"$error":"#DIV/0!"},null,null,null,null,null,null,null,null,null,"janvier",null,null,null,null,null,"janvier"]
[null,null,null,null,null,null,null,null,null,null,null,null,null,null,null,null,null,null,null,null,null,null,0,0,{"$error":"#DIV/0!"},null,null,null,null,null,null,null,null,null,"janvier",null,null,null,null,null,"janvier"]
[null,null,null,null,null,null,null,null,null,null,null,null,null,null,null,null,null,null,null,null,null,null,0,0,{"$error":"#DIV/0!"},null,null,null,null,null,null,null,null,null,"janvier",null,null,null,null,null,"janvier"]
[null,null,null,null,null,null,null,null,null,null,null,null,null,null,null,null,null,null,null,null,null,null,0,0,{"$error":"#DIV/0!"},null,null,null,null,null,null,null,null,null,"janvier",null,null,null,null,null,"janvier"]
[null,null,null,null,null,null,null,null,null,null,null,null,null,null,null,null,null,null,null,null,null,null,0,0,{"$error":"#DIV/0!"},null,null,null,null,null,null,null,null,null,"janvier",null,null,null,null,null,"janvier"]
[null,null,null,null,null,null,null,null,null,null,null,null,null,null,null,null,null,null,null,null,null,null,0,0,{"$error":"#DIV/0!"},null,null,null,null,null,null,null,null,null,"janvier",null,null,null,null,null,"janvier"]
[null,null,null,null,null,null,null,null,null,null,null,null,null,null,null,null,null,null,null,null,null,null,0,0,{"$error":"#DIV/0!"},null,null,null,null,null,null,null,null,null,"janvier",null,null,null,null,null,"janvier"]
[null,null,null,null,null,null,null,null,null,null,null,null,null,null,null,null,null,null,null,null,null,null,0,0,{"$error":"#DIV/0!"},null,null,null,null,null,null,null,null,null,"janvier",null,null,null,null,null,"janvier"]
[null,null,null,null,null,null,null,null,null,null,null,null,null,null,null,null,null,null,null,null,null,null,0,0,{"$error":"#DIV/0!"},null,null,null,null,null,null,null,null,null,"janvier",null,null,null,null,null,"janvier"]
[null,null,null,null,null,null,null,null,null,null,null,null,null,null,null,null,null,null,null,null,null,null,0,0,{"$error":"#DIV/0!"},null,null,null,null,null,null,null,null,null,"janvier",null,null,null,null,null,"janvier"]
[null,null,null,null,null,null,null,null,null,null,null,null,null,null,null,null,null,null,null,null,null,null,0,0,{"$error":"#DIV/0!"},null,null,null,null,null,null,null,null,null,"janvier",null,null,null,null,null,"janvier"]
[null,null,null,null,null,null,null,null,null,null,null,null,null,null,null,null,null,null,null,null,null,null,0,0,{"$error":"#DIV/0!"},null,null,null,null,null,null,null,null,null,"janvier",null,null,null,null,null,"janvier"]
[null,null,null,null,null,null,null,null,null,null,null,null,null,null,null,null,null,null,null,null,null,null,0,0,{"$error":"#DIV/0!"},null,null,null,null,null,null,null,null,null,"janvier",null,null,null,null,null,"janvier"]
[null,null,null,null,null,null,null,null,null,null,null,null,null,null,null,null,null,null,null,null,null,null,0,0,{"$error":"#DIV/0!"},null,null,null,null,null,null,null,null,null,"janvier",null,null,null,null,null,"janvier"]
[null,null,null,null,null,null,null,null,null,null,null,null,null,null,null,null,null,null,null,null,null,null,0,0,{"$error":"#DIV/0!"},null,null,null,null,null,null,null,null,null,"janvier",null,null,null,null,null,"janvier"]
[null,null,null,null,null,null,null,null,null,null,null,null,null,null,null,null,null,null,null,null,null,null,0,0,{"$error":"#DIV/0!"},null,null,null,null,null,null,null,null,null,"janvier",null,null,null,null,null,"janvier"]
[null,null,null,null,null,null,null,null,null,null,null,null,null,null,null,null,null,null,null,null,null,null,0,0,{"$error":"#DIV/0!"},null,null,null,null,null,null,null,null,null,"janvier",null,null,null,null,null,"janvier"]
[null,null,null,null,null,null,null,null,null,null,null,null,null,null,null,null,null,null,null,null,null,null,0,0,{"$error":"#DIV/0!"},null,null,null,null,null,null,null,null,null,"janvier",null,null,null,null,null,"janvier"]
[null,null,null,null,null,null,null,null,null,null,null,null,null,null,null,null,null,null,null,null,null,null,0,0,{"$error":"#DIV/0!"},null,null,null,null,null,null,null,null,null,"janvier",null,null,null,null,null,"janvier"]
[null,null,null,null,null,null,null,null,null,null,null,null,null,null,null,null,null,null,null,null,null,null,0,0,{"$error":"#DIV/0!"},null,null,null,null,null,null,null,null,null,"janvier",null,null,null,null,null,"janvier"]
[null,null,null,null,null,null,null,null,null,null,null,null,null,null,null,null,null,null,null,null,null,null,0,0,{"$error":"#DIV/0!"},null,null,null,null,null,null,null,null,null,"janvier",null,null,null,null,null,"janvier"]
[null,null,null,null,null,null,null,null,null,null,null,null,null,null,null,null,null,null,null,null,null,null,0,0,{"$error":"#DIV/0!"},null,null,null,null,null,null,null,null,null,"janvier",null,null,null,null,null,"janvier"]
[null,null,null,null,null,null,null,null,null,null,null,null,null,null,null,null,null,null,null,null,null,null,0,0,{"$error":"#DIV/0!"},null,null,null,null,null,null,null,null,null,"janvier",null,null,null,null,null,"janvier"]
[null,null,null,null,null,null,null,null,null,null,null,null,null,null,null,null,null,null,null,null,null,null,0,0,{"$error":"#DIV/0!"},null,null,null,null,null,null,null,null,null,"janvier",null,null,null,null,null,"janvier"]
[null,null,null,null,null,null,null,null,null,null,null,null,null,null,null,null,null,null,null,null,null,null,0,0,{"$error":"#DIV/0!"},null,null,null,null,null,null,null,null,null,"janvier",null,null,null,null,null,"janvier"]
[null,null,null,null,null,null,null,null,null,null,null,null,null,null,null,null,null,null,null,null,null,null,0,0,{"$error":"#DIV/0!"},null,null,null,null,null,null,null,null,null,"janvier",null,null,null,null,null,"janvier"]
[null,null,null,null,null,null,null,null,null,null,null,null,null,null,null,null,null,null,null,null,null,null,0,0,{"$error":"#DIV/0!"},null,null,null,null,null,null,null,null,null,"janvier",null,null,null,null,null,"janvier"]
[null,null,null,null,null,null,null,null,null,null,null,null,null,null,null,null,null,null,null,null,null,null,0,0,{"$error":"#DIV/0!"},null,null,null,null,null,null,null,null,null,"janvier",null,null,null,null,null,"janvier"]
[null,null,null,null,null,null,null,null,null,null,null,null,null,null,null,null,null,null,null,null,null,null,0,0,{"$error":"#DIV/0!"},null,null,null,null,null,null,null,null,null,"janvier",null,null,null,null,null,"janvier"]
[null,null,null,null,null,null,null,null,null,null,null,null,null,null,null,null,null,null,null,null,null,null,0,0,{"$error":"#DIV/0!"},null,null,null,null,null,null,null,null,null,"janvier",null,null,null,null,null,"janvier"]
[null,null,null,null,null,null,null,null,null,null,null,null,null,null,null,null,null,null,null,null,null,null,0,0,{"$error":"#DIV/0!"},null,null,null,null,null,null,null,null,null,"janvier",null,null,null,null,null,"janvier"]
[null,null,null,null,null,null,null,null,null,null,null,null,null,null,null,null,null,null,null,null,null,null,0,0,{"$error":"#DIV/0!"},null,null,null,null,null,null,null,null,null,"janvier",null,null,null,null,null,"janvier"]
[null,null,null,null,null,null,null,null,null,null,null,null,null,null,null,null,null,null,null,null,null,null,0,0,{"$error":"#DIV/0!"},null,null,null,null,null,null,null,null,null,"janvier",null,null,null,null,null,"janvier"]
[null,null,null,null,null,null,null,null,null,null,null,null,null,null,null,null,null,null,null,null,null,null,0,0,{"$error":"#DIV/0!"},null,null,null,null,null,null,null,null,null,"janvier",null,null,null,null,null,"janvier"]
[null,null,null,null,null,null,null,null,null,null,null,null,null,null,null,null,null,null,null,null,null,null,0,0,{"$error":"#DIV/0!"},null,null,null,null,null,null,null,null,null,"janvier",null,null,null,null,null,"janvier"]
[null,null,null,null,null,null,null,null,null,null,null,null,null,null,null,null,null,null,null,null,null,null,0,0,{"$error":"#DIV/0!"},null,null,null,null,null,null,null,null,null,"janvier",null,null,null,null,null,"janvier"]
[null,null,null,null,null,null,null,null,null,null,null,null,null,null,null,null,null,null,null,null,null,null,0,0,{"$error":"#DIV/0!"},null,null,null,null,null,null,null,null,null,"janvier",null,null,null,null,null,"janvier"]
[null,null,null,null,null,null,null,null,null,null,null,null,null,null,null,null,null,null,null,null,null,null,0,0,{"$error":"#DIV/0!"},null,null,null,null,null,null,null,null,null,"janvier",null,null,null,null,null,"janvier"]
[null,null,null,null,null,null,null,null,null,null,null,null,null,null,null,null,null,null,null,null,null,null,0,0,{"$error":"#DIV/0!"},null,null,null,null,null,null,null,null,null,"janvier",null,null,null,null,null,"janvier"]
[null,null,null,null,null,null,null,null,null,null,null,null,null,null,null,null,null,null,null,null,null,null,0,0,{"$error":"#DIV/0!"},null,null,null,null,null,null,null,null,null,"janvier",null,null,null,null,null,"janvier"]
[null,null,null,null,null,null,null,null,null,null,null,null,null,null,null,null,null,null,null,null,null,null,0,0,{"$error":"#DIV/0!"},null,null,null,null,null,null,null,null,null,"janvier",null,null,null,null,null,"janvier"]
[null,null,null,null,null,null,null,null,null,null,null,null,null,null,null,null,null,null,null,null,null,null,0,0,{"$error":"#DIV/0!"},null,null,null,null,null,null,null,null,null,"janvier",null,null,null,null,null,"janvier"]
[null,null,null,null,null,null,null,null,null,null,null,null,null,null,null,null,null,null,null,null,null,null,0,0,{"$error":"#DIV/0!"},null,null,null,null,null,null,null,null,null,"janvier",null,null,null,null,null,"janvier"]
[null,null,null,null,null,null,null,null,null,null,null,null,null,null,null,null,null,null,null,null,null,null,0,0,{"$error":"#DIV/0!"},null,null,null,null,null,null,null,null,null,"janvier",null,null,null,null,null,"janvier"]
[null,null,null,null,null,null,null,null,null,null,null,null,null,null,null,null,null,null,null,null,null,null,{"$f":"P899-Q899","v":0},{"$f":"Q899-U899","v":0},{"$f":"X899/Q899","v":{"$error":"#DIV/0!"}},null,null,null,null,null,null,null,null,null,{"$f":"TEXT(AH899,\"MMMM\")","v":"janvier"},null,null,null,null,null,{"$f":"TEXT(AN899,\"MMMM\")","v":"janvier"}]
[null,null,null,null,null,null,null,null,null,null,null,null,null,null,null,null,null,null,null,null,null,null,0,0,{"$error":"#DIV/0!"},null,null,null,null,null,null,null,null,null,"janvier",null,null,null,null,null,"janvier"]
[null,null,null,null,null,null,null,null,null,null,null,null,null,null,null,null,null,null,null,null,null,null,0,0,{"$error":"#DIV/0!"},null,null,null,null,null,null,null,null,null,"janvier",null,null,null,null,null,"janvier"]
[null,null,null,null,null,null,null,null,null,null,null,null,null,null,null,null,null,null,null,null,null,null,0,0,{"$error":"#DIV/0!"},null,null,null,null,null,null,null,null,null,"janvier",null,null,null,null,null,"janvier"]
[null,null,null,null,null,null,null,null,null,null,null,null,null,null,null,null,null,null,null,null,null,null,0,0,{"$error":"#DIV/0!"},null,null,null,null,null,null,null,null,null,"janvier",null,null,null,null,null,"janvier"]
[null,null,null,null,null,null,null,null,null,null,null,null,null,null,null,null,null,null,null,null,null,null,0,0,{"$error":"#DIV/0!"},null,null,null,null,null,null,null,null,null,"janvier",null,null,null,null,null,"janvier"]
[null,null,null,null,null,null,null,null,null,null,null,null,null,null,null,null,null,null,null,null,null,null,0,0,{"$error":"#DIV/0!"},null,null,null,null,null,null,null,null,null,"janvier",null,null,null,null,null,"janvier"]
[null,null,null,null,null,null,null,null,null,null,null,null,null,null,null,null,null,null,null,null,null,null,0,0,{"$error":"#DIV/0!"},null,null,null,null,null,null,null,null,null,"janvier",null,null,null,null,null,"janvier"]
[null,null,null,null,null,null,null,null,null,null,null,null,null,null,null,null,null,null,null,null,null,null,0,0,{"$error":"#DIV/0!"},null,null,null,null,null,null,null,null,null,"janvier",null,null,null,null,null,"janvier"]
[null,null,null,null,null,null,null,null,null,null,null,null,null,null,null,null,null,null,null,null,null,null,0,0,{"$error":"#DIV/0!"},null,null,null,null,null,null,null,null,null,"janvier",null,null,null,null,null,"janvier"]
[null,null,null,null,null,null,null,null,null,null,null,null,null,null,null,null,null,null,null,null,null,null,0,0,{"$error":"#DIV/0!"},null,null,null,null,null,null,null,null,null,"janvier",null,null,null,null,null,"janvier"]
[null,null,null,null,null,null,null,null,null,null,null,null,null,null,null,null,null,null,null,null,null,null,0,0,{"$error":"#DIV/0!"},null,null,null,null,null,null,null,null,null,"janvier",null,null,null,null,null,"janvier"]
[null,null,null,null,null,null,null,null,null,null,null,null,null,null,null,null,null,null,null,null,null,null,0,0,{"$error":"#DIV/0!"},null,null,null,null,null,null,null,null,null,"janvier",null,null,null,null,null,"janvier"]
[null,null,null,null,null,null,null,null,null,null,null,null,null,null,null,null,null,null,null,null,null,null,0,0,{"$error":"#DIV/0!"},null,null,null,null,null,null,null,null,null,"janvier",null,null,null,null,null,"janvier"]
[null,null,null,null,null,null,null,null,null,null,null,null,null,null,null,null,null,null,null,null,null,null,0,0,{"$error":"#DIV/0!"},null,null,null,null,null,null,null,null,null,"janvier",null,null,null,null,null,"janvier"]
[null,null,null,null,null,null,null,null,null,null,null,null,null,null,null,null,null,null,null,null,null,null,0,0,{"$error":"#DIV/0!"},null,null,null,null,null,null,null,null,null,"janvier",null,null,null,null,null,"janvier"]
[null,null,null,null,null,null,null,null,null,null,null,null,null,null,null,null,null,null,null,null,null,null,0,0,{"$error":"#DIV/0!"},null,null,null,null,null,null,null,null,null,"janvier",null,null,null,null,null,"janvier"]
[null,null,null,null,null,null,null,null,null,null,null,null,null,null,null,null,null,null,null,null,null,null,0,0,{"$error":"#DIV/0!"},null,null,null,null,null,null,null,null,null,"janvier",null,null,null,null,null,"janvier"]
[null,null,null,null,null,null,null,null,null,null,null,null,null,null,null,null,null,null,null,null,null,null,0,0,{"$error":"#DIV/0!"},null,null,null,null,null,null,null,null,null,"janvier",null,null,null,null,null,"janvier"]
[null,null,null,null,null,null,null,null,null,null,null,null,null,null,null,null,null,null,null,null,null,null,0,0,{"$error":"#DIV/0!"},null,null,null,null,null,null,null,null,null,"janvier",null,null,null,null,null,"janvier"]
[null,null,null,null,null,null,null,null,null,null,null,null,null,null,null,null,null,null,null,null,null,null,0,0,{"$error":"#DIV/0!"},null,null,null,null,null,null,null,null,null,"janvier",null,null,null,null,null,"janvier"]
[null,null,null,null,null,null,null,null,null,null,null,null,null,null,null,null,null,null,null,null,null,null,0,0,{"$error":"#DIV/0!"},null,null,null,null,null,null,null,null,null,"janvier",null,null,null,null,null,"janvier"]
[null,null,null,null,null,null,null,null,null,null,null,null,null,null,null,null,null,null,null,null,null,null,0,0,{"$error":"#DIV/0!"},null,null,null,null,null,null,null,null,null,"janvier",null,null,null,null,null,"janvier"]
[null,null,null,null,null,null,null,null,null,null,null,null,null,null,null,null,null,null,null,null,null,null,0,0,{"$error":"#DIV/0!"},null,null,null,null,null,null,null,null,null,"janvier",null,null,null,null,null,"janvier"]
[null,null,null,null,null,null,null,null,null,null,null,null,null,null,null,null,null,null,null,null,null,null,0,0,{"$error":"#DIV/0!"},null,null,null,null,null,null,null,null,null,"janvier",null,null,null,null,null,"janvier"]
[null,null,null,null,null,null,null,null,null,null,null,null,null,null,null,null,null,null,null,null,null,null,0,0,{"$error":"#DIV/0!"},null,null,null,null,null,null,null,null,null,"janvier",null,null,null,null,null,"janvier"]
[null,null,null,null,null,null,null,null,null,null,null,null,null,null,null,null,null,null,null,null,null,null,0,0,{"$error":"#DIV/0!"},null,null,null,null,null,null,null,null,null,"janvier",null,null,null,null,null,"janvier"]
[null,null,null,null,null,null,null,null,null,null,null,null,null,null,null,null,null,null,null,null,null,null,0,0,{"$error":"#DIV/0!"},null,null,null,null,null,null,null,null,null,"janvier",null,null,null,null,null,"janvier"]
[null,null,null,null,null,null,null,null,null,null,null,null,null,null,null,null,null,null,null,null,null,null,0,0,{"$error":"#DIV/0!"},null,null,null,null,null,null,null,null,null,"janvier",null,null,null,null,null,"janvier"]
[null,null,null,null,null,null,null,null,null,null,null,null,null,null,null,null,null,null,null,null,null,null,0,0,{"$error":"#DIV/0!"},null,null,null,null,null,null,null,null,null,"janvier",null,null,null,null,null,"janvier"]
[null,null,null,null,null,null,null,null,null,null,null,null,null,null,null,null,null,null,null,null,null,null,0,0,{"$error":"#DIV/0!"},null,null,null,null,null,null,null,null,null,"janvier",null,null,null,null,null,"janvier"]
[null,null,null,null,null,null,null,null,null,null,null,null,null,null,null,null,null,null,null,null,null,null,0,0,{"$error":"#DIV/0!"},null,null,null,null,null,null,null,null,null,"janvier",null,null,null,null,null,"janvier"]
[null,null,null,null,null,null,null,null,null,null,null,null,null,null,null,null,null,null,null,null,null,null,0,0,{"$error":"#DIV/0!"},null,null,null,null,null,null,null,null,null,"janvier",null,null,null,null,null,"janvier"]
[null,null,null,null,null,null,null,null,null,null,null,null,null,null,null,null,null,null,null,null,null,null,0,0,{"$error":"#DIV/0!"},null,null,null,null,null,null,null,null,null,"janvier",null,null,null,null,null,"janvier"]
[null,null,null,null,null,null,null,null,null,null,null,null,null,null,null,null,null,null,null,null,null,null,0,0,{"$error":"#DIV/0!"},null,null,null,null,null,null,null,null,null,"janvier",null,null,null,null,null,"janvier"]
[null,null,null,null,null,null,null,null,null,null,null,null,null,null,null,null,null,null,null,null,null,null,0,0,{"$error":"#DIV/0!"},null,null,null,null,null,null,null,null,null,"janvier",null,null,null,null,null,"janvier"]
[null,null,null,null,null,null,null,null,null,null,null,null,null,null,null,null,null,null,null,null,null,null,0,0,{"$error":"#DIV/0!"},null,null,null,null,null,null,null,null,null,"janvier",null,null,null,null,null,"janvier"]
[null,null,null,null,null,null,null,null,null,null,null,null,null,null,null,null,null,null,null,null,null,null,0,0,{"$error":"#DIV/0!"},null,null,null,null,null,null,null,null,null,"janvier",null,null,null,null,null,"janvier"]
[null,null,null,null,null,null,null,null,null,null,null,null,null,null,null,null,null,null,null,null,null,null,0,0,{"$error":"#DIV/0!"},null,null,null,null,null,null,null,null,null,"janvier",null,null,null,null,null,"janvier"]
[null,null,null,null,null,null,null,null,null,null,null,null,null,null,null,null,null,null,null,null,null,null,0,0,{"$error":"#DIV/0!"},null,null,null,null,null,null,null,null,null,"janvier",null,null,null,null,null,"janvier"]
[null,null,null,null,null,null,null,null,null,null,null,null,null,null,null,null,null,null,null,null,null,null,0,0,{"$error":"#DIV/0!"},null,null,null,null,null,null,null,null,null,"janvier",null,null,null,null,null,"janvier"]
[null,null,null,null,null,null,null,null,null,null,null,null,null,null,null,null,null,null,null,null,null,null,0,0,{"$error":"#DIV/0!"},null,null,null,null,null,null,null,null,null,"janvier",null,null,null,null,null,"janvier"]
[null,null,null,null,null,null,null,null,null,null,null,null,null,null,null,null,null,null,null,null,null,null,0,0,{"$error":"#DIV/0!"},null,null,null,null,null,null,null,null,null,"janvier",null,null,null,null,null,"janvier"]
[null,null,null,null,null,null,null,null,null,null,null,null,null,null,null,null,null,null,null,null,null,null,0,0,{"$error":"#DIV/0!"},null,null,null,null,null,null,null,null,null,"janvier",null,null,null,null,null,"janvier"]
[null,null,null,null,null,null,null,null,null,null,null,null,null,null,null,null,null,null,null,null,null,null,0,0,{"$error":"#DIV/0!"},null,null,null,null,null,null,null,null,null,"janvier",null,null,null,null,null,"janvier"]
[null,null,null,null,null,null,null,null,null,null,null,null,null,null,null,null,null,null,null,null,null,null,0,0,{"$error":"#DIV/0!"},null,null,null,null,null,null,null,null,null,"janvier",null,null,null,null,null,"janvier"]
[null,null,null,null,null,null,null,null,null,null,null,null,null,null,null,null,null,null,null,null,null,null,0,0,{"$error":"#DIV/0!"},null,null,null,null,null,null,null,null,null,"janvier",null,null,null,null,null,"janvier"]
[null,null,null,null,null,null,null,null,null,null,null,null,null,null,null,null,null,null,null,null,null,null,0,0,{"$error":"#DIV/0!"},null,null,null,null,null,null,null,null,null,"janvier",null,null,null,null,null,"janvier"]
[null,null,null,null,null,null,null,null,null,null,null,null,null,null,null,null,null,null,null,null,null,null,0,0,{"$error":"#DIV/0!"},null,null,null,null,null,null,null,null,null,"janvier",null,null,null,null,null,"janvier"]
[null,null,null,null,null,null,null,null,null,null,null,null,null,null,null,null,null,null,null,null,null,null,0,0,{"$error":"#DIV/0!"},null,null,null,null,null,null,null,null,null,"janvier",null,null,null,null,null,"janvier"]
[null,null,null,null,null,null,null,null,null,null,null,null,null,null,null,null,null,null,null,null,null,null,0,0,{"$error":"#DIV/0!"},null,null,null,null,null,null,null,null,null,"janvier",null,null,null,null,null,"janvier"]
[null,null,null,null,null,null,null,null,null,null,null,null,null,null,null,null,null,null,null,null,null,null,0,0,{"$error":"#DIV/0!"},null,null,null,null,null,null,null,null,null,"janvier",null,null,null,null,null,"janvier"]
[null,null,null,null,null,null,null,null,null,null,null,null,null,null,null,null,null,null,null,null,null,null,0,0,{"$error":"#DIV/0!"},null,null,null,null,null,null,null,null,null,"janvier",null,null,null,null,null,"janvier"]
[null,null,null,null,null,null,null,null,null,null,null,null,null,null,null,null,null,null,null,null,null,null,0,0,{"$error":"#DIV/0!"},null,null,null,null,null,null,null,null,null,"janvier",null,null,null,null,null,"janvier"]
[null,null,null,null,null,null,null,null,null,null,null,null,null,null,null,null,null,null,null,null,null,null,0,0,{"$error":"#DIV/0!"},null,null,null,null,null,null,null,null,null,"janvier",null,null,null,null,null,"janvier"]
[null,null,null,null,null,null,null,null,null,null,null,null,null,null,null,null,null,null,null,null,null,null,0,0,{"$error":"#DIV/0!"},null,null,null,null,null,null,null,null,null,"janvier",null,null,null,null,null,"janvier"]
[null,null,null,null,null,null,null,null,null,null,null,null,null,null,null,null,null,null,null,null,null,null,0,0,{"$error":"#DIV/0!"},null,null,null,null,null,null,null,null,null,"janvier",null,null,null,null,null,"janvier"]
[null,null,null,null,null,null,null,null,null,null,null,null,null,null,null,null,null,null,null,null,null,null,0,0,{"$error":"#DIV/0!"},null,null,null,null,null,null,null,null,null,"janvier",null,null,null,null,null,"janvier"]
[null,null,null,null,null,null,null,null,null,null,null,null,null,null,null,null,null,null,null,null,null,null,0,0,{"$error":"#DIV/0!"},null,null,null,null,null,null,null,null,null,"janvier",null,null,null,null,null,"janvier"]
[null,null,null,null,null,null,null,null,null,null,null,null,null,null,null,null,null,null,null,null,null,null,0,0,{"$error":"#DIV/0!"},null,null,null,null,null,null,null,null,null,"janvier",null,null,null,null,null,"janvier"]
[null,null,null,null,null,null,null,null,null,null,null,null,null,null,null,null,null,null,null,null,null,null,0,0,{"$error":"#DIV/0!"},null,null,null,null,null,null,null,null,null,"janvier",null,null,null,null,null,"janvier"]
[null,null,null,null,null,null,null,null,null,null,null,null,null,null,null,null,null,null,null,null,null,null,0,0,{"$error":"#DIV/0!"},null,null,null,null,null,null,null,null,null,"janvier",null,null,null,null,null,"janvier"]
[null,null,null,null,null,null,null,null,null,null,null,null,null,null,null,null,null,null,null,null,null,null,0,0,{"$error":"#DIV/0!"},null,null,null,null,null,null,null,null,null,"janvier",null,null,null,null,null,"janvier"]
[null,null,null,null,null,null,null,null,null,null,null,null,null,null,null,null,null,null,null,null,null,null,0,0,{"$error":"#DIV/0!"},null,null,null,null,null,null,null,null,null,"janvier",null,null,null,null,null,"janvier"]
[null,null,null,null,null,null,null,null,null,null,null,null,null,null,null,null,null,null,null,null,null,null,{"$f":"P963-Q963","v":0},{"$f":"Q963-U963","v":0},{"$f":"X963/Q963","v":{"$error":"#DIV/0!"}},null,null,null,null,null,null,null,null,null,{"$f":"TEXT(AH963,\"MMMM\")","v":"janvier"},null,null,null,null,null,{"$f":"TEXT(AN963,\"MMMM\")","v":"janvier"}]
[null,null,null,null,null,null,null,null,null,null,null,null,null,null,null,null,null,null,null,null,null,null,0,0,{"$error":"#DIV/0!"},null,null,null,null,null,null,null,null,null,"janvier",null,null,null,null,null,"janvier"]
[null,null,null,null,null,null,null,null,null,null,null,null,null,null,null,null,null,null,null,null,null,null,0,0,{"$error":"#DIV/0!"},null,null,null,null,null,null,null,null,null,"janvier",null,null,null,null,null,"janvier"]
[null,null,null,null,null,null,null,null,null,null,null,null,null,null,null,null,null,null,null,null,null,null,0,0,{"$error":"#DIV/0!"},null,null,null,null,null,null,null,null,null,"janvier",null,null,null,null,null,"janvier"]
[null,null,null,null,null,null,null,null,null,null,null,null,null,null,null,null,null,null,null,null,null,null,0,0,{"$error":"#DIV/0!"},null,null,null,null,null,null,null,null,null,"janvier",null,null,null,null,null,"janvier"]
[null,null,null,null,null,null,null,null,null,null,null,null,null,null,null,null,null,null,null,null,null,null,0,0,{"$error":"#DIV/0!"},null,null,null,null,null,null,null,null,null,"janvier",null,null,null,null,null,"janvier"]
[null,null,null,null,null,null,null,null,null,null,null,null,null,null,null,null,null,null,null,null,null,null,0,0,{"$error":"#DIV/0!"},null,null,null,null,null,null,null,null,null,"janvier",null,null,null,null,null,"janvier"]
[null,null,null,null,null,null,null,null,null,null,null,null,null,null,null,null,null,null,null,null,null,null,0,0,{"$error":"#DIV/0!"},null,null,null,null,null,null,null,null,null,"janvier",null,null,null,null,null,"janvier"]
[null,null,null,null,null,null,null,null,null,null,null,null,null,null,null,null,null,null,null,null,null,null,0,0,{"$error":"#DIV/0!"},null,null,null,null,null,null,null,null,null,"janvier",null,null,null,null,null,"janvier"]
[null,null,null,null,null,null,null,null,null,null,null,null,null,null,null,null,null,null,null,null,null,null,0,0,{"$error":"#DIV/0!"},null,null,null,null,null,null,null,null,null,"janvier",null,null,null,null,null,"janvier"]
[null,null,null,null,null,null,null,null,null,null,null,null,null,null,null,null,null,null,null,null,null,null,0,0,{"$error":"#DIV/0!"},null,null,null,null,null,null,null,null,null,"janvier",null,null,null,null,null,"janvier"]
[null,null,null,null,null,null,null,null,null,null,null,null,null,null,null,null,null,null,null,null,null,null,0,0,{"$error":"#DIV/0!"},null,null,null,null,null,null,null,null,null,"janvier",null,null,null,null,null,"janvier"]
[null,null,null,null,null,null,null,null,null,null,null,null,null,null,null,null,null,null,null,null,null,null,0,0,{"$error":"#DIV/0!"},null,null,null,null,null,null,null,null,null,"janvier",null,null,null,null,null,"janvier"]
[null,null,null,null,null,null,null,null,null,null,null,null,null,null,null,null,null,null,null,null,null,null,0,0,{"$error":"#DIV/0!"},null,null,null,null,null,null,null,null,null,"janvier",null,null,null,null,null,"janvier"]
[null,null,null,null,null,null,null,null,null,null,null,null,null,null,null,null,null,null,null,null,null,null,0,0,{"$error":"#DIV/0!"},null,null,null,null,null,null,null,null,null,"janvier",null,null,null,null,null,"janvier"]
[null,null,null,null,null,null,null,null,null,null,null,null,null,null,null,null,null,null,null,null,null,null,0,0,{"$error":"#DIV/0!"},null,null,null,null,null,null,null,null,null,"janvier",null,null,null,null,null,"janvier"]
[null,null,null,null,null,null,null,null,null,null,null,null,null,null,null,null,null,null,null,null,null,null,0,0,{"$error":"#DIV/0!"},null,null,null,null,null,null,null,null,null,"janvier",null,null,null,null,null,"janvier"]
[null,null,null,null,null,null,null,null,null,null,null,null,null,null,null,null,null,null,null,null,null,null,0,0,{"$error":"#DIV/0!"},null,null,null,null,null,null,null,null,null,"janvier",null,null,null,null,null,"janvier"]
[null,null,null,null,null,null,null,null,null,null,null,null,null,null,null,null,null,null,null,null,null,null,0,0,{"$error":"#DIV/0!"},null,null,null,null,null,null,null,null,null,"janvier",null,null,null,null,null,"janvier"]
[null,null,null,null,null,null,null,null,null,null,null,null,null,null,null,null,null,null,null,null,null,null,0,0,{"$error":"#DIV/0!"},null,null,null,null,null,null,null,null,null,"janvier",null,null,null,null,null,"janvier"]
[null,null,null,null,null,null,null,null,null,null,null,null,null,null,null,null,null,null,null,null,null,null,0,0,{"$error":"#DIV/0!"},null,null,null,null,null,null,null,null,null,"janvier",null,null,null,null,null,"janvier"]
[null,null,null,null,null,null,null,null,null,null,null,null,null,null,null,null,null,null,null,null,null,null,0,0,{"$error":"#DIV/0!"},null,null,null,null,null,null,null,null,null,"janvier",null,null,null,null,null,"janvier"]
[null,null,null,null,null,null,null,null,null,null,null,null,null,null,null,null,null,null,null,null,null,null,0,0,{"$error":"#DIV/0!"},null,null,null,null,null,null,null,null,null,"janvier",null,null,null,null,null,"janvier"]
[null,null,null,null,null,null,null,null,null,null,null,null,null,null,null,null,null,null,null,null,null,null,0,0,{"$error":"#DIV/0!"},null,null,null,null,null,null,null,null,null,"janvier",null,null,null,null,null,"janvier"]
[null,null,null,null,null,null,null,null,null,null,null,null,null,null,null,null,null,null,null,null,null,null,0,0,{"$error":"#DIV/0!"},null,null,null,null,null,null,null,null,null,"janvier",null,null,null,null,null,"janvier"]
[null,null,null,null,null,null,null,null,null,null,null,null,null,null,null,null,null,null,null,null,null,null,0,0,{"$error":"#DIV/0!"},null,null,null,null,null,null,null,null,null,"janvier",null,null,null,null,null,"janvier"]
[null,null,null,null,null,null,null,null,null,null,null,null,null,null,null,null,null,null,null,null,null,null,0,0,{"$error":"#DIV/0!"},null,null,null,null,null,null,null,null,null,"janvier",null,null,null,null,null,"janvier"]
[null,null,null,null,null,null,null,null,null,null,null,null,null,null,null,null,null,null,null,null,null,null,0,0,{"$error":"#DIV/0!"},null,null,null,null,null,null,null,null,null,"janvier",null,null,null,null,null,"janvier"]
[null,null,null,null,null,null,null,null,null,null,null,null,null,null,null,null,null,null,null,null,null,null,0,0,{"$error":"#DIV/0!"},null,null,null,null,null,null,null,null,null,"janvier",null,null,null,null,null,"janvier"]
[null,null,null,null,null,null,null,null,null,null,null,null,null,null,null,null,null,null,null,null,null,null,0,0,{"$error":"#DIV/0!"},null,null,null,null,null,null,null,null,null,"janvier",null,null,null,null,null,"janvier"]
[null,null,null,null,null,null,null,null,null,null,null,null,null,null,null,null,null,null,null,null,null,null,0,0,{"$error":"#DIV/0!"},null,null,null,null,null,null,null,null,null,"janvier",null,null,null,null,null,"janvier"]
[null,null,null,null,null,null,null,null,null,null,null,null,null,null,null,null,null,null,null,null,null,null,0,0,{"$error":"#DIV/0!"},null,null,null,null,null,null,null,null,null,"janvier",null,null,null,null,null,"janvier"]
[null,null,null,null,null,null,null,null,null,null,null,null,null,null,null,null,null,null,null,null,null,null,0,0,{"$error":"#DIV/0!"},null,null,null,null,null,null,null,null,null,"janvier",null,null,null,null,null,"janvier"]
[null,null,null,null,null,null,null,null,null,null,null,null,null,null,null,null,null,null,null,null,null,null,0,0,{"$error":"#DIV/0!"},null,null,null,null,null,null,null,null,null,"janvier",null,null,null,null,null,"janvier"]
[null,null,null,null,null,null,null,null,null,null,null,null,null,null,null,null,null,null,null,null,null,null,0,0,{"$error":"#DIV/0!"},null,null,null,null,null,null,null,null,null,"janvier",null,null,null,null,null,"janvier"]
[null,null,null,null,null,null,null,null,null,null,null,null,null,null,null,null,null,null,null,null,null,null,0,0,{"$error":"#DIV/0!"},null,null,null,null,null,null,null,null,null,"janvier",null,null,null,null,null,"janvier"]
[null,null,null,null,null,null,null,null,null,null,null,null,null,null,null,null,null,null,null,null,null,null,0,0,{"$error":"#DIV/0!"},null,null,null,null,null,null,null,null,null,"janvier",null,null,null,null,null,"janvier"]
[null,null,null,null,null,null,null,null,null,null,null,null,null,null,null,null,null,null,null,null,null,null,0,0,{"$error":"#DIV/0!"},null,null,null,null,null,null,null,null,null,"janvier",null,null,null,null,null,"janvier"]
[null,null,null,null,null,null,null,null,null,null,null,null,null,null,null,null,null,null,null,null,null,null,0,0,{"$error":"#DIV/0!"},null,null,null,null,null,null,null,null,null,"janvier",null,null,null,null,null,"janvier"]
[null,null,null,null,null,null,null,null,null,null,null,null,null,null,null,null,null,null,null,null,null,null,0,0,{"$error":"#DIV/0!"},null,null,null,null,null,null,null,null,null,"janvier",null,null,null,null,null,"janvier"]
[null,null,null,null,null,null,null,null,null,null,null,null,null,null,null,null,null,null,null,null,null,null,0,0,{"$error":"#DIV/0!"},null,null,null,null,null,null,null,null,null,"janvier",null,null,null,null,null,"janvier"]
[null,null,null,null,null,null,null,null,null,null,null,null,null,null,null,null,null,null,null,null,null,null,0,0,{"$error":"#DIV/0!"},null,null,null,null,null,null,null,null,null,"janvier",null,null,null,null,null,"janvier"]
[null,null,null,null,null,null,null,null,null,null,null,null,null,null,null,null,null,null,null,null,null,null,0,0,{"$error":"#DIV/0!"},null,null,null,null,null,null,null,null,null,"janvier",null,null,null,null,null,"janvier"]
[null,null,null,null,null,null,null,null,null,null,null,null,null,null,null,null,null,null,null,null,null,null,0,0,{"$error":"#DIV/0!"},null,null,null,null,null,null,null,null,null,"janvier",null,null,null,null,null,"janvier"]
[null,null,null,null,null,null,null,null,null,null,null,null,null,null,null,null,null,null,null,null,null,null,0,0,{"$error":"#DIV/0!"},null,null,null,null,null,null,null,null,null,"janvier",null,null,null,null,null,"janvier"]
[null,null,null,null,null,null,null,null,null,null,null,null,null,null,null,null,null,null,null,null,null,null,0,0,{"$error":"#DIV/0!"},null,null,null,null,null,null,null,null,null,"janvier",null,null,null,null,null,"janvier"]
[null,null,null,null,null,null,null,null,null,null,null,null,null,null,null,null,null,null,null,null,null,null,0,0,{"$error":"#DIV/0!"},null,null,null,null,null,null,null,null,null,"janvier",null,null,null,null,null,"janvier"]
[null,null,null,null,null,null,null,null,null,null,null,null,null,null,null,null,null,null,null,null,null,null,0,0,{"$error":"#DIV/0!"},null,null,null,null,null,null,null,null,null,"janvier",null,null,null,null,null,"janvier"]
[null,null,null,null,null,null,null,null,null,null,null,null,null,null,null,null,null,null,null,null,null,null,0,0,{"$error":"#DIV/0!"},null,null,null,null,null,null,null,null,null,"janvier",null,null,null,null,null,"janvier"]
[null,null,null,null,null,null,null,null,null,null,null,null,null,null,null,null,null,null,null,null,null,null,0,0,{"$error":"#DIV/0!"},null,null,null,null,null,null,null,null,null,"janvier",null,null,null,null,null,"janvier"]
[null,null,null,null,null,null,null,null,null,null,null,null,null,null,null,null,null,null,null,null,null,null,0,0,{"$error":"#DIV/0!"},null,null,null,null,null,null,null,null,null,"janvier",null,null,null,null,null,"janvier"]
[null,null,null,null,null,null,null,null,null,null,null,null,null,null,null,null,null,null,null,null,null,null,0,0,{"$error":"#DIV/0!"},null,null,null,null,null,null,null,null,null,"janvier",null,null,null,null,null,"janvier"]
[null,null,null,null,null,null,null,null,null,null,null,null,null,null,null,null,null,null,null,null,null,null,0,0,{"$error":"#DIV/0!"},null,null,null,null,null,null,null,null,null,"janvier",null,null,null,null,null,"janvier"]
[null,null,null,null,null,null,null,null,null,null,null,null,null,null,null,null,null,null,null,null,null,null,0,0,{"$error":"#DIV/0!"},null,null,null,null,null,null,null,null,null,"janvier",null,null,null,null,null,"janvier"]
[null,null,null,null,null,null,null,null,null,null,null,null,null,null,null,null,null,null,null,null,null,null,0,0,{"$error":"#DIV/0!"},null,null,null,null,null,null,null,null,null,"janvier",null,null,null,null,null,"janvier"]
[null,null,null,null,null,null,null,null,null,null,null,null,null,null,null,null,null,null,null,null,null,null,0,0,{"$error":"#DIV/0!"},null,null,null,null,null,null,null,null,null,"janvier",null,null,null,null,null,"janvier"]
[null,null,null,null,null,null,null,null,null,null,null,null,null,null,null,null,null,null,null,null,null,null,0,0,{"$error":"#DIV/0!"},null,null,null,null,null,null,null,null,null,"janvier",null,null,null,null,null,"janvier"]
[null,null,null,null,null,null,null,null,null,null,null,null,null,null,null,null,null,null,null,null,null,null,0,0,{"$error":"#DIV/0!"},null,null,null,null,null,null,null,null,null,"janvier",null,null,null,null,null,"janvier"]
[null,null,null,null,null,null,null,null,null,null,null,null,null,null,null,null,null,null,null,null,null,null,0,0,{"$error":"#DIV/0!"},null,null,null,null,null,null,null,null,null,"janvier",null,null,null,null,null,"janvier"]
[null,null,null,null,null,null,null,null,null,null,null,null,null,null,null,null,null,null,null,null,null,null,0,0,{"$error":"#DIV/0!"},null,null,null,null,null,null,null,null,null,"janvier",null,null,null,null,null,"janvier"]
[null,null,null,null,null,null,null,null,null,null,null,null,null,null,null,null,null,null,null,null,null,null,0,0,{"$error":"#DIV/0!"},null,null,null,null,null,null,null,null,null,"janvier",null,null,null,null,null,"janvier"]
[null,null,null,null,null,null,null,null,null,null,null,null,null,null,null,null,null,null,null,null,null,null,0,0,{"$error":"#DIV/0!"},null,null,null,null,null,null,null,null,null,"janvier",null,null,null,null,null,"janvier"]
[null,null,null,null,null,null,null,null,null,null,null,null,null,null,null,null,null,null,null,null,null,null,0,0,{"$error":"#DIV/0!"},null,null,null,null,null,null,null,null,null,"janvier",null,null,null,null,null,"janvier"]
[null,null,null,null,null,null,null,null,null,null,null,null,null,null,null,null,null,null,null,null,null,null,0,0,{"$error":"#DIV/0!"},null,null,null,null,null,null,null,null,null,"janvier",null,null,null,null,null,"janvier"]
[null,null,null,null,null,null,null,null,null,null,null,null,null,null,null,null,null,null,null,null,null,null,{"$f":"P1027-Q1027","v":0},{"$f":"Q1027-U1027","v":0},{"$f":"X1027/Q1027","v":{"$error":"#DIV/0!"}},null,null,null,null,null,null,null,null,null,{"$f":"TEXT(AH1027,\"MMMM\")","v":"janvier"},null,null,null,null,null,{"$f":"TEXT(AN1027,\"MMMM\")","v":"janvier"}]
[null,null,null,null,null,null,null,null,null,null,null,null,null,null,null,null,null,null,null,null,null,null,0,0,{"$error":"#DIV/0!"},null,null,null,null,null,null,null,null,null,"janvier",null,null,null,null,null,"janvier"]
[null,null,null,null,null,null,null,null,null,null,null,null,null,null,null,null,null,null,null,null,null,null,0,0,{"$error":"#DIV/0!"},null,null,null,null,null,null,null,null,null,"janvier",null,null,null,null,null,"janvier"]
[null,null,null,null,null,null,null,null,null,null,null,null,null,null,null,null,null,null,null,null,null,null,0,0,{"$error":"#DIV/0!"},null,null,null,null,null,null,null,null,null,"janvier",null,null,null,null,null,"janvier"]
[null,null,null,null,null,null,null,null,null,null,null,null,null,null,null,null,null,null,null,null,null,null,0,0,{"$error":"#DIV/0!"},null,null,null,null,null,null,null,null,null,"janvier",null,null,null,null,null,"janvier"]
[null,null,null,null,null,null,null,null,null,null,null,null,null,null,null,null,null,null,null,null,null,null,0,0,{"$error":"#DIV/0!"},null,null,null,null,null,null,null,null,null,"janvier",null,null,null,null,null,"janvier"]
[null,null,null,null,null,null,null,null,null,null,null,null,null,null,null,null,null,null,null,null,null,null,0,0,{"$error":"#DIV/0!"},null,null,null,null,null,null,null,null,null,"janvier",null,null,null,null,null,"janvier"]
[null,null,null,null,null,null,null,null,null,null,null,null,null,null,null,null,null,null,null,null,null,null,0,0,{"$error":"#DIV/0!"},null,null,null,null,null,null,null,null,null,"janvier",null,null,null,null,null,"janvier"]
[null,null,null,null,null,null,null,null,null,null,null,null,null,null,null,null,null,null,null,null,null,null,0,0,{"$error":"#DIV/0!"},null,null,null,null,null,null,null,null,null,"janvier",null,null,null,null,null,"janvier"]
[null,null,null,null,null,null,null,null,null,null,null,null,null,null,null,null,null,null,null,null,null,null,0,0,{"$error":"#DIV/0!"},null,null,null,null,null,null,null,null,null,"janvier",null,null,null,null,null,"janvier"]
[null,null,null,null,null,null,null,null,null,null,null,null,null,null,null,null,null,null,null,null,null,null,0,0,{"$error":"#DIV/0!"},null,null,null,null,null,null,null,null,null,"janvier",null,null,null,null,null,"janvier"]
[null,null,null,null,null,null,null,null,null,null,null,null,null,null,null,null,null,null,null,null,null,null,0,0,{"$error":"#DIV/0!"},null,null,null,null,null,null,null,null,null,"janvier",null,null,null,null,null,"janvier"]
[null,null,null,null,null,null,null,null,null,null,null,null,null,null,null,null,null,null,null,null,null,null,0,0,{"$error":"#DIV/0!"},null,null,null,null,null,null,null,null,null,"janvier",null,null,null,null,null,"janvier"]
[null,null,null,null,null,null,null,null,null,null,null,null,null,null,null,null,null,null,null,null,null,null,0,0,{"$error":"#DIV/0!"},null,null,null,null,null,null,null,null,null,"janvier",null,null,null,null,null,"janvier"]
[null,null,null,null,null,null,null,null,null,null,null,null,null,null,null,null,null,null,null,null,null,null,0,0,{"$error":"#DIV/0!"},null,null,null,null,null,null,null,null,null,"janvier",null,null,null,null,null,"janvier"]
[null,null,null,null,null,null,null,null,null,null,null,null,null,null,null,null,null,null,null,null,null,null,0,0,{"$error":"#DIV/0!"},null,null,null,null,null,null,null,null,null,"janvier",null,null,null,null,null,"janvier"]
[null,null,null,null,null,null,null,null,null,null,null,null,null,null,null,null,null,null,null,null,null,null,0,0,{"$error":"#DIV/0!"},null,null,null,null,null,null,null,null,null,"janvier",null,null,null,null,null,"janvier"]
[null,null,null,null,null,null,null,null,null,null,null,null,null,null,null,null,null,null,null,null,null,null,0,0,{"$error":"#DIV/0!"},null,null,null,null,null,null,null,null,null,"janvier",null,null,null,null,null,"janvier"]
[null,null,null,null,null,null,null,null,null,null,null,null,null,null,null,null,null,null,null,null,null,null,0,0,{"$error":"#DIV/0!"},null,null,null,null,null,null,null,null,null,"janvier",null,null,null,null,null,"janvier"]
[null,null,null,null,null,null,null,null,null,null,null,null,null,null,null,null,null,null,null,null,null,null,0,0,{"$error":"#DIV/0!"},null,null,null,null,null,null,null,null,null,"janvier",null,null,null,null,null,"janvier"]
[null,null,null,null,null,null,null,null,null,null,null,null,null,null,null,null,null,null,null,null,null,null,0,0,{"$error":"#DIV/0!"},null,null,null,null,null,null,null,null,null,"janvier",null,null,null,null,null,"janvier"]
[null,null,null,null,null,null,null,null,null,null,null,null,null,null,null,null,null,null,null,null,null,null,0,0,{"$error":"#DIV/0!"},null,null,null,null,null,null,null,null,null,"janvier",null,null,null,null,null,"janvier"]
[null,null,null,null,null,null,null,null,null,null,null,null,null,null,null,null,null,null,null,null,null,null,0,0,{"$error":"#DIV/0!"},null,null,null,null,null,null,null,null,null,"janvier",null,null,null,null,null,"janvier"]
[null,null,null,null,null,null,null,null,null,null,null,null,null,null,null,null,null,null,null,null,null,null,0,0,{"$error":"#DIV/0!"},null,null,null,null,null,null,null,null,null,"janvier",null,null,null,null,null,"janvier"]
[null,null,null,null,null,null,null,null,null,null,null,null,null,null,null,null,null,null,null,null,null,null,0,0,{"$error":"#DIV/0!"},null,null,null,null,null,null,null,null,null,"janvier",null,null,null,null,null,"janvier"]
[null,null,null,null,null,null,null,null,null,null,null,null,null,null,null,null,null,null,null,null,null,null,0,0,{"$error":"#DIV/0!"},null,null,null,null,null,null,null,null,null,"janvier",null,null,null,null,null,"janvier"]
[null,null,null,null,null,null,null,null,null,null,null,null,null,null,null,null,null,null,null,null,null,null,0,0,{"$error":"#DIV/0!"},null,null,null,null,null,null,null,null,null,"janvier",null,null,null,null,null,"janvier"]
[null,null,null,null,null,null,null,null,null,null,null,null,null,null,null,null,null,null,null,null,null,null,0,0,{"$error":"#DIV/0!"},null,null,null,null,null,null,null,null,null,"janvier",null,null,null,null,null,"janvier"]
[null,null,null,null,null,null,null,null,null,null,null,null,null,null,null,null,null,null,null,null,null,null,0,0,{"$error":"#DIV/0!"},null,null,null,null,null,null,null,null,null,"janvier",null,null,null,null,null,"janvier"]
[null,null,null,null,null,null,null,null,null,null,null,null,null,null,null,null,null,null,null,null,null,null,0,0,{"$error":"#DIV/0!"},null,null,null,null,null,null,null,null,null,"janvier",null,null,null,null,null,"janvier"]
[null,null,null,null,null,null,null,null,null,null,null,null,null,null,null,null,null,null,null,null,null,null,0,0,{"$error":"#DIV/0!"},null,null,null,null,null,null,null,null,null,"janvier",null,null,null,null,null,"janvier"]
[null,null,null,null,null,null,null,null,null,null,null,null,null,null,null,null,null,null,null,null,null,null,0,0,{"$error":"#DIV/0!"},null,null,null,null,null,null,null,null,null,"janvier",null,null,null,null,null,"janvier"]
[null,null,null,null,null,null,null,null,null,null,null,null,null,null,null,null,null,null,null,null,null,null,0,0,{"$error":"#DIV/0!"},null,null,null,null,null,null,null,null,null,"janvier",null,null,null,null,null,"janvier"]
[null,null,null,null,null,null,null,null,null,null,null,null,null,null,null,null,null,null,null,null,null,null,0,0,{"$error":"#DIV/0!"},null,null,null,null,null,null,null,null,null,"janvier",null,null,null,null,null,"janvier"]
[null,null,null,null,null,null,null,null,null,null,null,null,null,null,null,null,null,null,null,null,null,null,0,0,{"$error":"#DIV/0!"},null,null,null,null,null,null,null,null,null,"janvier",null,null,null,null,null,"janvier"]
[null,null,null,null,null,null,null,null,null,null,null,null,null,null,null,null,null,null,null,null,null,null,0,0,{"$error":"#DIV/0!"},null,null,null,null,null,null,null,null,null,"janvier",null,null,null,null,null,"janvier"]
[null,null,null,null,null,null,null,null,null,null,null,null,null,null,null,null,null,null,null,null,null,null,0,0,{"$error":"#DIV/0!"},null,null,null,null,null,null,null,null,null,"janvier",null,null,null,null,null,"janvier"]
[null,null,null,null,null,null,null,null,null,null,null,null,null,null,null,null,null,null,null,null,null,null,0,0,{"$error":"#DIV/0!"},null,null,null,null,null,null,null,null,null,"janvier",null,null,null,null,null,"janvier"]
[null,null,null,null,null,null,null,null,null,null,null,null,null,null,null,null,null,null,null,null,null,null,0,0,{"$error":"#DIV/0!"},null,null,null,null,null,null,null,null,null,"janvier",null,null,null,null,null,"janvier"]
[null,null,null,null,null,null,null,null,null,null,null,null,null,null,null,null,null,null,null,null,null,null,0,0,{"$error":"#DIV/0!"},null,null,null,null,null,null,null,null,null,"janvier",null,null,null,null,null,"janvier"]
[null,null,null,null,null,null,null,null,null,null,null,null,null,null,null,null,null,null,null,null,null,null,0,0,{"$error":"#DIV/0!"},null,null,null,null,null,null,null,null,null,"janvier",null,null,null,null,null,"janvier"]
[null,null,null,null,null,null,null,null,null,null,null,null,null,null,null,null,null,null,null,null,null,null,0,0,{"$error":"#DIV/0!"},null,null,null,null,null,null,null,null,null,"janvier",null,null,null,null,null,"janvier"]
[null,null,null,null,null,null,null,null,null,null,null,null,null,null,null,null,null,null,null,null,null,null,0,0,{"$error":"#DIV/0!"},null,null,null,null,null,null,null,null,null,"janvier",null,null,null,null,null,"janvier"]
[null,null,null,null,null,null,null,null,null,null,null,null,null,null,null,null,null,null,null,null,null,null,0,0,{"$error":"#DIV/0!"},null,null,null,null,null,null,null,null,null,"janvier",null,null,null,null,null,"janvier"]
[null,null,null,null,null,null,null,null,null,null,null,null,null,null,null,null,null,null,null,null,null,null,0,0,{"$error":"#DIV/0!"},null,null,null,null,null,null,null,null,null,"janvier",null,null,null,null,null,"janvier"]
[null,null,null,null,null,null,null,null,null,null,null,null,null,null,null,null,null,null,null,null,null,null,0,0,{"$error":"#DIV/0!"},null,null,null,null,null,null,null,null,null,"janvier",null,null,null,null,null,"janvier"]
[null,null,null,null,null,null,null,null,null,null,null,null,null,null,null,null,null,null,null,null,null,null,0,0,{"$error":"#DIV/0!"},null,null,null,null,null,null,null,null,null,"janvier",null,null,null,null,null,"janvier"]
[null,null,null,null,null,null,null,null,null,null,null,null,null,null,null,null,null,null,null,null,null,null,0,0,{"$error":"#DIV/0!"},null,null,null,null,null,null,null,null,null,"janvier",null,null,null,null,null,"janvier"]
[null,null,null,null,null,null,null,null,null,null,null,null,null,null,null,null,null,null,null,null,null,null,0,0,{"$error":"#DIV/0!"},null,null,null,null,null,null,null,null,null,"janvier",null,null,null,null,null,"janvier"]
[null,null,null,null,null,null,null,null,null,null,null,null,null,null,null,null,null,null,null,null,null,null,0,0,{"$error":"#DIV/0!"},null,null,null,null,null,null,null,null,null,"janvier",null,null,null,null,null,"janvier"]
[null,null,null,null,null,null,null,null,null,null,null,null,null,null,null,null,null,null,null,null,null,null,0,0,{"$error":"#DIV/0!"},null,null,null,null,null,null,null,null,null,"janvier",null,null,null,null,null,"janvier"]
[null,null,null,null,null,null,null,null,null,null,null,null,null,null,null,null,null,null,null,null,null,null,0,0,{"$error":"#DIV/0!"},null,null,null,null,null,null,null,null,null,"janvier",null,null,null,null,null,"janvier"]
[null,null,null,null,null,null,null,null,null,null,null,null,null,null,null,null,null,null,null,null,null,null,0,0,{"$error":"#DIV/0!"},null,null,null,null,null,null,null,null,null,"janvier",null,null,null,null,null,"janvier"]
[null,null,null,null,null,null,null,null,null,null,null,null,null,null,null,null,null,null,null,null,null,null,0,0,{"$error":"#DIV/0!"},null,null,null,null,null,null,null,null,null,"janvier",null,null,null,null,null,"janvier"]
[null,null,null,null,null,null,null,null,null,null,null,null,null,null,null,null,null,null,null,null,null,null,0,0,{"$error":"#DIV/0!"},null,null,null,null,null,null,null,null,null,"janvier",null,null,null,null,null,"janvier"]
[null,null,null,null,null,null,null,null,null,null,null,null,null,null,null,null,null,null,null,null,null,null,0,0,{"$error":"#DIV/0!"},null,null,null,null,null,null,null,null,null,"janvier",null,null,null,null,null,"janvier"]
[null,null,null,null,null,null,null,null,null,null,null,null,null,null,null,null,null,null,null,null,null,null,0,0,{"$error":"#DIV/0!"},null,null,null,null,null,null,null,null,null,"janvier",null,null,null,null,null,"janvier"]
[null,null,null,null,null,null,null,null,null,null,null,null,null,null,null,null,null,null,null,null,null,null,0,0,{"$error":"#DIV/0!"},null,null,null,null,null,null,null,null,null,"janvier",null,null,null,null,null,"janvier"]
[null,null,null,null,null,null,null,null,null,null,null,null,null,null,null,null,null,null,null,null,null,null,0,0,{"$error":"#DIV/0!"},null,null,null,null,null,null,null,null,null,"janvier",null,null,null,null,null,"janvier"]
[null,null,null,null,null,null,null,null,null,null,null,null,null,null,null,null,null,null,null,null,null,null,0,0,{"$error":"#DIV/0!"},null,null,null,null,null,null,null,null,null,"janvier",null,null,null,null,null,"janvier"]
[null,null,null,null,null,null,null,null,null,null,null,null,null,null,null,null,null,null,null,null,null,null,0,0,{"$error":"#DIV/0!"},null,null,null,null,null,null,null,null,null,"janvier",null,null,null,null,null,"janvier"]
[null,null,null,null,null,null,null,null,null,null,null,null,null,null,null,null,null,null,null,null,null,null,0,0,{"$error":"#DIV/0!"},null,null,null,null,null,null,null,null,null,"janvier",null,null,null,null,null,"janvier"]
[null,null,null,null,null,null,null,null,null,null,null,null,null,null,null,null,null,null,null,null,null,null,0,0,{"$error":"#DIV/0!"},null,null,null,null,null,null,null,null,null,"janvier",null,null,null,null,null,"janvier"]
[null,null,null,null,null,null,null,null,null,null,null,null,null,null,null,null,null,null,null,null,null,null,0,0,{"$error":"#DIV/0!"},null,null,null,null,null,null,null,null,null,"janvier",null,null,null,null,null,"janvier"]
[null,null,null,null,null,null,null,null,null,null,null,null,null,null,null,null,null,null,null,null,null,null,{"$f":"P1091-Q1091","v":0},{"$f":"Q1091-U1091","v":0},{"$f":"X1091/Q1091","v":{"$error":"#DIV/0!"}},null,null,null,null,null,null,null,null,null,{"$f":"TEXT(AH1091,\"MMMM\")","v":"janvier"},null,null,null,null,null,{"$f":"TEXT(AN1091,\"MMMM\")","v":"janvier"}]
[null,null,null,null,null,null,null,null,null,null,null,null,null,null,null,null,null,null,null,null,null,null,0,0,{"$error":"#DIV/0!"},null,null,null,null,null,null,null,null,null,"janvier",null,null,null,null,null,"janvier"]
[null,null,null,null,null,null,null,null,null,null,null,null,null,null,null,null,null,null,null,null,null,null,0,0,{"$error":"#DIV/0!"},null,null,null,null,null,null,null,null,null,"janvier",null,null,null,null,null,"janvier"]
[null,null,null,null,null,null,null,null,null,null,null,null,null,null,null,null,null,null,null,null,null,null,0,0,{"$error":"#DIV/0!"},null,null,null,null,null,null,null,null,null,"janvier",null,null,null,null,null,"janvier"]
[null,null,null,null,null,null,null,null,null,null,null,null,null,null,null,null,null,null,null,null,null,null,0,0,{"$error":"#DIV/0!"},null,null,null,null,null,null,null,null,null,"janvier",null,null,null,null,null,"janvier"]
[null,null,null,null,null,null,null,null,null,null,null,null,null,null,null,null,null,null,null,null,null,null,0,0,{"$error":"#DIV/0!"},null,null,null,null,null,null,null,null,null,"janvier",null,null,null,null,null,"janvier"]
[null,null,null,null,null,null,null,null,null,null,null,null,null,null,null,null,null,null,null,null,null,null,0,0,{"$error":"#DIV/0!"},null,null,null,null,null,null,null,null,null,"janvier",null,null,null,null,null,"janvier"]
[null,null,null,null,null,null,null,null,null,null,null,null,null,null,null,null,null,null,null,null,null,null,0,0,{"$error":"#DIV/0!"},null,null,null,null,null,null,null,null,null,"janvier",null,null,null,null,null,"janvier"]
[null,null,null,null,null,null,null,null,null,null,null,null,null,null,null,null,null,null,null,null,null,null,0,0,{"$error":"#DIV/0!"},null,null,null,null,null,null,null,null,null,"janvier",null,null,null,null,null,"janvier"]
[null,null,null,null,null,null,null,null,null,null,null,null,null,null,null,null,null,null,null,null,null,null,0,0,{"$error":"#DIV/0!"},null,null,null,null,null,null,null,null,null,"janvier",null,null,null,null,null,"janvier"]
[null,null,null,null,null,null,null,null,null,null,null,null,null,null,null,null,null,null,null,null,null,null,0,0,{"$error":"#DIV/0!"},null,null,null,null,null,null,null,null,null,"janvier",null,null,null,null,null,"janvier"]
[null,null,null,null,null,null,null,null,null,null,null,null,null,null,null,null,null,null,null,null,null,null,0,0,{"$error":"#DIV/0!"},null,null,null,null,null,null,null,null,null,"janvier",null,null,null,null,null,"janvier"]
[null,null,null,null,null,null,null,null,null,null,null,null,null,null,null,null,null,null,null,null,null,null,0,0,{"$error":"#DIV/0!"},null,null,null,null,null,null,null,null,null,"janvier",null,null,null,null,null,"janvier"]
[null,null,null,null,null,null,null,null,null,null,null,null,null,null,null,null,null,null,null,null,null,null,0,0,{"$error":"#DIV/0!"},null,null,null,null,null,null,null,null,null,"janvier",null,null,null,null,null,"janvier"]
[null,null,null,null,null,null,null,null,null,null,null,null,null,null,null,null,null,null,null,null,null,null,0,0,{"$error":"#DIV/0!"},null,null,null,null,null,null,null,null,null,"janvier",null,null,null,null,null,"janvier"]
[null,null,null,null,null,null,null,null,null,null,null,null,null,null,null,null,null,null,null,null,null,null,0,0,{"$error":"#DIV/0!"},null,null,null,null,null,null,null,null,null,"janvier",null,null,null,null,null,"janvier"]
[null,null,null,null,null,null,null,null,null,null,null,null,null,null,null,null,null,null,null,null,null,null,0,0,{"$error":"#DIV/0!"},null,null,null,null,null,null,null,null,null,"janvier",null,null,null,null,null,"janvier"]
[null,null,null,null,null,null,null,null,null,null,null,null,null,null,null,null,null,null,null,null,null,null,0,0,{"$error":"#DIV/0!"},null,null,null,null,null,null,null,null,null,"janvier",null,null,null,null,null,"janvier"]
[null,null,null,null,null,null,null,null,null,null,null,null,null,null,null,null,null,null,null,null,null,null,0,0,{"$error":"#DIV/0!"},null,null,null,null,null,null,null,null,null,"janvier",null,null,null,null,null,"janvier"]
[null,null,null,null,null,null,null,null,null,null,null,null,null,null,null,null,null,null,null,null,null,null,0,0,{"$error":"#DIV/0!"},null,null,null,null,null,null,null,null,null,"janvier",null,null,null,null,null,"janvier"]
[null,null,null,null,null,null,null,null,null,null,null,null,null,null,null,null,null,null,null,null,null,null,0,0,{"$error":"#DIV/0!"},null,null,null,null,null,null,null,null,null,"janvier",null,null,null,null,null,"janvier"]
[null,null,null,null,null,null,null,null,null,null,null,null,null,null,null,null,null,null,null,null,null,null,0,0,{"$error":"#DIV/0!"},null,null,null,null,null,null,null,null,null,"janvier",null,null,null,null,null,"janvier"]
[null,null,null,null,null,null,null,null,null,null,null,null,null,null,null,null,null,null,null,null,null,null,0,0,{"$error":"#DIV/0!"},null,null,null,null,null,null,null,null,null,"janvier",null,null,null,null,null,"janvier"]
[null,null,null,null,null,null,null,null,null,null,null,null,null,null,null,null,null,null,null,null,null,null,0,0,{"$error":"#DIV/0!"},null,null,null,null,null,null,null,null,null,"janvier",null,null,null,null,null,"janvier"]
[null,null,null,null,null,null,null,null,null,null,null,null,null,null,null,null,null,null,null,null,null,null,0,0,{"$error":"#DIV/0!"},null,null,null,null,null,null,null,null,null,"janvier",null,null,null,null,null,"janvier"]
[null,null,null,null,null,null,null,null,null,null,null,null,null,null,null,null,null,null,null,null,null,null,0,0,{"$error":"#DIV/0!"},null,null,null,null,null,null,null,null,null,"janvier",null,null,null,null,null,"janvier"]
[null,null,null,null,null,null,null,null,null,null,null,null,null,null,null,null,null,null,null,null,null,null,0,0,{"$error":"#DIV/0!"},null,null,null,null,null,null,null,null,null,"janvier",null,null,null,null,null,"janvier"]
[null,null,null,null,null,null,null,null,null,null,null,null,null,null,null,null,null,null,null,null,null,null,0,0,{"$error":"#DIV/0!"},null,null,null,null,null,null,null,null,null,"janvier",null,null,null,null,null,"janvier"]
[null,null,null,null,null,null,null,null,null,null,null,null,null,null,null,null,null,null,null,null,null,null,0,0,{"$error":"#DIV/0!"},null,null,null,null,null,null,null,null,null,"janvier",null,null,null,null,null,"janvier"]
[null,null,null,null,null,null,null,null,null,null,null,null,null,null,null,null,null,null,null,null,null,null,0,0,{"$error":"#DIV/0!"},null,null,null,null,null,null,null,null,null,"janvier",null,null,null,null,null,"janvier"]
[null,null,null,null,null,null,null,null,null,null,null,null,null,null,null,null,null,null,null,null,null,null,0,0,{"$error":"#DIV/0!"},null,null,null,null,null,null,null,null,null,"janvier",null,null,null,null,null,"janvier"]
[null,null,null,null,null,null,null,null,null,null,null,null,null,null,null,null,null,null,null,null,null,null,0,0,{"$error":"#DIV/0!"},null,null,null,null,null,null,null,null,null,"janvier",null,null,null,null,null,"janvier"]
[null,null,null,null,null,null,null,null,null,null,null,null,null,null,null,null,null,null,null,null,null,null,0,0,{"$error":"#DIV/0!"},null,null,null,null,null,null,null,null,null,"janvier",null,null,null,null,null,"janvier"]
[null,null,null,null,null,null,null,null,null,null,null,null,null,null,null,null,null,null,null,null,null,null,0,0,{"$error":"#DIV/0!"},null,null,null,null,null,null,null,null,null,"janvier",null,null,null,null,null,"janvier"]
[null,null,null,null,null,null,null,null,null,null,null,null,null,null,null,null,null,null,null,null,null,null,0,0,{"$error":"#DIV/0!"},null,null,null,null,null,null,null,null,null,"janvier",null,null,null,null,null,"janvier"]
[null,null,null,null,null,null,null,null,null,null,null,null,null,null,null,null,null,null,null,null,null,null,0,0,{"$error":"#DIV/0!"},null,null,null,null,null,null,null,null,null,"janvier",null,null,null,null,null,"janvier"]
[null,null,null,null,null,null,null,null,null,null,null,null,null,null,null,null,null,null,null,null,null,null,0,0,{"$error":"#DIV/0!"},null,null,null,null,null,null,null,null,null,"janvier",null,null,null,null,null,"janvier"]
[null,null,null,null,null,null,null,null,null,null,null,null,null,null,null,null,null,null,null,null,null,null,0,0,{"$error":"#DIV/0!"},null,null,null,null,null,null,null,null,null,"janvier",null,null,null,null,null,"janvier"]
[null,null,null,null,null,null,null,null,null,null,null,null,null,null,null,null,null,null,null,null,null,null,0,0,{"$error":"#DIV/0!"},null,null,null,null,null,null,null,null,null,"janvier",null,null,null,null,null,"janvier"]
[null,null,null,null,null,null,null,null,null,null,null,null,null,null,null,null,null,null,null,null,null,null,0,0,{"$error":"#DIV/0!"},null,null,null,null,null,null,null,null,null,"janvier",null,null,null,null,null,"janvier"]
[null,null,null,null,null,null,null,null,null,null,null,null,null,null,null,null,null,null,null,null,null,null,0,0,{"$error":"#DIV/0!"},null,null,null,null,null,null,null,null,null,"janvier",null,null,null,null,null,"janvier"]
[null,null,null,null,null,null,null,null,null,null,null,null,null,null,null,null,null,null,null,null,null,null,0,0,{"$error":"#DIV/0!"},null,null,null,null,null,null,null,null,null,"janvier",null,null,null,null,null,"janvier"]
[null,null,null,null,null,null,null,null,null,null,null,null,null,null,null,null,null,null,null,null,null,null,0,0,{"$error":"#DIV/0!"},null,null,null,null,null,null,null,null,null,"janvier",null,null,null,null,null,"janvier"]
[null,null,null,null,null,null,null,null,null,null,null,null,null,null,null,null,null,null,null,null,null,null,0,0,{"$error":"#DIV/0!"},null,null,null,null,null,null,null,null,null,"janvier",null,null,null,null,null,"janvier"]
[null,null,null,null,null,null,null,null,null,null,null,null,null,null,null,null,null,null,null,null,null,null,0,0,{"$error":"#DIV/0!"},null,null,null,null,null,null,null,null,null,"janvier",null,null,null,null,null,"janvier"]
[null,null,null,null,null,null,null,null,null,null,null,null,null,null,null,null,null,null,null,null,null,null,0,0,{"$error":"#DIV/0!"},null,null,null,null,null,null,null,null,null,"janvier",null,null,null,null,null,"janvier"]
[null,null,null,null,null,null,null,null,null,null,null,null,null,null,null,null,null,null,null,null,null,null,0,0,{"$error":"#DIV/0!"},null,null,null,null,null,null,null,null,null,"janvier",null,null,null,null,null,"janvier"]
[null,null,null,null,null,null,null,null,null,null,null,null,null,null,null,null,null,null,null,null,null,null,0,0,{"$error":"#DIV/0!"},null,null,null,null,null,null,null,null,null,"janvier",null,null,null,null,null,"janvier"]
[null,null,null,null,null,null,null,null,null,null,null,null,null,null,null,null,null,null,null,null,null,null,0,0,{"$error":"#DIV/0!"},null,null,null,null,null,null,null,null,null,"janvier",null,null,null,null,null,"janvier"]
[null,null,null,null,null,null,null,null,null,null,null,null,null,null,null,null,null,null,null,null,null,null,0,0,{"$error":"#DIV/0!"},null,null,null,null,null,null,null,null,null,"janvier",null,null,null,null,null,"janvier"]
[null,null,null,null,null,null,null,null,null,null,null,null,null,null,null,null,null,null,null,null,null,null,0,0,{"$error":"#DIV/0!"},null,null,null,null,null,null,null,null,null,"janvier",null,null,null,null,null,"janvier"]
[null,null,null,null,null,null,null,null,null,null,null,null,null,null,null,null,null,null,null,null,null,null,0,0,{"$error":"#DIV/0!"},null,null,null,null,null,null,null,null,null,"janvier",null,null,null,null,null,"janvier"]
[null,null,null,null,null,null,null,null,null,null,null,null,null,null,null,null,null,null,null,null,null,null,0,0,{"$error":"#DIV/0!"},null,null,null,null,null,null,null,null,null,"janvier",null,null,null,null,null,"janvier"]
[null,null,null,null,null,null,null,null,null,null,null,null,null,null,null,null,null,null,null,null,null,null,0,0,{"$error":"#DIV/0!"},null,null,null,null,null,null,null,null,null,"janvier",null,null,null,null,null,"janvier"]
[null,null,null,null,null,null,null,null,null,null,null,null,null,null,null,null,null,null,null,null,null,null,0,0,{"$error":"#DIV/0!"},null,null,null,null,null,null,null,null,null,"janvier",null,null,null,null,null,"janvier"]
[null,null,null,null,null,null,null,null,null,null,null,null,null,null,null,null,null,null,null,null,null,null,0,0,{"$error":"#DIV/0!"},null,null,null,null,null,null,null,null,null,"janvier",null,null,null,null,null,"janvier"]
[null,null,null,null,null,null,null,null,null,null,null,null,null,null,null,null,null,null,null,null,null,null,0,0,{"$error":"#DIV/0!"},null,null,null,null,null,null,null,null,null,"janvier",null,null,null,null,null,"janvier"]
[null,null,null,null,null,null,null,null,null,null,null,null,null,null,null,null,null,null,null,null,null,null,0,0,{"$error":"#DIV/0!"},null,null,null,null,null,null,null,null,null,"janvier",null,null,null,null,null,"janvier"]
[null,null,null,null,null,null,null,null,null,null,null,null,null,null,null,null,null,null,null,null,null,null,0,0,{"$error":"#DIV/0!"},null,null,null,null,null,null,null,null,null,"janvier",null,null,null,null,null,"janvier"]
[null,null,null,null,null,null,null,null,null,null,null,null,null,null,null,null,null,null,null,null,null,null,0,0,{"$error":"#DIV/0!"},null,null,null,null,null,null,null,null,null,"janvier",null,null,null,null,null,"janvier"]
[null,null,null,null,null,null,null,null,null,null,null,null,null,null,null,null,null,null,null,null,null,null,0,0,{"$error":"#DIV/0!"},null,null,null,null,null,null,null,null,null,"janvier",null,null,null,null,null,"janvier"]
[null,null,null,null,null,null,null,null,null,null,null,null,null,null,null,null,null,null,null,null,null,null,0,0,{"$error":"#DIV/0!"},null,null,null,null,null,null,null,null,null,"janvier",null,null,null,null,null,"janvier"]
[null,null,null,null,null,null,null,null,null,null,null,null,null,null,null,null,null,null,null,null,null,null,0,0,{"$error":"#DIV/0!"},null,null,null,null,null,null,null,null,null,"janvier",null,null,null,null,null,"janvier"]
[null,null,null,null,null,null,null,null,null,null,null,null,null,null,null,null,null,null,null,null,null,null,0,0,{"$error":"#DIV/0!"},null,null,null,null,null,null,null,null,null,"janvier",null,null,null,null,null,"janvier"]
[null,null,null,null,null,null,null,null,null,null,null,null,null,null,null,null,null,null,null,null,null,null,{"$f":"P1155-Q1155","v":0},{"$f":"Q1155-U1155","v":0},{"$f":"X1155/Q1155","v":{"$error":"#DIV/0!"}},null,null,null,null,null,null,null,null,null,{"$f":"TEXT(AH1155,\"MMMM\")","v":"janvier"},null,null,null,null,null,{"$f":"TEXT(AN1155,\"MMMM\")","v":"janvier"}]
[null,null,null,null,null,null,null,null,null,null,null,null,null,null,null,null,null,null,null,null,null,null,0,0,{"$error":"#DIV/0!"},null,null,null,null,null,null,null,null,null,"janvier",null,null,null,null,null,"janvier"]
[null,null,null,null,null,null,null,null,null,null,null,null,null,null,null,null,null,null,null,null,null,null,0,0,{"$error":"#DIV/0!"},null,null,null,null,null,null,null,null,null,"janvier",null,null,null,null,null,"janvier"]
[null,null,null,null,null,null,null,null,null,null,null,null,null,null,null,null,null,null,null,null,null,null,0,0,{"$error":"#DIV/0!"},null,null,null,null,null,null,null,null,null,"janvier",null,null,null,null,null,"janvier"]
[null,null,null,null,null,null,null,null,null,null,null,null,null,null,null,null,null,null,null,null,null,null,0,0,{"$error":"#DIV/0!"},null,null,null,null,null,null,null,null,null,"janvier",null,null,null,null,null,"janvier"]
[null,null,null,null,null,null,null,null,null,null,null,null,null,null,null,null,null,null,null,null,null,null,0,0,{"$error":"#DIV/0!"},null,null,null,null,null,null,null,null,null,"janvier",null,null,null,null,null,"janvier"]
[null,null,null,null,null,null,null,null,null,null,null,null,null,null,null,null,null,null,null,null,null,null,0,0,{"$error":"#DIV/0!"},null,null,null,null,null,null,null,null,null,"janvier",null,null,null,null,null,"janvier"]
[null,null,null,null,null,null,null,null,null,null,null,null,null,null,null,null,null,null,null,null,null,null,0,0,{"$error":"#DIV/0!"},null,null,null,null,null,null,null,null,null,"janvier",null,null,null,null,null,"janvier"]
[null,null,null,null,null,null,null,null,null,null,null,null,null,null,null,null,null,null,null,null,null,null,0,0,{"$error":"#DIV/0!"},null,null,null,null,null,null,null,null,null,"janvier",null,null,null,null,null,"janvier"]
[null,null,null,null,null,null,null,null,null,null,null,null,null,null,null,null,null,null,null,null,null,null,0,0,{"$error":"#DIV/0!"},null,null,null,null,null,null,null,null,null,"janvier",null,null,null,null,null,"janvier"]
[null,null,null,null,null,null,null,null,null,null,null,null,null,null,null,null,null,null,null,null,null,null,0,0,{"$error":"#DIV/0!"},null,null,null,null,null,null,null,null,null,"janvier",null,null,null,null,null,"janvier"]
[null,null,null,null,null,null,null,null,null,null,null,null,null,null,null,null,null,null,null,null,null,null,0,0,{"$error":"#DIV/0!"},null,null,null,null,null,null,null,null,null,"janvier",null,null,null,null,null,"janvier"]
[null,null,null,null,null,null,null,null,null,null,null,null,null,null,null,null,null,null,null,null,null,null,0,0,{"$error":"#DIV/0!"},null,null,null,null,null,null,null,null,null,"janvier",null,null,null,null,null,"janvier"]
[null,null,null,null,null,null,null,null,null,null,null,null,null,null,null,null,null,null,null,null,null,null,0,0,{"$error":"#DIV/0!"},null,null,null,null,null,null,null,null,null,"janvier",null,null,null,null,null,"janvier"]
[null,null,null,null,null,null,null,null,null,null,null,null,null,null,null,null,null,null,null,null,null,null,0,0,{"$error":"#DIV/0!"},null,null,null,null,null,null,null,null,null,"janvier",null,null,null,null,null,"janvier"]
[null,null,null,null,null,null,null,null,null,null,null,null,null,null,null,null,null,null,null,null,null,null,0,0,{"$error":"#DIV/0!"},null,null,null,null,null,null,null,null,null,"janvier",null,null,null,null,null,"janvier"]
[null,null,null,null,null,null,null,null,null,null,null,null,null,null,null,null,null,null,null,null,null,null,0,0,{"$error":"#DIV/0!"},null,null,null,null,null,null,null,null,null,"janvier",null,null,null,null,null,"janvier"]
[null,null,null,null,null,null,null,null,null,null,null,null,null,null,null,null,null,null,null,null,null,null,0,0,{"$error":"#DIV/0!"},null,null,null,null,null,null,null,null,null,"janvier",null,null,null,null,null,"janvier"]
[null,null,null,null,null,null,null,null,null,null,null,null,null,null,null,null,null,null,null,null,null,null,0,0,{"$error":"#DIV/0!"},null,null,null,null,null,null,null,null,null,"janvier",null,null,null,null,null,"janvier"]
[null,null,null,null,null,null,null,null,null,null,null,null,null,null,null,null,null,null,null,null,null,null,0,0,{"$error":"#DIV/0!"},null,null,null,null,null,null,null,null,null,"janvier",null,null,null,null,null,"janvier"]
[null,null,null,null,null,null,null,null,null,null,null,null,null,null,null,null,null,null,null,null,null,null,0,0,{"$error":"#DIV/0!"},null,null,null,null,null,null,null,null,null,"janvier",null,null,null,null,null,"janvier"]
[null,null,null,null,null,null,null,null,null,null,null,null,null,null,null,null,null,null,null,null,null,null,0,0,{"$error":"#DIV/0!"},null,null,null,null,null,null,null,null,null,"janvier",null,null,null,null,null,"janvier"]
[null,null,null,null,null,null,null,null,null,null,null,null,null,null,null,null,null,null,null,null,null,null,0,0,{"$error":"#DIV/0!"},null,null,null,null,null,null,null,null,null,"janvier",null,null,null,null,null,"janvier"]
[null,null,null,null,null,null,null,null,null,null,null,null,null,null,null,null,null,null,null,null,null,null,0,0,{"$error":"#DIV/0!"},null,null,null,null,null,null,null,null,null,"janvier",null,null,null,null,null,"janvier"]
[null,null,null,null,null,null,null,null,null,null,null,null,null,null,null,null,null,null,null,null,null,null,0,0,{"$error":"#DIV/0!"},null,null,null,null,null,null,null,null,null,"janvier",null,null,null,null,null,"janvier"]
[null,null,null,null,null,null,null,null,null,null,null,null,null,null,null,null,null,null,null,null,null,null,0,0,{"$error":"#DIV/0!"},null,null,null,null,null,null,null,null,null,"janvier",null,null,null,null,null,"janvier"]
[null,null,null,null,null,null,null,null,null,null,null,null,null,null,null,null,null,null,null,null,null,null,0,0,{"$error":"#DIV/0!"},null,null,null,null,null,null,null,null,null,"janvier",null,null,null,null,null,"janvier"]
[null,null,null,null,null,null,null,null,null,null,null,null,null,null,null,null,null,null,null,null,null,null,0,0,{"$error":"#DIV/0!"},null,null,null,null,null,null,null,null,null,"janvier",null,null,null,null,null,"janvier"]
[null,null,null,null,null,null,null,null,null,null,null,null,null,null,null,null,null,null,null,null,null,null,0,0,{"$error":"#DIV/0!"},null,null,null,null,null,null,null,null,null,"janvier",null,null,null,null,null,"janvier"]
[null,null,null,null,null,null,null,null,null,null,null,null,null,null,null,null,null,null,null,null,null,null,0,0,{"$error":"#DIV/0!"},null,null,null,null,null,null,null,null,null,"janvier",null,null,null,null,null,"janvier"]
[null,null,null,null,null,null,null,null,null,null,null,null,null,null,null,null,null,null,null,null,null,null,0,0,{"$error":"#DIV/0!"},null,null,null,null,null,null,null,null,null,"janvier",null,null,null,null,null,"janvier"]
[null,null,null,null,null,null,null,null,null,null,null,null,null,null,null,null,null,null,null,null,null,null,0,0,{"$error":"#DIV/0!"},null,null,null,null,null,null,null,null,null,"janvier",null,null,null,null,null,"janvier"]
[null,null,null,null,null,null,null,null,null,null,null,null,null,null,null,null,null,null,null,null,null,null,0,0,{"$error":"#DIV/0!"},null,null,null,null,null,null,null,null,null,"janvier",null,null,null,null,null,"janvier"]
[null,null,null,null,null,null,null,null,null,null,null,null,null,null,null,null,null,null,null,null,null,null,0,0,{"$error":"#DIV/0!"},null,null,null,null,null,null,null,null,null,"janvier",null,null,null,null,null,"janvier"]
[null,null,null,null,null,null,null,null,null,null,null,null,null,null,null,null,null,null,null,null,null,null,0,0,{"$error":"#DIV/0!"},null,null,null,null,null,null,null,null,null,"janvier",null,null,null,null,null,"janvier"]
[null,null,null,null,null,null,null,null,null,null,null,null,null,null,null,null,null,null,null,null,null,null,0,0,{"$error":"#DIV/0!"},null,null,null,null,null,null,null,null,null,"janvier",null,null,null,null,null,"janvier"]
[null,null,null,null,null,null,null,null,null,null,null,null,null,null,null,null,null,null,null,null,null,null,0,0,{"$error":"#DIV/0!"},null,null,null,null,null,null,null,null,null,"janvier",null,null,null,null,null,"janvier"]
[null,null,null,null,null,null,null,null,null,null,null,null,null,null,null,null,null,null,null,null,null,null,0,0,{"$error":"#DIV/0!"},null,null,null,null,null,null,null,null,null,"janvier",null,null,null,null,null,"janvier"]
[null,null,null,null,null,null,null,null,null,null,null,null,null,null,null,null,null,null,null,null,null,null,0,0,{"$error":"#DIV/0!"},null,null,null,null,null,null,null,null,null,"janvier",null,null,null,null,null,"janvier"]
[null,null,null,null,null,null,null,null,null,null,null,null,null,null,null,null,null,null,null,null,null,null,0,0,{"$error":"#DIV/0!"},null,null,null,null,null,null,null,null,null,"janvier",null,null,null,null,null,"janvier"]
[null,null,null,null,null,null,null,null,null,null,null,null,null,null,null,null,null,null,null,null,null,null,0,0,{"$error":"#DIV/0!"},null,null,null,null,null,null,null,null,null,"janvier",null,null,null,null,null,"janvier"]
[null,null,null,null,null,null,null,null,null,null,null,null,null,null,null,null,null,null,null,null,null,null,0,0,{"$error":"#DIV/0!"},null,null,null,null,null,null,null,null,null,"janvier",null,null,null,null,null,"janvier"]
[null,null,null,null,null,null,null,null,null,null,null,null,null,null,null,null,null,null,null,null,null,null,0,0,{"$error":"#DIV/0!"},null,null,null,null,null,null,null,null,null,"janvier",null,null,null,null,null,"janvier"]
[null,null,null,null,null,null,null,null,null,null,null,null,null,null,null,null,null,null,null,null,null,null,0,0,{"$error":"#DIV/0!"},null,null,null,null,null,null,null,null,null,"janvier",null,null,null,null,null,"janvier"]
[null,null,null,null,null,null,null,null,null,null,null,null,null,null,null,null,null,null,null,null,null,null,0,0,{"$error":"#DIV/0!"},null,null,null,null,null,null,null,null,null,"janvier",null,null,null,null,null,"janvier"]
[null,null,null,null,null,null,null,null,null,null,null,null,null,null,null,null,null,null,null,null,null,null,0,0,{"$error":"#DIV/0!"},null,null,null,null,null,null,null,null,null,"janvier",null,null,null,null,null,"janvier"]
[null,null,null,null,null,null,null,null,null,null,null,null,null,null,null,null,null,null,null,null,null,null,0,0,{"$error":"#DIV/0!"},null,null,null,null,null,null,null,null,null,"janvier",null,null,null,null,null,"janvier"]
[null,null,null,null,null,null,null,null,null,null,null,null,null,null,null,null,null,null,null,null,null,null,0,0,{"$error":"#DIV/0!"},null,null,null,null,null,null,null,null,null,"janvier",null,null,null,null,null,"janvier"]
[null,null,null,null,null,null,null,null,null,null,null,null,null,null,null,null,null,null,null,null,null,null,0,0,{"$error":"#DIV/0!"},null,null,null,null,null,null,null,null,null,"janvier",null,null,null,null,null,"janvier"]
[null,null,null,null,null,null,null,null,null,null,null,null,null,null,null,null,null,null,null,null,null,null,0,0,{"$error":"#DIV/0!"},null,null,null,null,null,null,null,null,null,"janvier",null,null,null,null,null,"janvier"]
[null,null,null,null,null,null,null,null,null,null,null,null,null,null,null,null,null,null,null,null,null,null,0,0,{"$error":"#DIV/0!"},null,null,null,null,null,null,null,null,null,"janvier",null,null,null,null,null,"janvier"]
[null,null,null,null,null,null,null,null,null,null,null,null,null,null,null,null,null,null,null,null,null,null,0,0,{"$error":"#DIV/0!"},null,null,null,null,null,null,null,null,null,"janvier",null,null,null,null,null,"janvier"]
[null,null,null,null,null,null,null,null,null,null,null,null,null,null,null,null,null,null,null,null,null,null,0,0,{"$error":"#DIV/0!"},null,null,null,null,null,null,null,null,null,"janvier",null,null,null,null,null,"janvier"]
[null,null,null,null,null,null,null,null,null,null,null,null,null,null,null,null,null,null,null,null,null,null,0,0,{"$error":"#DIV/0!"},null,null,null,null,null,null,null,null,null,"janvier",null,null,null,null,null,"janvier"]
[null,null,null,null,null,null,null,null,null,null,null,null,null,null,null,null,null,null,null,null,null,null,0,0,{"$error":"#DIV/0!"},null,null,null,null,null,null,null,null,null,"janvier",null,null,null,null,null,"janvier"]
[null,null,null,null,null,null,null,null,null,null,null,null,null,null,null,null,null,null,null,null,null,null,0,0,{"$error":"#DIV/0!"},null,null,null,null,null,null,null,null,null,"janvier",null,null,null,null,null,"janvier"]
[null,null,null,null,null,null,null,null,null,null,null,null,null,null,null,null,null,null,null,null,null,null,0,0,{"$error":"#DIV/0!"},null,null,null,null,null,null,null,null,null,"janvier",null,null,null,null,null,"janvier"]
[null,null,null,null,null,null,null,null,null,null,null,null,null,null,null,null,null,null,null,null,null,null,0,0,{"$error":"#DIV/0!"},null,null,null,null,null,null,null,null,null,"janvier",null,null,null,null,null,"janvier"]
[null,null,null,null,null,null,null,null,null,null,null,null,null,null,null,null,null,null,null,null,null,null,0,0,{"$error":"#DIV/0!"},null,null,null,null,null,null,null,null,null,"janvier",null,null,null,null,null,"janvier"]
[null,null,null,null,null,null,null,null,null,null,null,null,null,null,null,null,null,null,null,null,null,null,0,0,{"$error":"#DIV/0!"},null,null,null,null,null,null,null,null,null,"janvier",null,null,null,null,null,"janvier"]
[null,null,null,null,null,null,null,null,null,null,null,null,null,null,null,null,null,null,null,null,null,null,0,0,{"$error":"#DIV/0!"},null,null,null,null,null,null,null,null,null,"janvier",null,null,null,null,null,"janvier"]
[null,null,null,null,null,null,null,null,null,null,null,null,null,null,null,null,null,null,null,null,null,null,0,0,{"$error":"#DIV/0!"},null,null,null,null,null,null,null,null,null,"janvier",null,null,null,null,null,"janvier"]
[null,null,null,null,null,null,null,null,null,null,null,null,null,null,null,null,null,null,null,null,null,null,0,0,{"$error":"#DIV/0!"},null,null,null,null,null,null,null,null,null,"janvier",null,null,null,null,null,"janvier"]
[null,null,null,null,null,null,null,null,null,null,null,null,null,null,null,null,null,null,null,null,null,null,0,0,{"$error":"#DIV/0!"},null,null,null,null,null,null,null,null,null,"janvier",null,null,null,null,null,"janvier"]
[null,null,null,null,null,null,null,null,null,null,null,null,null,null,null,null,null,null,null,null,null,null,{"$f":"P1219-Q1219","v":0},{"$f":"Q1219-U1219","v":0},{"$f":"X1219/Q1219","v":{"$error":"#DIV/0!"}},null,null,null,null,null,null,null,null,null,{"$f":"TEXT(AH1219,\"MMMM\")","v":"janvier"},null,null,null,null,null,{"$f":"TEXT(AN1219,\"MMMM\")","v":"janvier"}]
[null,null,null,null,null,null,null,null,null,null,null,null,null,null,null,null,null,null,null,null,null,null,0,0,{"$error":"#DIV/0!"},null,null,null,null,null,null,null,null,null,"janvier",null,null,null,null,null,"janvier"]
[null,null,null,null,null,null,null,null,null,null,null,null,null,null,null,null,null,null,null,null,null,null,0,0,{"$error":"#DIV/0!"},null,null,null,null,null,null,null,null,null,"janvier",null,null,null,null,null,"janvier"]
[null,null,null,null,null,null,null,null,null,null,null,null,null,null,null,null,null,null,null,null,null,null,0,0,{"$error":"#DIV/0!"},null,null,null,null,null,null,null,null,null,"janvier",null,null,null,null,null,"janvier"]
[null,null,null,null,null,null,null,null,null,null,null,null,null,null,null,null,null,null,null,null,null,null,0,0,{"$error":"#DIV/0!"},null,null,null,null,null,null,null,null,null,"janvier",null,null,null,null,null,"janvier"]
[null,null,null,null,null,null,null,null,null,null,null,null,null,null,null,null,null,null,null,null,null,null,0,0,{"$error":"#DIV/0!"},null,null,null,null,null,null,null,null,null,"janvier",null,null,null,null,null,"janvier"]
[null,null,null,null,null,null,null,null,null,null,null,null,null,null,null,null,null,null,null,null,null,null,0,0,{"$error":"#DIV/0!"},null,null,null,null,null,null,null,null,null,"janvier",null,null,null,null,null,"janvier"]
[null,null,null,null,null,null,null,null,null,null,null,null,null,null,null,null,null,null,null,null,null,null,0,0,{"$error":"#DIV/0!"},null,null,null,null,null,null,null,null,null,"janvier",null,null,null,null,null,"janvier"]
[null,null,null,null,null,null,null,null,null,null,null,null,null,null,null,null,null,null,null,null,null,null,0,0,{"$error":"#DIV/0!"},null,null,null,null,null,null,null,null,null,"janvier",null,null,null,null,null,"janvier"]
[null,null,null,null,null,null,null,null,null,null,null,null,null,null,null,null,null,null,null,null,null,null,0,0,{"$error":"#DIV/0!"},null,null,null,null,null,null,null,null,null,"janvier",null,null,null,null,null,"janvier"]
[null,null,null,null,null,null,null,null,null,null,null,null,null,null,null,null,null,null,null,null,null,null,0,0,{"$error":"#DIV/0!"},null,null,null,null,null,null,null,null,null,"janvier",null,null,null,null,null,"janvier"]
[null,null,null,null,null,null,null,null,null,null,null,null,null,null,null,null,null,null,null,null,null,null,0,0,{"$error":"#DIV/0!"},null,null,null,null,null,null,null,null,null,"janvier",null,null,null,null,null,"janvier"]
[null,null,null,null,null,null,null,null,null,null,null,null,null,null,null,null,null,null,null,null,null,null,0,0,{"$error":"#DIV/0!"},null,null,null,null,null,null,null,null,null,"janvier",null,null,null,null,null,"janvier"]
[null,null,null,null,null,null,null,null,null,null,null,null,null,null,null,null,null,null,null,null,null,null,0,0,{"$error":"#DIV/0!"},null,null,null,null,null,null,null,null,null,"janvier",null,null,null,null,null,"janvier"]
[null,null,null,null,null,null,null,null,null,null,null,null,null,null,null,null,null,null,null,null,null,null,0,0,{"$error":"#DIV/0!"},null,null,null,null,null,null,null,null,null,"janvier",null,null,null,null,null,"janvier"]
[null,null,null,null,null,null,null,null,null,null,null,null,null,null,null,null,null,null,null,null,null,null,0,0,{"$error":"#DIV/0!"},null,null,null,null,null,null,null,null,null,"janvier",null,null,null,null,null,"janvier"]
[null,null,null,null,null,null,null,null,null,null,null,null,null,null,null,null,null,null,null,null,null,null,0,0,{"$error":"#DIV/0!"},null,null,null,null,null,null,null,null,null,"janvier",null,null,null,null,null,"janvier"]
[null,null,null,null,null,null,null,null,null,null,null,null,null,null,null,null,null,null,null,null,null,null,0,0,{"$error":"#DIV/0!"},null,null,null,null,null,null,null,null,null,"janvier",null,null,null,null,null,"janvier"]
[null,null,null,null,null,null,null,null,null,null,null,null,null,null,null,null,null,null,null,null,null,null,0,0,{"$error":"#DIV/0!"},null,null,null,null,null,null,null,null,null,"janvier",null,null,null,null,null,"janvier"]
[null,null,null,null,null,null,null,null,null,null,null,null,null,null,null,null,null,null,null,null,null,null,0,0,{"$error":"#DIV/0!"},null,null,null,null,null,null,null,null,null,"janvier",null,null,null,null,null,"janvier"]
[null,null,null,null,null,null,null,null,null,null,null,null,null,null,null,null,null,null,null,null,null,null,0,0,{"$error":"#DIV/0!"},null,null,null,null,null,null,null,null,null,"janvier",null,null,null,null,null,"janvier"]
[null,null,null,null,null,null,null,null,null,null,null,null,null,null,null,null,null,null,null,null,null,null,0,0,{"$error":"#DIV/0!"},null,null,null,null,null,null,null,null,null,"janvier",null,null,null,null,null,"janvier"]
[null,null,null,null,null,null,null,null,null,null,null,null,null,null,null,null,null,null,null,null,null,null,0,0,{"$error":"#DIV/0!"},null,null,null,null,null,null,null,null,null,"janvier",null,null,null,null,null,"janvier"]
[null,null,null,null,null,null,null,null,null,null,null,null,null,null,null,null,null,null,null,null,null,null,0,0,{"$error":"#DIV/0!"},null,null,null,null,null,null,null,null,null,"janvier",null,null,null,null,null,"janvier"]
[null,null,null,null,null,null,null,null,null,null,null,null,null,null,null,null,null,null,null,null,null,null,0,0,{"$error":"#DIV/0!"},null,null,null,null,null,null,null,null,null,"janvier",null,null,null,null,null,"janvier"]
[null,null,null,null,null,null,null,null,null,null,null,null,null,null,null,null,null,null,null,null,null,null,0,0,{"$error":"#DIV/0!"},null,null,null,null,null,null,null,null,null,"janvier",null,null,null,null,null,"janvier"]
[null,null,null,null,null,null,null,null,null,null,null,null,null,null,null,null,null,null,null,null,null,null,0,0,{"$error":"#DIV/0!"},null,null,null,null,null,null,null,null,null,"janvier",null,null,null,null,null,"janvier"]
[null,null,null,null,null,null,null,null,null,null,null,null,null,null,null,null,null,null,null,null,null,null,0,0,{"$error":"#DIV/0!"},null,null,null,null,null,null,null,null,null,"janvier",null,null,null,null,null,"janvier"]
[null,null,null,null,null,null,null,null,null,null,null,null,null,null,null,null,null,null,null,null,null,null,0,0,{"$error":"#DIV/0!"},null,null,null,null,null,null,null,null,null,"janvier",null,null,null,null,null,"janvier"]
[null,null,null,null,null,null,null,null,null,null,null,null,null,null,null,null,null,null,null,null,null,null,0,0,{"$error":"#DIV/0!"},null,null,null,null,null,null,null,null,null,"janvier",null,null,null,null,null,"janvier"]
[null,null,null,null,null,null,null,null,null,null,null,null,null,null,null,null,null,null,null,null,null,null,0,0,{"$error":"#DIV/0!"},null,null,null,null,null,null,null,null,null,"janvier",null,null,null,null,null,"janvier"]
[null,null,null,null,null,null,null,null,null,null,null,null,null,null,null,null,null,null,null,null,null,null,0,0,{"$error":"#DIV/0!"},null,null,null,null,null,null,null,null,null,"janvier",null,null,null,null,null,"janvier"]
[null,null,null,null,null,null,null,null,null,null,null,null,null,null,null,null,null,null,null,null,null,null,0,0,{"$error":"#DIV/0!"},null,null,null,null,null,null,null,null,null,"janvier",null,null,null,null,null,"janvier"]
[null,null,null,null,null,null,null,null,null,null,null,null,null,null,null,null,null,null,null,null,null,null,0,0,{"$error":"#DIV/0!"},null,null,null,null,null,null,null,null,null,"janvier",null,null,null,null,null,"janvier"]
[null,null,null,null,null,null,null,null,null,null,null,null,null,null,null,null,null,null,null,null,null,null,0,0,{"$error":"#DIV/0!"},null,null,null,null,null,null,null,null,null,"janvier",null,null,null,null,null,"janvier"]
[null,null,null,null,null,null,null,null,null,null,null,null,null,null,null,null,null,null,null,null,null,null,0,0,{"$error":"#DIV/0!"},null,null,null,null,null,null,null,null,null,"janvier",null,null,null,null,null,"janvier"]
[null,null,null,null,null,null,null,null,null,null,null,null,null,null,null,null,null,null,null,null,null,null,0,0,{"$error":"#DIV/0!"},null,null,null,null,null,null,null,null,null,"janvier",null,null,null,null,null,"janvier"]
[null,null,null,null,null,null,null,null,null,null,null,null,null,null,null,null,null,null,null,null,null,null,0,0,{"$error":"#DIV/0!"},null,null,null,null,null,null,null,null,null,"janvier",null,null,null,null,null,"janvier"]
[null,null,null,null,null,null,null,null,null,null,null,null,null,null,null,null,null,null,null,null,null,null,0,0,{"$error":"#DIV/0!"},null,null,null,null,null,null,null,null,null,"janvier",null,null,null,null,null,"janvier"]
[null,null,null,null,null,null,null,null,null,null,null,null,null,null,null,null,null,null,null,null,null,null,0,0,{"$error":"#DIV/0!"},null,null,null,null,null,null,null,null,null,"janvier",null,null,null,null,null,"janvier"]
[null,null,null,null,null,null,null,null,null,null,null,null,null,null,null,null,null,null,null,null,null,null,0,0,{"$error":"#DIV/0!"},null,null,null,null,null,null,null,null,null,"janvier",null,null,null,null,null,"janvier"]
[null,null,null,null,null,null,null,null,null,null,null,null,null,null,null,null,null,null,null,null,null,null,0,0,{"$error":"#DIV/0!"},null,null,null,null,null,null,null,null,null,"janvier",null,null,null,null,null,"janvier"]
[null,null,null,null,null,null,null,null,null,null,null,null,null,null,null,null,null,null,null,null,null,null,0,0,{"$error":"#DIV/0!"},null,null,null,null,null,null,null,null,null,"janvier",null,null,null,null,null,"janvier"]
[null,null,null,null,null,null,null,null,null,null,null,null,null,null,null,null,null,null,null,null,null,null,0,0,{"$error":"#DIV/0!"},null,null,null,null,null,null,null,null,null,"janvier",null,null,null,null,null,"janvier"]
[null,null,null,null,null,null,null,null,null,null,null,null,null,null,null,null,null,null,null,null,null,null,0,0,{"$error":"#DIV/0!"},null,null,null,null,null,null,null,null,null,"janvier",null,null,null,null,null,"janvier"]
[null,null,null,null,null,null,null,null,null,null,null,null,null,null,null,null,null,null,null,null,null,null,0,0,{"$error":"#DIV/0!"},null,null,null,null,null,null,null,null,null,"janvier",null,null,null,null,null,"janvier"]
[null,null,null,null,null,null,null,null,null,null,null,null,null,null,null,null,null,null,null,null,null,null,0,0,{"$error":"#DIV/0!"},null,null,null,null,null,null,null,null,null,"janvier",null,null,null,null,null,"janvier"]
[null,null,null,null,null,null,null,null,null,null,null,null,null,null,null,null,null,null,null,null,null,null,0,0,{"$error":"#DIV/0!"},null,null,null,null,null,null,null,null,null,"janvier",null,null,null,null,null,"janvier"]
[null,null,null,null,null,null,null,null,null,null,null,null,null,null,null,null,null,null,null,null,null,null,0,0,{"$error":"#DIV/0!"},null,null,null,null,null,null,null,null,null,"janvier",null,null,null,null,null,"janvier"]
[null,null,null,null,null,null,null,null,null,null,null,null,null,null,null,null,null,null,null,null,null,null,0,0,{"$error":"#DIV/0!"},null,null,null,null,null,null,null,null,null,"janvier",null,null,null,null,null,"janvier"]
[null,null,null,null,null,null,null,null,null,null,null,null,null,null,null,null,null,null,null,null,null,null,0,0,{"$error":"#DIV/0!"},null,null,null,null,null,null,null,null,null,"janvier",null,null,null,null,null,"janvier"]
[null,null,null,null,null,null,null,null,null,null,null,null,null,null,null,null,null,null,null,null,null,null,0,0,{"$error":"#DIV/0!"},null,null,null,null,null,null,null,null,null,"janvier",null,null,null,null,null,"janvier"]
[null,null,null,null,null,null,null,null,null,null,null,null,null,null,null,null,null,null,null,null,null,null,0,0,{"$error":"#DIV/0!"},null,null,null,null,null,null,null,null,null,"janvier",null,null,null,null,null,"janvier"]
[null,null,null,null,null,null,null,null,null,null,null,null,null,null,null,null,null,null,null,null,null,null,0,0,{"$error":"#DIV/0!"},null,null,null,null,null,null,null,null,null,"janvier",null,null,null,null,null,"janvier"]
[null,null,null,null,null,null,null,null,null,null,null,null,null,null,null,null,null,null,null,null,null,null,0,0,{"$error":"#DIV/0!"},null,null,null,null,null,null,null,null,null,"janvier",null,null,null,null,null,"janvier"]
[null,null,null,null,null,null,null,null,null,null,null,null,null,null,null,null,null,null,null,null,null,null,0,0,{"$error":"#DIV/0!"},null,null,null,null,null,null,null,null,null,"janvier",null,null,null,null,null,"janvier"]
[null,null,null,null,null,null,null,null,null,null,null,null,null,null,null,null,null,null,null,null,null,null,0,0,{"$error":"#DIV/0!"},null,null,null,null,null,null,null,null,null,"janvier",null,null,null,null,null,"janvier"]
[null,null,null,null,null,null,null,null,null,null,null,null,null,null,null,null,null,null,null,null,null,null,0,0,{"$error":"#DIV/0!"},null,null,null,null,null,null,null,null,null,"janvier",null,null,null,null,null,"janvier"]
[null,null,null,null,null,null,null,null,null,null,null,null,null,null,null,null,null,null,null,null,null,null,0,0,{"$error":"#DIV/0!"},null,null,null,null,null,null,null,null,null,"janvier",null,null,null,null,null,"janvier"]
[null,null,null,null,null,null,null,null,null,null,null,null,null,null,null,null,null,null,null,null,null,null,0,0,{"$error":"#DIV/0!"},null,null,null,null,null,null,null,null,null,"janvier",null,null,null,null,null,"janvier"]
[null,null,null,null,null,null,null,null,null,null,null,null,null,null,null,null,null,null,null,null,null,null,0,0,{"$error":"#DIV/0!"},null,null,null,null,null,null,null,null,null,"janvier",null,null,null,null,null,"janvier"]
[null,null,null,null,null,null,null,null,null,null,null,null,null,null,null,null,null,null,null,null,null,null,0,0,{"$error":"#DIV/0!"},null,null,null,null,null,null,null,null,null,"janvier",null,null,null,null,null,"janvier"]
[null,null,null,null,null,null,null,null,null,null,null,null,null,null,null,null,null,null,null,null,null,null,0,0,{"$error":"#DIV/0!"},null,null,null,null,null,null,null,null,null,"janvier",null,null,null,null,null,"janvier"]
[null,null,null,null,null,null,null,null,null,null,null,null,null,null,null,null,null,null,null,null,null,null,0,0,{"$error":"#DIV/0!"},null,null,null,null,null,null,null,null,null,"janvier",null,null,null,null,null,"janvier"]
[null,null,null,null,null,null,null,null,null,null,null,null,null,null,null,null,null,null,null,null,null,null,{"$f":"P1283-Q1283","v":0},{"$f":"Q1283-U1283","v":0},{"$f":"X1283/Q1283","v":{"$error":"#DIV/0!"}},null,null,null,null,null,null,null,null,null,{"$f":"TEXT(AH1283,\"MMMM\")","v":"janvier"},null,null,null,null,null,{"$f":"TEXT(AN1283,\"MMMM\")","v":"janvier"}]
[null,null,null,null,null,null,null,null,null,null,null,null,null,null,null,null,null,null,null,null,null,null,0,0,{"$error":"#DIV/0!"},null,null,null,null,null,null,null,null,null,"janvier",null,null,null,null,null,"janvier"]
[null,null,null,null,null,null,null,null,null,null,null,null,null,null,null,null,null,null,null,null,null,null,0,0,{"$error":"#DIV/0!"},null,null,null,null,null,null,null,null,null,"janvier",null,null,null,null,null,"janvier"]
[null,null,null,null,null,null,null,null,null,null,null,null,null,null,null,null,null,null,null,null,null,null,0,0,{"$error":"#DIV/0!"},null,null,null,null,null,null,null,null,null,"janvier",null,null,null,null,null,"janvier"]
[null,null,null,null,null,null,null,null,null,null,null,null,null,null,null,null,null,null,null,null,null,null,0,0,{"$error":"#DIV/0!"},null,null,null,null,null,null,null,null,null,"janvier",null,null,null,null,null,"janvier"]
[null,null,null,null,null,null,null,null,null,null,null,null,null,null,null,null,null,null,null,null,null,null,0,0,{"$error":"#DIV/0!"},null,null,null,null,null,null,null,null,null,"janvier",null,null,null,null,null,"janvier"]
[null,null,null,null,null,null,null,null,null,null,null,null,null,null,null,null,null,null,null,null,null,null,0,0,{"$error":"#DIV/0!"},null,null,null,null,null,null,null,null,null,"janvier",null,null,null,null,null,"janvier"]
[null,null,null,null,null,null,null,null,null,null,null,null,null,null,null,null,null,null,null,null,null,null,0,0,{"$error":"#DIV/0!"},null,null,null,null,null,null,null,null,null,"janvier",null,null,null,null,null,"janvier"]
[null,null,null,null,null,null,null,null,null,null,null,null,null,null,null,null,null,null,null,null,null,null,0,0,{"$error":"#DIV/0!"},null,null,null,null,null,null,null,null,null,"janvier",null,null,null,null,null,"janvier"]
[null,null,null,null,null,null,null,null,null,null,null,null,null,null,null,null,null,null,null,null,null,null,0,0,{"$error":"#DIV/0!"},null,null,null,null,null,null,null,null,null,"janvier",null,null,null,null,null,"janvier"]
[null,null,null,null,null,null,null,null,null,null,null,null,null,null,null,null,null,null,null,null,null,null,0,0,{"$error":"#DIV/0!"},null,null,null,null,null,null,null,null,null,"janvier",null,null,null,null,null,"janvier"]
[null,null,null,null,null,null,null,null,null,null,null,null,null,null,null,null,null,null,null,null,null,null,0,0,{"$error":"#DIV/0!"},null,null,null,null,null,null,null,null,null,"janvier",null,null,null,null,null,"janvier"]
[null,null,null,null,null,null,null,null,null,null,null,null,null,null,null,null,null,null,null,null,null,null,0,0,{"$error":"#DIV/0!"},null,null,null,null,null,null,null,null,null,"janvier",null,null,null,null,null,"janvier"]
[null,null,null,null,null,null,null,null,null,null,null,null,null,null,null,null,null,null,null,null,null,null,0,0,{"$error":"#DIV/0!"},null,null,null,null,null,null,null,null,null,"janvier",null,null,null,null,null,"janvier"]
[null,null,null,null,null,null,null,null,null,null,null,null,null,null,null,null,null,null,null,null,null,null,0,0,{"$error":"#DIV/0!"},null,null,null,null,null,null,null,null,null,"janvier",null,null,null,null,null,"janvier"]
[null,null,null,null,null,null,null,null,null,null,null,null,null,null,null,null,null,null,null,null,null,null,0,0,{"$error":"#DIV/0!"},null,null,null,null,null,null,null,null,null,"janvier",null,null,null,null,null,"janvier"]
[null,null,null,null,null,null,null,null,null,null,null,null,null,null,null,null,null,null,null,null,null,null,0,0,{"$error":"#DIV/0!"},null,null,null,null,null,null,null,null,null,"janvier",null,null,null,null,null,"janvier"]
[null,null,null,null,null,null,null,null,null,null,null,null,null,null,null,null,null,null,null,null,null,null,0,0,{"$error":"#DIV/0!"},null,null,null,null,null,null,null,null,null,"janvier",null,null,null,null,null,"janvier"]
[null,null,null,null,null,null,null,null,null,null,null,null,null,null,null,null,null,null,null,null,null,null,0,0,{"$error":"#DIV/0!"},null,null,null,null,null,null,null,null,null,"janvier",null,null,null,null,null,"janvier"]
[null,null,null,null,null,null,null,null,null,null,null,null,null,null,null,null,null,null,null,null,null,null,0,0,{"$error":"#DIV/0!"},null,null,null,null,null,null,null,null,null,"janvier",null,null,null,null,null,"janvier"]
[null,null,null,null,null,null,null,null,null,null,null,null,null,null,null,null,null,null,null,null,null,null,0,0,{"$error":"#DIV/0!"},null,null,null,null,null,null,null,null,null,"janvier",null,null,null,null,null,"janvier"]
[null,null,null,null,null,null,null,null,null,null,null,null,null,null,null,null,null,null,null,null,null,null,0,0,{"$error":"#DIV/0!"},null,null,null,null,null,null,null,null,null,"janvier",null,null,null,null,null,"janvier"]
[null,null,null,null,null,null,null,null,null,null,null,null,null,null,null,null,null,null,null,null,null,null,0,0,{"$error":"#DIV/0!"},null,null,null,null,null,null,null,null,null,"janvier",null,null,null,null,null,"janvier"]
[null,null,null,null,null,null,null,null,null,null,null,null,null,null,null,null,null,null,null,null,null,null,0,0,{"$error":"#DIV/0!"},null,null,null,null,null,null,null,null,null,"janvier",null,null,null,null,null,"janvier"]
[null,null,null,null,null,null,null,null,null,null,null,null,null,null,null,null,null,null,null,null,null,null,0,0,{"$error":"#DIV/0!"},null,null,null,null,null,null,null,null,null,"janvier",null,null,null,null,null,"janvier"]
[null,null,null,null,null,null,null,null,null,null,null,null,null,null,null,null,null,null,null,null,null,null,0,0,{"$error":"#DIV/0!"},null,null,null,null,null,null,null,null,null,"janvier",null,null,null,null,null,"janvier"]
[null,null,null,null,null,null,null,null,null,null,null,null,null,null,null,null,null,null,null,null,null,null,0,0,{"$error":"#DIV/0!"},null,null,null,null,null,null,null,null,null,"janvier",null,null,null,null,null,"janvier"]
[null,null,null,null,null,null,null,null,null,null,null,null,null,null,null,null,null,null,null,null,null,null,0,0,{"$error":"#DIV/0!"},null,null,null,null,null,null,null,null,null,"janvier",null,null,null,null,null,"janvier"]
[null,null,null,null,null,null,null,null,null,null,null,null,null,null,null,null,null,null,null,null,null,null,0,0,{"$error":"#DIV/0!"},null,null,null,null,null,null,null,null,null,"janvier",null,null,null,null,null,"janvier"]
[null,null,null,null,null,null,null,null,null,null,null,null,null,null,null,null,null,null,null,null,null,null,0,0,{"$error":"#DIV/0!"},null,null,null,null,null,null,null,null,null,"janvier",null,null,null,null,null,"janvier"]
[null,null,null,null,null,null,null,null,null,null,null,null,null,null,null,null,null,null,null,null,null,null,0,0,{"$error":"#DIV/0!"},null,null,null,null,null,null,null,null,null,"janvier",null,null,null,null,null,"janvier"]
[null,null,null,null,null,null,null,null,null,null,null,null,null,null,null,null,null,null,null,null,null,null,0,0,{"$error":"#DIV/0!"},null,null,null,null,null,null,null,null,null,"janvier",null,null,null,null,null,"janvier"]
[null,null,null,null,null,null,null,null,null,null,null,null,null,null,null,null,null,null,null,null,null,null,0,0,{"$error":"#DIV/0!"},null,null,null,null,null,null,null,null,null,"janvier",null,null,null,null,null,"janvier"]
[null,null,null,null,null,null,null,null,null,null,null,null,null,null,null,null,null,null,null,null,null,null,0,0,{"$error":"#DIV/0!"},null,null,null,null,null,null,null,null,null,"janvier",null,null,null,null,null,"janvier"]
[null,null,null,null,null,null,null,null,null,null,null,null,null,null,null,null,null,null,null,null,null,null,0,0,{"$error":"#DIV/0!"},null,null,null,null,null,null,null,null,null,"janvier",null,null,null,null,null,"janvier"]
[null,null,null,null,null,null,null,null,null,null,null,null,null,null,null,null,null,null,null,null,null,null,0,0,{"$error":"#DIV/0!"},null,null,null,null,null,null,null,null,null,"janvier",null,null,null,null,null,"janvier"]
[null,null,null,null,null,null,null,null,null,null,null,null,null,null,null,null,null,null,null,null,null,null,0,0,{"$error":"#DIV/0!"},null,null,null,null,null,null,null,null,null,"janvier",null,null,null,null,null,"janvier"]
[null,null,null,null,null,null,null,null,null,null,null,null,null,null,null,null,null,null,null,null,null,null,0,0,{"$error":"#DIV/0!"},null,null,null,null,null,null,null,null,null,"janvier",null,null,null,null,null,"janvier"]
[null,null,null,null,null,null,null,null,null,null,null,null,null,null,null,null,null,null,null,null,null,null,0,0,{"$error":"#DIV/0!"},null,null,null,null,null,null,null,null,null,"janvier",null,null,null,null,null,"janvier"]
[null,null,null,null,null,null,null,null,null,null,null,null,null,null,null,null,null,null,null,null,null,null,0,0,{"$error":"#DIV/0!"},null,null,null,null,null,null,null,null,null,"janvier",null,null,null,null,null,"janvier"]
[null,null,null,null,null,null,null,null,null,null,null,null,null,null,null,null,null,null,null,null,null,null,0,0,{"$error":"#DIV/0!"},null,null,null,null,null,null,null,null,null,"janvier",null,null,null,null,null,"janvier"]
[null,null,null,null,null,null,null,null,null,null,null,null,null,null,null,null,null,null,null,null,null,null,0,0,{"$error":"#DIV/0!"},null,null,null,null,null,null,null,null,null,"janvier",null,null,null,null,null,"janvier"]
[null,null,null,null,null,null,null,null,null,null,null,null,null,null,null,null,null,null,null,null,null,null,0,0,{"$error":"#DIV/0!"},null,null,null,null,null,null,null,null,null,"janvier",null,null,null,null,null,"janvier"]
[null,null,null,null,null,null,null,null,null,null,null,null,null,null,null,null,null,null,null,null,null,null,0,0,{"$error":"#DIV/0!"},null,null,null,null,null,null,null,null,null,"janvier",null,null,null,null,null,"janvier"]
[null,null,null,null,null,null,null,null,null,null,null,null,null,null,null,null,null,null,null,null,null,null,0,0,{"$error":"#DIV/0!"},null,null,null,null,null,null,null,null,null,"janvier",null,null,null,null,null,"janvier"]
[null,null,null,null,null,null,null,null,null,null,null,null,null,null,null,null,null,null,null,null,null,null,0,0,{"$error":"#DIV/0!"},null,null,null,null,null,null,null,null,null,"janvier",null,null,null,null,null,"janvier"]
[null,null,null,null,null,null,null,null,null,null,null,null,null,null,null,null,null,null,null,null,null,null,0,0,{"$error":"#DIV/0!"},null,null,null,null,null,null,null,null,null,"janvier",null,null,null,null,null,"janvier"]
[null,null,null,null,null,null,null,null,null,null,null,null,null,null,null,null,null,null,null,null,null,null,0,0,{"$error":"#DIV/0!"},null,null,null,null,null,null,null,null,null,"janvier",null,null,null,null,null,"janvier"]
[null,null,null,null,null,null,null,null,null,null,null,null,null,null,null,null,null,null,null,null,null,null,0,0,{"$error":"#DIV/0!"},null,null,null,null,null,null,null,null,null,"janvier",null,null,null,null,null,"janvier"]
[null,null,null,null,null,null,null,null,null,null,null,null,null,null,null,null,null,null,null,null,null,null,0,0,{"$error":"#DIV/0!"},null,null,null,null,null,null,null,null,null,"janvier",null,null,null,null,null,"janvier"]
[null,null,null,null,null,null,null,null,null,null,null,null,null,null,null,null,null,null,null,null,null,null,0,0,{"$error":"#DIV/0!"},null,null,null,null,null,null,null,null,null,"janvier",null,null,null,null,null,"janvier"]
[null,null,null,null,null,null,null,null,null,null,null,null,null,null,null,null,null,null,null,null,null,null,0,0,{"$error":"#DIV/0!"},null,null,null,null,null,null,null,null,null,"janvier",null,null,null,null,null,"janvier"]
[null,null,null,null,null,null,null,null,null,null,null,null,null,null,null,null,null,null,null,null,null,null,0,0,{"$error":"#DIV/0!"},null,null,null,null,null,null,null,null,null,"janvier",null,null,null,null,null,"janvier"]
[null,null,null,null,null,null,null,null,null,null,null,null,null,null,null,null,null,null,null,null,null,null,0,0,{"$error":"#DIV/0!"},null,null,null,null,null,null,null,null,null,"janvier",null,null,null,null,null,"janvier"]
[null,null,null,null,null,null,null,null,null,null,null,null,null,null,null,null,null,null,null,null,null,null,0,0,{"$error":"#DIV/0!"},null,null,null,null,null,null,null,null,null,"janvier",null,null,null,null,null,"janvier"]
[null,null,null,null,null,null,null,null,null,null,null,null,null,null,null,null,null,null,null,null,null,null,0,0,{"$error":"#DIV/0!"},null,null,null,null,null,null,null,null,null,"janvier",null,null,null,null,null,"janvier"]
[null,null,null,null,null,null,null,null,null,null,null,null,null,null,null,null,null,null,null,null,null,null,0,0,{"$error":"#DIV/0!"},null,null,null,null,null,null,null,null,null,"janvier",null,null,null,null,null,"janvier"]
[null,null,null,null,null,null,null,null,null,null,null,null,null,null,null,null,null,null,null,null,null,null,0,0,{"$error":"#DIV/0!"},null,null,null,null,null,null,null,null,null,"janvier",null,null,null,null,null,"janvier"]
[null,null,null,null,null,null,null,null,null,null,null,null,null,null,null,null,null,null,null,null,null,null,0,0,{"$error":"#DIV/0!"},null,null,null,null,null,null,null,null,null,"janvier",null,null,null,null,null,"janvier"]
[null,null,null,null,null,null,null,null,null,null,null,null,null,null,null,null,null,null,null,null,null,null,0,0,{"$error":"#DIV/0!"},null,null,null,null,null,null,null,null,null,"janvier",null,null,null,null,null,"janvier"]
[null,null,null,null,null,null,null,null,null,null,null,null,null,null,null,null,null,null,null,null,null,null,0,0,{"$error":"#DIV/0!"},null,null,null,null,null,null,null,null,null,"janvier",null,null,null,null,null,"janvier"]
[null,null,null,null,null,null,null,null,null,null,null,null,null,null,null,null,null,null,null,null,null,null,0,0,{"$error":"#DIV/0!"},null,null,null,null,null,null,null,null,null,"janvier",null,null,null,null,null,"janvier"]
[null,null,null,null,null,null,null,null,null,null,null,null,null,null,null,null,null,null,null,null,null,null,0,0,{"$error":"#DIV/0!"},null,null,null,null,null,null,null,null,null,"janvier",null,null,null,null,null,"janvier"]
[null,null,null,null,null,null,null,null,null,null,null,null,null,null,null,null,null,null,null,null,null,null,0,0,{"$error":"#DIV/0!"},null,null,null,null,null,null,null,null,null,"janvier",null,null,null,null,null,"janvier"]
[null,null,null,null,null,null,null,null,null,null,null,null,null,null,null,null,null,null,null,null,null,null,{"$f":"P1347-Q1347","v":0},{"$f":"Q1347-U1347","v":0},{"$f":"X1347/Q1347","v":{"$error":"#DIV/0!"}},null,null,null,null,null,null,null,null,null,{"$f":"TEXT(AH1347,\"MMMM\")","v":"janvier"},null,null,null,null,null,{"$f":"TEXT(AN1347,\"MMMM\")","v":"janvier"}]
[null,null,null,null,null,null,null,null,null,null,null,null,null,null,null,null,null,null,null,null,null,null,0,0,{"$error":"#DIV/0!"},null,null,null,null,null,null,null,null,null,"janvier",null,null,null,null,null,"janvier"]
[null,null,null,null,null,null,null,null,null,null,null,null,null,null,null,null,null,null,null,null,null,null,0,0,{"$error":"#DIV/0!"},null,null,null,null,null,null,null,null,null,"janvier",null,null,null,null,null,"janvier"]
[null,null,null,null,null,null,null,null,null,null,null,null,null,null,null,null,null,null,null,null,null,null,0,0,{"$error":"#DIV/0!"},null,null,null,null,null,null,null,null,null,"janvier",null,null,null,null,null,"janvier"]
[null,null,null,null,null,null,null,null,null,null,null,null,null,null,null,null,null,null,null,null,null,null,0,0,{"$error":"#DIV/0!"},null,null,null,null,null,null,null,null,null,"janvier",null,null,null,null,null,"janvier"]
[null,null,null,null,null,null,null,null,null,null,null,null,null,null,null,null,null,null,null,null,null,null,0,0,{"$error":"#DIV/0!"},null,null,null,null,null,null,null,null,null,"janvier",null,null,null,null,null,"janvier"]
[null,null,null,null,null,null,null,null,null,null,null,null,null,null,null,null,null,null,null,null,null,null,0,0,{"$error":"#DIV/0!"},null,null,null,null,null,null,null,null,null,"janvier",null,null,null,null,null,"janvier"]
[null,null,null,null,null,null,null,null,null,null,null,null,null,null,null,null,null,null,null,null,null,null,0,0,{"$error":"#DIV/0!"},null,null,null,null,null,null,null,null,null,"janvier",null,null,null,null,null,"janvier"]
[null,null,null,null,null,null,null,null,null,null,null,null,null,null,null,null,null,null,null,null,null,null,0,0,{"$error":"#DIV/0!"},null,null,null,null,null,null,null,null,null,"janvier",null,null,null,null,null,"janvier"]
[null,null,null,null,null,null,null,null,null,null,null,null,null,null,null,null,null,null,null,null,null,null,0,0,{"$error":"#DIV/0!"},null,null,null,null,null,null,null,null,null,"janvier",null,null,null,null,null,"janvier"]
[null,null,null,null,null,null,null,null,null,null,null,null,null,null,null,null,null,null,null,null,null,null,0,0,{"$error":"#DIV/0!"},null,null,null,null,null,null,null,null,null,"janvier",null,null,null,null,null,"janvier"]
[null,null,null,null,null,null,null,null,null,null,null,null,null,null,null,null,null,null,null,null,null,null,0,0,{"$error":"#DIV/0!"},null,null,null,null,null,null,null,null,null,"janvier",null,null,null,null,null,"janvier"]
[null,null,null,null,null,null,null,null,null,null,null,null,null,null,null,null,null,null,null,null,null,null,0,0,{"$error":"#DIV/0!"},null,null,null,null,null,null,null,null,null,"janvier",null,null,null,null,null,"janvier"]
[null,null,null,null,null,null,null,null,null,null,null,null,null,null,null,null,null,null,null,null,null,null,0,0,{"$error":"#DIV/0!"},null,null,null,null,null,null,null,null,null,"janvier",null,null,null,null,null,"janvier"]
[null,null,null,null,null,null,null,null,null,null,null,null,null,null,null,null,null,null,null,null,null,null,0,0,{"$error":"#DIV/0!"},null,null,null,null,null,null,null,null,null,"janvier",null,null,null,null,null,"janvier"]
[null,null,null,null,null,null,null,null,null,null,null,null,null,null,null,null,null,null,null,null,null,null,0,0,{"$error":"#DIV/0!"},null,null,null,null,null,null,null,null,null,"janvier",null,null,null,null,null,"janvier"]
[null,null,null,null,null,null,null,null,null,null,null,null,null,null,null,null,null,null,null,null,null,null,0,0,{"$error":"#DIV/0!"},null,null,null,null,null,null,null,null,null,"janvier",null,null,null,null,null,"janvier"]
[null,null,null,null,null,null,null,null,null,null,null,null,null,null,null,null,null,null,null,null,null,null,0,0,{"$error":"#DIV/0!"},null,null,null,null,null,null,null,null,null,"janvier",null,null,null,null,null,"janvier"]
[null,null,null,null,null,null,null,null,null,null,null,null,null,null,null,null,null,null,null,null,null,null,0,0,{"$error":"#DIV/0!"},null,null,null,null,null,null,null,null,null,"janvier",null,null,null,null,null,"janvier"]
[null,null,null,null,null,null,null,null,null,null,null,null,null,null,null,null,null,null,null,null,null,null,0,0,{"$error":"#DIV/0!"},null,null,null,null,null,null,null,null,null,"janvier",null,null,null,null,null,"janvier"]
[null,null,null,null,null,null,null,null,null,null,null,null,null,null,null,null,null,null,null,null,null,null,0,0,{"$error":"#DIV/0!"},null,null,null,null,null,null,null,null,null,"janvier",null,null,null,null,null,"janvier"]
[null,null,null,null,null,null,null,null,null,null,null,null,null,null,null,null,null,null,null,null,null,null,0,0,{"$error":"#DIV/0!"},null,null,null,null,null,null,null,null,null,"janvier",null,null,null,null,null,"janvier"]
[null,null,null,null,null,null,null,null,null,null,null,null,null,null,null,null,null,null,null,null,null,null,0,0,{"$error":"#DIV/0!"},null,null,null,null,null,null,null,null,null,"janvier",null,null,null,null,null,"janvier"]
[null,null,null,null,null,null,null,null,null,null,null,null,null,null,null,null,null,null,null,null,null,null,0,0,{"$error":"#DIV/0!"},null,null,null,null,null,null,null,null,null,"janvier",null,null,null,null,null,"janvier"]
[null,null,null,null,null,null,null,null,null,null,null,null,null,null,null,null,null,null,null,null,null,null,0,0,{"$error":"#DIV/0!"},null,null,null,null,null,null,null,null,null,"janvier",null,null,null,null,null,"janvier"]
[null,null,null,null,null,null,null,null,null,null,null,null,null,null,null,null,null,null,null,null,null,null,0,0,{"$error":"#DIV/0!"},null,null,null,null,null,null,null,null,null,"janvier",null,null,null,null,null,"janvier"]
[null,null,null,null,null,null,null,null,null,null,null,null,null,null,null,null,null,null,null,null,null,null,0,0,{"$error":"#DIV/0!"},null,null,null,null,null,null,null,null,null,"janvier",null,null,null,null,null,"janvier"]
[null,null,null,null,null,null,null,null,null,null,null,null,null,null,null,null,null,null,null,null,null,null,0,0,{"$error":"#DIV/0!"},null,null,null,null,null,null,null,null,null,"janvier",null,null,null,null,null,"janvier"]
[null,null,null,null,null,null,null,null,null,null,null,null,null,null,null,null,null,null,null,null,null,null,0,0,{"$error":"#DIV/0!"},null,null,null,null,null,null,null,null,null,"janvier",null,null,null,null,null,"janvier"]
[null,null,null,null,null,null,null,null,null,null,null,null,null,null,null,null,null,null,null,null,null,null,0,0,{"$error":"#DIV/0!"},null,null,null,null,null,null,null,null,null,"janvier",null,null,null,null,null,"janvier"]
[null,null,null,null,null,null,null,null,null,null,null,null,null,null,null,null,null,null,null,null,null,null,0,0,{"$error":"#DIV/0!"},null,null,null,null,null,null,null,null,null,"janvier",null,null,null,null,null,"janvier"]
[null,null,null,null,null,null,null,null,null,null,null,null,null,null,null,null,null,null,null,null,null,null,0,0,{"$error":"#DIV/0!"},null,null,null,null,null,null,null,null,null,"janvier",null,null,null,null,null,"janvier"]
[null,null,null,null,null,null,null,null,null,null,null,null,null,null,null,null,null,null,null,null,null,null,0,0,{"$error":"#DIV/0!"},null,null,null,null,null,null,null,null,null,"janvier",null,null,null,null,null,"janvier"]
[null,null,null,null,null,null,null,null,null,null,null,null,null,null,null,null,null,null,null,null,null,null,0,0,{"$error":"#DIV/0!"},null,null,null,null,null,null,null,null,null,"janvier",null,null,null,null,null,"janvier"]
[null,null,null,null,null,null,null,null,null,null,null,null,null,null,null,null,null,null,null,null,null,null,0,0,{"$error":"#DIV/0!"},null,null,null,null,null,null,null,null,null,"janvier",null,null,null,null,null,"janvier"]
[null,null,null,null,null,null,null,null,null,null,null,null,null,null,null,null,null,null,null,null,null,null,0,0,{"$error":"#DIV/0!"},null,null,null,null,null,null,null,null,null,"janvier",null,null,null,null,null,"janvier"]
[null,null,null,null,null,null,null,null,null,null,null,null,null,null,null,null,null,null,null,null,null,null,0,0,{"$error":"#DIV/0!"},null,null,null,null,null,null,null,null,null,"janvier",null,null,null,null,null,"janvier"]
[null,null,null,null,null,null,null,null,null,null,null,null,null,null,null,null,null,null,null,null,null,null,0,0,{"$error":"#DIV/0!"},null,null,null,null,null,null,null,null,null,"janvier",null,null,null,null,null,"janvier"]
[null,null,null,null,null,null,null,null,null,null,null,null,null,null,null,null,null,null,null,null,null,null,0,0,{"$error":"#DIV/0!"},null,null,null,null,null,null,null,null,null,"janvier",null,null,null,null,null,"janvier"]
[null,null,null,null,null,null,null,null,null,null,null,null,null,null,null,null,null,null,null,null,null,null,0,0,{"$error":"#DIV/0!"},null,null,null,null,null,null,null,null,null,"janvier",null,null,null,null,null,"janvier"]
[null,null,null,null,null,null,null,null,null,null,null,null,null,null,null,null,null,null,null,null,null,null,0,0,{"$error":"#DIV/0!"},null,null,null,null,null,null,null,null,null,"janvier",null,null,null,null,null,"janvier"]
[null,null,null,null,null,null,null,null,null,null,null,null,null,null,null,null,null,null,null,null,null,null,0,0,{"$error":"#DIV/0!"},null,null,null,null,null,null,null,null,null,"janvier",null,null,null,null,null,"janvier"]
[null,null,null,null,null,null,null,null,null,null,null,null,null,null,null,null,null,null,null,null,null,null,0,0,{"$error":"#DIV/0!"},null,null,null,null,null,null,null,null,null,"janvier",null,null,null,null,null,"janvier"]
[null,null,null,null,null,null,null,null,null,null,null,null,null,null,null,null,null,null,null,null,null,null,0,0,{"$error":"#DIV/0!"},null,null,null,null,null,null,null,null,null,"janvier",null,null,null,null,null,"janvier"]
[null,null,null,null,null,null,null,null,null,null,null,null,null,null,null,null,null,null,null,null,null,null,0,0,{"$error":"#DIV/0!"},null,null,null,null,null,null,null,null,null,"janvier",null,null,null,null,null,"janvier"]
[null,null,null,null,null,null,null,null,null,null,null,null,null,null,null,null,null,null,null,null,null,null,0,0,{"$error":"#DIV/0!"},null,null,null,null,null,null,null,null,null,"janvier",null,null,null,null,null,"janvier"]
[null,null,null,null,null,null,null,null,null,null,null,null,null,null,null,null,null,null,null,null,null,null,0,0,{"$error":"#DIV/0!"},null,null,null,null,null,null,null,null,null,"janvier",null,null,null,null,null,"janvier"]
[null,null,null,null,null,null,null,null,null,null,null,null,null,null,null,null,null,null,null,null,null,null,0,0,{"$error":"#DIV/0!"},null,null,null,null,null,null,null,null,null,"janvier",null,null,null,null,null,"janvier"]
[null,null,null,null,null,null,null,null,null,null,null,null,null,null,null,null,null,null,null,null,null,null,0,0,{"$error":"#DIV/0!"},null,null,null,null,null,null,null,null,null,"janvier",null,null,null,null,null,"janvier"]
[null,null,null,null,null,null,null,null,null,null,null,null,null,null,null,null,null,null,null,null,null,null,0,0,{"$error":"#DIV/0!"},null,null,null,null,null,null,null,null,null,"janvier",null,null,null,null,null,"janvier"]
[null,null,null,null,null,null,null,null,null,null,null,null,null,null,null,null,null,null,null,null,null,null,0,0,{"$error":"#DIV/0!"},null,null,null,null,null,null,null,null,null,"janvier",null,null,null,null,null,"janvier"]
[null,null,null,null,null,null,null,null,null,null,null,null,null,null,null,null,null,null,null,null,null,null,0,0,{"$error":"#DIV/0!"},null,null,null,null,null,null,null,null,null,"janvier",null,null,null,null,null,"janvier"]
[null,null,null,null,null,null,null,null,null,null,null,null,null,null,null,null,null,null,null,null,null,null,0,0,{"$error":"#DIV/0!"},null,null,null,null,null,null,null,null,null,"janvier",null,null,null,null,null,"janvier"]
[null,null,null,null,null,null,null,null,null,null,null,null,null,null,null,null,null,null,null,null,null,null,0,0,{"$error":"#DIV/0!"},null,null,null,null,null,null,null,null,null,"janvier",null,null,null,null,null,"janvier"]
[null,null,null,null,null,null,null,null,null,null,null,null,null,null,null,null,null,null,null,null,null,null,0,0,{"$error":"#DIV/0!"},null,null,null,null,null,null,null,null,null,"janvier",null,null,null,null,null,"janvier"]
[null,null,null,null,null,null,null,null,null,null,null,null,null,null,null,null,null,null,null,null,null,null,0,0,{"$error":"#DIV/0!"},null,null,null,null,null,null,null,null,null,"janvier",null,null,null,null,null,"janvier"]
[null,null,null,null,null,null,null,null,null,null,null,null,null,null,null,null,null,null,null,null,null,null,0,0,{"$error":"#DIV/0!"},null,null,null,null,null,null,null,null,null,"janvier",null,null,null,null,null,"janvier"]
[null,null,null,null,null,null,null,null,null,null,null,null,null,null,null,null,null,null,null,null,null,null,0,0,{"$error":"#DIV/0!"},null,null,null,null,null,null,null,null,null,"janvier",null,null,null,null,null,"janvier"]
[null,null,null,null,null,null,null,null,null,null,null,null,null,null,null,null,null,null,null,null,null,null,0,0,{"$error":"#DIV/0!"},null,null,null,null,null,null,null,null,null,"janvier",null,null,null,null,null,"janvier"]
[null,null,null,null,null,null,null,null,null,null,null,null,null,null,null,null,null,null,null,null,null,null,0,0,{"$error":"#DIV/0!"},null,null,null,null,null,null,null,null,null,"janvier",null,null,null,null,null,"janvier"]
[null,null,null,null,null,null,null,null,null,null,null,null,null,null,null,null,null,null,null,null,null,null,0,0,{"$error":"#DIV/0!"},null,null,null,null,null,null,null,null,null,"janvier",null,null,null,null,null,"janvier"]
[null,null,null,null,null,null,null,null,null,null,null,null,null,null,null,null,null,null,null,null,null,null,0,0,{"$error":"#DIV/0!"},null,null,null,null,null,null,null,null,null,"janvier",null,null,null,null,null,"janvier"]
[null,null,null,null,null,null,null,null,null,null,null,null,null,null,null,null,null,null,null,null,null,null,0,0,{"$error":"#DIV/0!"},null,null,null,null,null,null,null,null,null,"janvier",null,null,null,null,null,"janvier"]
[null,null,null,null,null,null,null,null,null,null,null,null,null,null,null,null,null,null,null,null,null,null,0,0,{"$error":"#DIV/0!"},null,null,null,null,null,null,null,null,null,"janvier",null,null,null,null,null,"janvier"]
[null,null,null,null,null,null,null,null,null,null,null,null,null,null,null,null,null,null,null,null,null,null,{"$f":"P1411-Q1411","v":0},{"$f":"Q1411-U1411","v":0},{"$f":"X1411/Q1411","v":{"$error":"#DIV/0!"}},null,null,null,null,null,null,null,null,null,{"$f":"TEXT(AH1411,\"MMMM\")","v":"janvier"},null,null,null,null,null,{"$f":"TEXT(AN1411,\"MMMM\")","v":"janvier"}]
[null,null,null,null,null,null,null,null,null,null,null,null,null,null,null,null,null,null,null,null,null,null,0,0,{"$error":"#DIV/0!"},null,null,null,null,null,null,null,null,null,"janvier",null,null,null,null,null,"janvier"]
[null,null,null,null,null,null,null,null,null,null,null,null,null,null,null,null,null,null,null,null,null,null,0,0,{"$error":"#DIV/0!"},null,null,null,null,null,null,null,null,null,"janvier",null,null,null,null,null,"janvier"]
[null,null,null,null,null,null,null,null,null,null,null,null,null,null,null,null,null,null,null,null,null,null,0,0,{"$error":"#DIV/0!"},null,null,null,null,null,null,null,null,null,"janvier",null,null,null,null,null,"janvier"]
[null,null,null,null,null,null,null,null,null,null,null,null,null,null,null,null,null,null,null,null,null,null,0,0,{"$error":"#DIV/0!"},null,null,null,null,null,null,null,null,null,"janvier",null,null,null,null,null,"janvier"]
[null,null,null,null,null,null,null,null,null,null,null,null,null,null,null,null,null,null,null,null,null,null,0,0,{"$error":"#DIV/0!"},null,null,null,null,null,null,null,null,null,"janvier",null,null,null,null,null,"janvier"]
[null,null,null,null,null,null,null,null,null,null,null,null,null,null,null,null,null,null,null,null,null,null,0,0,{"$error":"#DIV/0!"},null,null,null,null,null,null,null,null,null,"janvier",null,null,null,null,null,"janvier"]
[null,null,null,null,null,null,null,null,null,null,null,null,null,null,null,null,null,null,null,null,null,null,0,0,{"$error":"#DIV/0!"},null,null,null,null,null,null,null,null,null,"janvier",null,null,null,null,null,"janvier"]
[null,null,null,null,null,null,null,null,null,null,null,null,null,null,null,null,null,null,null,null,null,null,0,0,{"$error":"#DIV/0!"},null,null,null,null,null,null,null,null,null,"janvier",null,null,null,null,null,"janvier"]
[null,null,null,null,null,null,null,null,null,null,null,null,null,null,null,null,null,null,null,null,null,null,0,0,{"$error":"#DIV/0!"},null,null,null,null,null,null,null,null,null,"janvier",null,null,null,null,null,"janvier"]
[null,null,null,null,null,null,null,null,null,null,null,null,null,null,null,null,null,null,null,null,null,null,0,0,{"$error":"#DIV/0!"},null,null,null,null,null,null,null,null,null,"janvier",null,null,null,null,null,"janvier"]
[null,null,null,null,null,null,null,null,null,null,null,null,null,null,null,null,null,null,null,null,null,null,0,0,{"$error":"#DIV/0!"},null,null,null,null,null,null,null,null,null,"janvier",null,null,null,null,null,"janvier"]
[null,null,null,null,null,null,null,null,null,null,null,null,null,null,null,null,null,null,null,null,null,null,0,0,{"$error":"#DIV/0!"},null,null,null,null,null,null,null,null,null,"janvier",null,null,null,null,null,"janvier"]
[null,null,null,null,null,null,null,null,null,null,null,null,null,null,null,null,null,null,null,null,null,null,0,0,{"$error":"#DIV/0!"},null,null,null,null,null,null,null,null,null,"janvier",null,null,null,null,null,"janvier"]
[null,null,null,null,null,null,null,null,null,null,null,null,null,null,null,null,null,null,null,null,null,null,0,0,{"$error":"#DIV/0!"},null,null,null,null,null,null,null,null,null,"janvier",null,null,null,null,null,"janvier"]
[null,null,null,null,null,null,null,null,null,null,null,null,null,null,null,null,null,null,null,null,null,null,0,0,{"$error":"#DIV/0!"},null,null,null,null,null,null,null,null,null,"janvier",null,null,null,null,null,"janvier"]
[null,null,null,null,null,null,null,null,null,null,null,null,null,null,null,null,null,null,null,null,null,null,0,0,{"$error":"#DIV/0!"},null,null,null,null,null,null,null,null,null,"janvier",null,null,null,null,null,"janvier"]
[null,null,null,null,null,null,null,null,null,null,null,null,null,null,null,null,null,null,null,null,null,null,0,0,{"$error":"#DIV/0!"},null,null,null,null,null,null,null,null,null,"janvier",null,null,null,null,null,"janvier"]
[null,null,null,null,null,null,null,null,null,null,null,null,null,null,null,null,null,null,null,null,null,null,0,0,{"$error":"#DIV/0!"},null,null,null,null,null,null,null,null,null,"janvier",null,null,null,null,null,"janvier"]
[null,null,null,null,null,null,null,null,null,null,null,null,null,null,null,null,null,null,null,null,null,null,0,0,{"$error":"#DIV/0!"},null,null,null,null,null,null,null,null,null,"janvier",null,null,null,null,null,"janvier"]
[null,null,null,null,null,null,null,null,null,null,null,null,null,null,null,null,null,null,null,null,null,null,0,0,{"$error":"#DIV/0!"},null,null,null,null,null,null,null,null,null,"janvier",null,null,null,null,null,"janvier"]
[null,null,null,null,null,null,null,null,null,null,null,null,null,null,null,null,null,null,null,null,null,null,0,0,{"$error":"#DIV/0!"},null,null,null,null,null,null,null,null,null,"janvier",null,null,null,null,null,"janvier"]
[null,null,null,null,null,null,null,null,null,null,null,null,null,null,null,null,null,null,null,null,null,null,0,0,{"$error":"#DIV/0!"},null,null,null,null,null,null,null,null,null,"janvier",null,null,null,null,null,"janvier"]
[null,null,null,null,null,null,null,null,null,null,null,null,null,null,null,null,null,null,null,null,null,null,0,0,{"$error":"#DIV/0!"},null,null,null,null,null,null,null,null,null,"janvier",null,null,null,null,null,"janvier"]
[null,null,null,null,null,null,null,null,null,null,null,null,null,null,null,null,null,null,null,null,null,null,0,0,{"$error":"#DIV/0!"},null,null,null,null,null,null,null,null,null,"janvier",null,null,null,null,null,"janvier"]
[null,null,null,null,null,null,null,null,null,null,null,null,null,null,null,null,null,null,null,null,null,null,0,0,{"$error":"#DIV/0!"},null,null,null,null,null,null,null,null,null,"janvier",null,null,null,null,null,"janvier"]
[null,null,null,null,null,null,null,null,null,null,null,null,null,null,null,null,null,null,null,null,null,null,0,0,{"$error":"#DIV/0!"},null,null,null,null,null,null,null,null,null,"janvier",null,null,null,null,null,"janvier"]
[null,null,null,null,null,null,null,null,null,null,null,null,null,null,null,null,null,null,null,null,null,null,0,0,{"$error":"#DIV/0!"},null,null,null,null,null,null,null,null,null,"janvier",null,null,null,null,null,"janvier"]
[null,null,null,null,null,null,null,null,null,null,null,null,null,null,null,null,null,null,null,null,null,null,0,0,{"$error":"#DIV/0!"},null,null,null,null,null,null,null,null,null,"janvier",null,null,null,null,null,"janvier"]
[null,null,null,null,null,null,null,null,null,null,null,null,null,null,null,null,null,null,null,null,null,null,0,0,{"$error":"#DIV/0!"},null,null,null,null,null,null,null,null,null,"janvier",null,null,null,null,null,"janvier"]
[null,null,null,null,null,null,null,null,null,null,null,null,null,null,null,null,null,null,null,null,null,null,0,0,{"$error":"#DIV/0!"},null,null,null,null,null,null,null,null,null,"janvier",null,null,null,null,null,"janvier"]
[null,null,null,null,null,null,null,null,null,null,null,null,null,null,null,null,null,null,null,null,null,null,0,0,{"$error":"#DIV/0!"},null,null,null,null,null,null,null,null,null,"janvier",null,null,null,null,null,"janvier"]
[null,null,null,null,null,null,null,null,null,null,null,null,null,null,null,null,null,null,null,null,null,null,0,0,{"$error":"#DIV/0!"},null,null,null,null,null,null,null,null,null,"janvier",null,null,null,null,null,"janvier"]
[null,null,null,null,null,null,null,null,null,null,null,null,null,null,null,null,null,null,null,null,null,null,0,0,{"$error":"#DIV/0!"},null,null,null,null,null,null,null,null,null,"janvier",null,null,null,null,null,"janvier"]
[null,null,null,null,null,null,null,null,null,null,null,null,null,null,null,null,null,null,null,null,null,null,0,0,{"$error":"#DIV/0!"},null,null,null,null,null,null,null,null,null,"janvier",null,null,null,null,null,"janvier"]
[null,null,null,null,null,null,null,null,null,null,null,null,null,null,null,null,null,null,null,null,null,null,0,0,{"$error":"#DIV/0!"},null,null,null,null,null,null,null,null,null,"janvier",null,null,null,null,null,"janvier"]
[null,null,null,null,null,null,null,null,null,null,null,null,null,null,null,null,null,null,null,null,null,null,0,0,{"$error":"#DIV/0!"},null,null,null,null,null,null,null,null,null,"janvier",null,null,null,null,null,"janvier"]
[null,null,null,null,null,null,null,null,null,null,null,null,null,null,null,null,null,null,null,null,null,null,0,0,{"$error":"#DIV/0!"},null,null,null,null,null,null,null,null,null,"janvier",null,null,null,null,null,"janvier"]
[null,null,null,null,null,null,null,null,null,null,null,null,null,null,null,null,null,null,null,null,null,null,0,0,{"$error":"#DIV/0!"},null,null,null,null,null,null,null,null,null,"janvier",null,null,null,null,null,"janvier"]
[null,null,null,null,null,null,null,null,null,null,null,null,null,null,null,null,null,null,null,null,null,null,0,0,{"$error":"#DIV/0!"},null,null,null,null,null,null,null,null,null,"janvier",null,null,null,null,null,"janvier"]
[null,null,null,null,null,null,null,null,null,null,null,null,null,null,null,null,null,null,null,null,null,null,0,0,{"$error":"#DIV/0!"},null,null,null,null,null,null,null,null,null,"janvier",null,null,null,null,null,"janvier"]
[null,null,null,null,null,null,null,null,null,null,null,null,null,null,null,null,null,null,null,null,null,null,0,0,{"$error":"#DIV/0!"},null,null,null,null,null,null,null,null,null,"janvier",null,null,null,null,null,"janvier"]
[null,null,null,null,null,null,null,null,null,null,null,null,null,null,null,null,null,null,null,null,null,null,0,0,{"$error":"#DIV/0!"},null,null,null,null,null,null,null,null,null,"janvier",null,null,null,null,null,"janvier"]
[null,null,null,null,null,null,null,null,null,null,null,null,null,null,null,null,null,null,null,null,null,null,0,0,{"$error":"#DIV/0!"},null,null,null,null,null,null,null,null,null,"janvier",null,null,null,null,null,"janvier"]
[null,null,null,null,null,null,null,null,null,null,null,null,null,null,null,null,null,null,null,null,null,null,0,0,{"$error":"#DIV/0!"},null,null,null,null,null,null,null,null,null,"janvier",null,null,null,null,null,"janvier"]
[null,null,null,null,null,null,null,null,null,null,null,null,null,null,null,null,null,null,null,null,null,null,0,0,{"$error":"#DIV/0!"},null,null,null,null,null,null,null,null,null,"janvier",null,null,null,null,null,"janvier"]
[null,null,null,null,null,null,null,null,null,null,null,null,null,null,null,null,null,null,null,null,null,null,0,0,{"$error":"#DIV/0!"},null,null,null,null,null,null,null,null,null,"janvier",null,null,null,null,null,"janvier"]
[null,null,null,null,null,null,null,null,null,null,null,null,null,null,null,null,null,null,null,null,null,null,0,0,{"$error":"#DIV/0!"},null,null,null,null,null,null,null,null,null,"janvier",null,null,null,null,null,"janvier"]
[null,null,null,null,null,null,null,null,null,null,null,null,null,null,null,null,null,null,null,null,null,null,0,0,{"$error":"#DIV/0!"},null,null,null,null,null,null,null,null,null,"janvier",null,null,null,null,null,"janvier"]
[null,null,null,null,null,null,null,null,null,null,null,null,null,null,null,null,null,null,null,null,null,null,0,0,{"$error":"#DIV/0!"},null,null,null,null,null,null,null,null,null,"janvier",null,null,null,null,null,"janvier"]
[null,null,null,null,null,null,null,null,null,null,null,null,null,null,null,null,null,null,null,null,null,null,0,0,{"$error":"#DIV/0!"},null,null,null,null,null,null,null,null,null,"janvier",null,null,null,null,null,"janvier"]
[null,null,null,null,null,null,null,null,null,null,null,null,null,null,null,null,null,null,null,null,null,null,0,0,{"$error":"#DIV/0!"},null,null,null,null,null,null,null,null,null,"janvier",null,null,null,null,null,"janvier"]
[null,null,null,null,null,null,null,null,null,null,null,null,null,null,null,null,null,null,null,null,null,null,0,0,{"$error":"#DIV/0!"},null,null,null,null,null,null,null,null,null,"janvier",null,null,null,null,null,"janvier"]
[null,null,null,null,null,null,null,null,null,null,null,null,null,null,null,null,null,null,null,null,null,null,0,0,{"$error":"#DIV/0!"},null,null,null,null,null,null,null,null,null,"janvier",null,null,null,null,null,"janvier"]
[null,null,null,null,null,null,null,null,null,null,null,null,null,null,null,null,null,null,null,null,null,null,0,0,{"$error":"#DIV/0!"},null,null,null,null,null,null,null,null,null,"janvier",null,null,null,null,null,"janvier"]
[null,null,null,null,null,null,null,null,null,null,null,null,null,null,null,null,null,null,null,null,null,null,0,0,{"$error":"#DIV/0!"},null,null,null,null,null,null,null,null,null,"janvier",null,null,null,null,null,"janvier"]
[null,null,null,null,null,null,null,null,null,null,null,null,null,null,null,null,null,null,null,null,null,null,0,0,{"$error":"#DIV/0!"},null,null,null,null,null,null,null,null,null,"janvier",null,null,null,null,null,"janvier"]
[null,null,null,null,null,null,null,null,null,null,null,null,null,null,null,null,null,null,null,null,null,null,0,0,{"$error":"#DIV/0!"},null,null,null,null,null,null,null,null,null,"janvier",null,null,null,null,null,"janvier"]
[null,null,null,null,null,null,null,null,null,null,null,null,null,null,null,null,null,null,null,null,null,null,0,0,{"$error":"#DIV/0!"},null,null,null,null,null,null,null,null,null,"janvier",null,null,null,null,null,"janvier"]
[null,null,null,null,null,null,null,null,null,null,null,null,null,null,null,null,null,null,null,null,null,null,0,0,{"$error":"#DIV/0!"},null,null,null,null,null,null,null,null,null,"janvier",null,null,null,null,null,"janvier"]
[null,null,null,null,null,null,null,null,null,null,null,null,null,null,null,null,null,null,null,null,null,null,0,0,{"$error":"#DIV/0!"},null,null,null,null,null,null,null,null,null,"janvier",null,null,null,null,null,"janvier"]
[null,null,null,null,null,null,null,null,null,null,null,null,null,null,null,null,null,null,null,null,null,null,0,0,{"$error":"#DIV/0!"},null,null,null,null,null,null,null,null,null,"janvier",null,null,null,null,null,"janvier"]
[null,null,null,null,null,null,null,null,null,null,null,null,null,null,null,null,null,null,null,null,null,null,0,0,{"$error":"#DIV/0!"},null,null,null,null,null,null,null,null,null,"janvier",null,null,null,null,null,"janvier"]
[null,null,null,null,null,null,null,null,null,null,null,null,null,null,null,null,null,null,null,null,null,null,0,0,{"$error":"#DIV/0!"},null,null,null,null,null,null,null,null,null,"janvier",null,null,null,null,null,"janvier"]
[null,null,null,null,null,null,null,null,null,null,null,null,null,null,null,null,null,null,null,null,null,null,{"$f":"P1475-Q1475","v":0},{"$f":"Q1475-U1475","v":0},{"$f":"X1475/Q1475","v":{"$error":"#DIV/0!"}},null,null,null,null,null,null,null,null,null,{"$f":"TEXT(AH1475,\"MMMM\")","v":"janvier"},null,null,null,null,null,{"$f":"TEXT(AN1475,\"MMMM\")","v":"janvier"}]
[null,null,null,null,null,null,null,null,null,null,null,null,null,null,null,null,null,null,null,null,null,null,0,0,{"$error":"#DIV/0!"},null,null,null,null,null,null,null,null,null,"janvier",null,null,null,null,null,"janvier"]
[null,null,null,null,null,null,null,null,null,null,null,null,null,null,null,null,null,null,null,null,null,null,0,0,{"$error":"#DIV/0!"},null,null,null,null,null,null,null,null,null,"janvier",null,null,null,null,null,"janvier"]
[null,null,null,null,null,null,null,null,null,null,null,null,null,null,null,null,null,null,null,null,null,null,0,0,{"$error":"#DIV/0!"},null,null,null,null,null,null,null,null,null,"janvier",null,null,null,null,null,"janvier"]
[null,null,null,null,null,null,null,null,null,null,null,null,null,null,null,null,null,null,null,null,null,null,0,0,{"$error":"#DIV/0!"},null,null,null,null,null,null,null,null,null,"janvier",null,null,null,null,null,"janvier"]
[null,null,null,null,null,null,null,null,null,null,null,null,null,null,null,null,null,null,null,null,null,null,0,0,{"$error":"#DIV/0!"},null,null,null,null,null,null,null,null,null,"janvier",null,null,null,null,null,"janvier"]
[null,null,null,null,null,null,null,null,null,null,null,null,null,null,null,null,null,null,null,null,null,null,0,0,{"$error":"#DIV/0!"},null,null,null,null,null,null,null,null,null,"janvier",null,null,null,null,null,"janvier"]
[null,null,null,null,null,null,null,null,null,null,null,null,null,null,null,null,null,null,null,null,null,null,0,0,{"$error":"#DIV/0!"},null,null,null,null,null,null,null,null,null,"janvier",null,null,null,null,null,"janvier"]
[null,null,null,null,null,null,null,null,null,null,null,null,null,null,null,null,null,null,null,null,null,null,0,0,{"$error":"#DIV/0!"},null,null,null,null,null,null,null,null,null,"janvier",null,null,null,null,null,"janvier"]
[null,null,null,null,null,null,null,null,null,null,null,null,null,null,null,null,null,null,null,null,null,null,0,0,{"$error":"#DIV/0!"},null,null,null,null,null,null,null,null,null,"janvier",null,null,null,null,null,"janvier"]
[null,null,null,null,null,null,null,null,null,null,null,null,null,null,null,null,null,null,null,null,null,null,0,0,{"$error":"#DIV/0!"},null,null,null,null,null,null,null,null,null,"janvier",null,null,null,null,null,"janvier"]
[null,null,null,null,null,null,null,null,null,null,null,null,null,null,null,null,null,null,null,null,null,null,0,0,{"$error":"#DIV/0!"},null,null,null,null,null,null,null,null,null,"janvier",null,null,null,null,null,"janvier"]
[null,null,null,null,null,null,null,null,null,null,null,null,null,null,null,null,null,null,null,null,null,null,0,0,{"$error":"#DIV/0!"},null,null,null,null,null,null,null,null,null,"janvier",null,null,null,null,null,"janvier"]
[null,null,null,null,null,null,null,null,null,null,null,null,null,null,null,null,null,null,null,null,null,null,0,0,{"$error":"#DIV/0!"},null,null,null,null,null,null,null,null,null,"janvier",null,null,null,null,null,"janvier"]
[null,null,null,null,null,null,null,null,null,null,null,null,null,null,null,null,null,null,null,null,null,null,0,0,{"$error":"#DIV/0!"},null,null,null,null,null,null,null,null,null,"janvier",null,null,null,null,null,"janvier"]
[null,null,null,null,null,null,null,null,null,null,null,null,null,null,null,null,null,null,null,null,null,null,0,0,{"$error":"#DIV/0!"},null,null,null,null,null,null,null,null,null,"janvier",null,null,null,null,null,"janvier"]
[null,null,null,null,null,null,null,null,null,null,null,null,null,null,null,null,null,null,null,null,null,null,0,0,{"$error":"#DIV/0!"},null,null,null,null,null,null,null,null,null,"janvier",null,null,null,null,null,"janvier"]
[null,null,null,null,null,null,null,null,null,null,null,null,null,null,null,null,null,null,null,null,null,null,0,0,{"$error":"#DIV/0!"},null,null,null,null,null,null,null,null,null,"janvier",null,null,null,null,null,"janvier"]
[null,null,null,null,null,null,null,null,null,null,null,null,null,null,null,null,null,null,null,null,null,null,0,0,{"$error":"#DIV/0!"},null,null,null,null,null,null,null,null,null,"janvier",null,null,null,null,null,"janvier"]
[null,null,null,null,null,null,null,null,null,null,null,null,null,null,null,null,null,null,null,null,null,null,0,0,{"$error":"#DIV/0!"},null,null,null,null,null,null,null,null,null,"janvier",null,null,null,null,null,"janvier"]
[null,null,null,null,null,null,null,null,null,null,null,null,null,null,null,null,null,null,null,null,null,null,0,0,{"$error":"#DIV/0!"},null,null,null,null,null,null,null,null,null,"janvier",null,null,null,null,null,"janvier"]
[null,null,null,null,null,null,null,null,null,null,null,null,null,null,null,null,null,null,null,null,null,null,0,0,{"$error":"#DIV/0!"},null,null,null,null,null,null,null,null,null,"janvier",null,null,null,null,null,"janvier"]

{"sheet":"CUMULATIF","index":1,"n_rows":18,"n_cols":10,"rows_kept":18,"cut":false,"hidden":false,"merged":[]}
[]
[]
[]
[]
[]
[null,"REVENU","VALEUR \nGRAND LIVRE","DATE",null,"DÉPENSE","VALEUR \nGRAND LIVRE","DATE"]
["NOVEMBRE",{"$f":"SUMPRODUCT((CONTRAT!$AI$6:$AI$1496=CUMULATIF!A7)*(CONTRAT!$AE$6:$AE$1496=\"X\"),CONTRAT!$AG$6:$AG$1496)","v":0},875,"17-11-2017",null,{"$f":"SUMPRODUCT((CONTRAT!$AO$6:$AO$1496=CUMULATIF!A7)*(CONTRAT!$AK$6:$AK$1496=\"X\"),CONTRAT!$AM$6:$AM$1496)","v":0},680,"2017-11-17",{"$f":"(B7-F7)/B7","v":{"$error":"#DIV/0!"}},"CG"]
["DÉCEMBRE",{"$f":"SUMPRODUCT((CONTRAT!$AI$6:$AI$1496=CUMULATIF!A8)*(CONTRAT!$AE$6:$AE$1496=\"X\"),CONTRAT!$AG$6:$AG$1496)","v":0},null,null,null,{"$f":"SUMPRODUCT((CONTRAT!$AO$6:$AO$1496=CUMULATIF!A8)*(CONTRAT!$AK$6:$AK$1496=\"X\"),CONTRAT!$AM$6:$AM$1496)","v":0}]
["JANVIER",{"$f":"SUMPRODUCT((CONTRAT!$AI$6:$AI$1496=CUMULATIF!A9)*(CONTRAT!$AE$6:$AE$1496=\"X\"),CONTRAT!$AG$6:$AG$1496)","v":0},null,null,null,{"$f":"SUMPRODUCT((CONTRAT!$AO$6:$AO$1496=CUMULATIF!A9)*(CONTRAT!$AK$6:$AK$1496=\"X\"),CONTRAT!$AM$6:$AM$1496)","v":0}]
["FÉVRIER",{"$f":"SUMPRODUCT((CONTRAT!$AI$6:$AI$1496=CUMULATIF!A10)*(CONTRAT!$AE$6:$AE$1496=\"X\"),CONTRAT!$AG$6:$AG$1496)","v":0},null,null,null,{"$f":"SUMPRODUCT((CONTRAT!$AO$6:$AO$1496=CUMULATIF!A10)*(CONTRAT!$AK$6:$AK$1496=\"X\"),CONTRAT!$AM$6:$AM$1496)","v":0}]
["MARS",{"$f":"SUMPRODUCT((CONTRAT!$AI$6:$AI$1496=CUMULATIF!A11)*(CONTRAT!$AE$6:$AE$1496=\"X\"),CONTRAT!$AG$6:$AG$1496)","v":0},null,null,null,{"$f":"SUMPRODUCT((CONTRAT!$AO$6:$AO$1496=CUMULATIF!A11)*(CONTRAT!$AK$6:$AK$1496=\"X\"),CONTRAT!$AM$6:$AM$1496)","v":0}]
["AVRIL",{"$f":"SUMPRODUCT((CONTRAT!$AI$6:$AI$1496=CUMULATIF!A12)*(CONTRAT!$AE$6:$AE$1496=\"X\"),CONTRAT!$AG$6:$AG$1496)","v":0},null,null,null,{"$f":"SUMPRODUCT((CONTRAT!$AO$6:$AO$1496=CUMULATIF!A12)*(CONTRAT!$AK$6:$AK$1496=\"X\"),CONTRAT!$AM$6:$AM$1496)","v":0}]
["MAI",{"$f":"SUMPRODUCT((CONTRAT!$AI$6:$AI$1496=CUMULATIF!A13)*(CONTRAT!$AE$6:$AE$1496=\"X\"),CONTRAT!$AG$6:$AG$1496)","v":0},null,null,null,{"$f":"SUMPRODUCT((CONTRAT!$AO$6:$AO$1496=CUMULATIF!A13)*(CONTRAT!$AK$6:$AK$1496=\"X\"),CONTRAT!$AM$6:$AM$1496)","v":0}]
["JUIN",{"$f":"SUMPRODUCT((CONTRAT!$AI$6:$AI$1496=CUMULATIF!A14)*(CONTRAT!$AE$6:$AE$1496=\"X\"),CONTRAT!$AG$6:$AG$1496)","v":0},null,null,null,{"$f":"SUMPRODUCT((CONTRAT!$AO$6:$AO$1496=CUMULATIF!A14)*(CONTRAT!$AK$6:$AK$1496=\"X\"),CONTRAT!$AM$6:$AM$1496)","v":0}]
["JUILLET",{"$f":"SUMPRODUCT((CONTRAT!$AI$6:$AI$1496=CUMULATIF!A15)*(CONTRAT!$AE$6:$AE$1496=\"X\"),CONTRAT!$AG$6:$AG$1496)","v":0},null,null,null,{"$f":"SUMPRODUCT((CONTRAT!$AO$6:$AO$1496=CUMULATIF!A15)*(CONTRAT!$AK$6:$AK$1496=\"X\"),CONTRAT!$AM$6:$AM$1496)","v":0}]
["AOÛT",{"$f":"SUMPRODUCT((CONTRAT!$AI$6:$AI$1496=CUMULATIF!A16)*(CONTRAT!$AE$6:$AE$1496=\"X\"),CONTRAT!$AG$6:$AG$1496)","v":0},null,null,null,{"$f":"SUMPRODUCT((CONTRAT!$AO$6:$AO$1496=CUMULATIF!A16)*(CONTRAT!$AK$6:$AK$1496=\"X\"),CONTRAT!$AM$6:$AM$1496)","v":0}]
["SEPTEMBRE",{"$f":"SUMPRODUCT((CONTRAT!$AI$6:$AI$1496=CUMULATIF!A17)*(CONTRAT!$AE$6:$AE$1496=\"X\"),CONTRAT!$AG$6:$AG$1496)","v":0},null,null,null,{"$f":"SUMPRODUCT((CONTRAT!$AO$6:$AO$1496=CUMULATIF!A17)*(CONTRAT!$AK$6:$AK$1496=\"X\"),CONTRAT!$AM$6:$AM$1496)","v":0}]
["OCTOBRE",{"$f":"SUMPRODUCT((CONTRAT!$AI$6:$AI$1496=CUMULATIF!A18)*(CONTRAT!$AE$6:$AE$1496=\"X\"),CONTRAT!$AG$6:$AG$1496)","v":0},null,null,null,{"$f":"SUMPRODUCT((CONTRAT!$AO$6:$AO$1496=CUMULATIF!A18)*(CONTRAT!$AK$6:$AK$1496=\"X\"),CONTRAT!$AM$6:$AM$1496)","v":0}]

{"sheet":"FORMULE","index":2,"n_rows":31,"n_cols":1,"rows_kept":31,"cut":false,"hidden":true,"merged":[]}
[]
[]
["FORME"]
["4-C"]
["\"L\""]
["5-C"]
[]
[]
[]
[]
["FORMAT"]
["GRAVIER "]
["BETON GARAGE"]
["BETON CABANON"]
[]
[]
["SÉLECTION"]
["X"]
[]
[]
["EQUIPE"]
["J-PATS"]
["MAREX"]
["VAILLANCOURT"]
["RAICHE & FILS"]
["LAFLAMME"]
["PYLEX"]
["9279-1318 INC."]
["G.CLOUTIER"]
["EXCAVATION PERREAULT"]
["EBL EXCAVATION"]